Transaction Date,Local Authority Department,BENEFICIARY,Purpose,Amount,Non Recoverable,Merchant Category
01/03/2024,Marketing,Juniper Ventures Ltd,Cleaning Services,2490.03,0,COMMERCIAL SUPPLIER
01/03/2024,Marketing,Juniper Ventures Ltd,Cleaning Services,4079.27,0,COMMERCIAL SUPPLIER
01/03/2024,Marketing,Juniper Ventures Ltd,Cleaning Services,924.28,0,COMMERCIAL SUPPLIER
01/03/2024,Marketing,Juniper Ventures Ltd,Cleaning Services,1249.47,0,COMMERCIAL SUPPLIER
01/03/2024,Marketing,Juniper Ventures Ltd,Cleaning Services,1601.48,0,COMMERCIAL SUPPLIER
01/03/2024,Marketing,Juniper Ventures Ltd,Cleaning Services,592.63,0,COMMERCIAL SUPPLIER
01/03/2024,Marketing,Juniper Ventures Ltd,Cleaning Services,275.96,0,COMMERCIAL SUPPLIER
01/03/2024,Marketing,Juniper Ventures Ltd,Cleaning Services,641.66,0,COMMERCIAL SUPPLIER
01/03/2024,Marketing,Juniper Ventures Ltd,Cleaning Services,835.68,0,COMMERCIAL SUPPLIER
01/03/2024,Marketing,Juniper Ventures Ltd,Cleaning Services,1118.3,0,COMMERCIAL SUPPLIER
01/03/2024,Marketing,Juniper Ventures Ltd,Cleaning Services,863.37,0,COMMERCIAL SUPPLIER
01/03/2024,Marketing,Juniper Ventures Ltd,Cleaning Services,2064.75,0,COMMERCIAL SUPPLIER
01/03/2024,Marketing,Juniper Ventures Ltd,Cleaning Services,4881.11,0,COMMERCIAL SUPPLIER
01/03/2024,Resources,Juniper Ventures Ltd,Cleaning Services,400.86,0,COMMERCIAL SUPPLIER
01/03/2024,Resources,Juniper Ventures Ltd,Cleaning Services,1503.22,0,COMMERCIAL SUPPLIER
01/03/2024,Resources,Juniper Ventures Ltd,Cleaning Services,871.43,0,COMMERCIAL SUPPLIER
01/03/2024,Resources,Juniper Ventures Ltd,Cleaning Services,2004.3,0,COMMERCIAL SUPPLIER
01/03/2024,Resources,Juniper Ventures Ltd,Cleaning Services,10673.03,0,COMMERCIAL SUPPLIER
01/03/2024,Resources,Juniper Ventures Ltd,Cleaning Services,10111.62,0,COMMERCIAL SUPPLIER
01/03/2024,Resources,Juniper Ventures Ltd,Cleaning Services,6468.04,0,COMMERCIAL SUPPLIER
01/03/2024,Environment and Sustainable Transport,Juniper Ventures Ltd,Cleaning Services,11391.05,0,COMMERCIAL SUPPLIER
01/03/2024,Environment and Sustainable Transport,Completely Kent Limited T/a Completely Hydraulic,"Purchase - Equipment, Furniture And Materials",226.61,0,COMMERCIAL SUPPLIER
01/03/2024,Children and Young People,Chiltern Costs Consultants,Legal Fees,420,0,NON COMMERCIAL SUPPLIER
01/03/2024,Children and Young People,The 5ES Development Ltd,Arts And Leisure Costs,4215,0,COMMERCIAL SUPPLIER
01/03/2024,Children and Young People,The People Speak,Events,2200,0,COMMERCIAL SUPPLIER
01/03/2024,Children and Young People,The People Speak,Events,9291.67,0,COMMERCIAL SUPPLIER
01/03/2024,Environment and Sustainable Transport,Worldline IT Services UK Ltd Re Fuel Genie,Transport Fuel,234.75,0,COMMERCIAL SUPPLIER
01/03/2024,Environment and Sustainable Transport,Worldline IT Services UK Ltd Re Fuel Genie,Transport Fuel,854.35,0,COMMERCIAL SUPPLIER
01/03/2024,Housing Revenue Account,Worldline IT Services UK Ltd Re Fuel Genie,Transport Fuel,334.4,0,COMMERCIAL SUPPLIER
01/03/2024,Adults & Health,Supply Chain Coordination Ltd (SCCL),Specialist Equipment For Service Provision,2183.18,0,NHS BODIES
01/03/2024,oneSource - Non Shared,Daisy Corporate Services Trading Ltd,Land Line Telephone Costs,10694.14,0,COMMERCIAL SUPPLIER
01/03/2024,oneSource - Non Shared,Daisy Corporate Services Trading Ltd,Land Line Telephone Costs,5539.89,0,COMMERCIAL SUPPLIER
01/03/2024,oneSource - Non Shared,Daisy Corporate Services Trading Ltd,Land Line Telephone Costs,21589.04,0,COMMERCIAL SUPPLIER
01/03/2024,Housing Revenue Account,Daisy Corporate Services Trading Ltd,Cyclical/Planned Maintenance - Mechanical And Electrical,279.32,0,COMMERCIAL SUPPLIER
01/03/2024,oneSource - Non Shared,Daisy Corporate Services Trading Ltd,Land Line Telephone Costs,5850,0,COMMERCIAL SUPPLIER
01/03/2024,Housing Revenue Account,Daisy Corporate Services Trading Ltd,Land Line Telephone Costs,513.37,0,COMMERCIAL SUPPLIER
01/03/2024,Housing Revenue Account,Daisy Corporate Services Trading Ltd,Land Line Telephone Costs,2005.61,0,COMMERCIAL SUPPLIER
01/03/2024,Environment and Sustainable Transport,Greener Solutions,Highway Services,230,0,VENDOR
01/03/2024,Environment and Sustainable Transport,Greener Solutions,Highway Services,93.6,0,VENDOR
01/03/2024,Environment and Sustainable Transport,Greener Solutions,Highway Services,143.6,0,VENDOR
01/03/2024,Environment and Sustainable Transport,Greener Solutions,Highway Services,171,0,VENDOR
01/03/2024,Environment and Sustainable Transport,Greener Solutions,Highway Services,262.5,0,VENDOR
01/03/2024,Marketing,Digital Content Associates Ltd,"Books, Publications And Resources",4950,0,COMMERCIAL SUPPLIER
01/03/2024,Marketing,Digital Content Associates Ltd,"Books, Publications And Resources",3225,0,COMMERCIAL SUPPLIER
01/03/2024,Marketing,Digital Content Associates Ltd,"Books, Publications And Resources",2325,0,COMMERCIAL SUPPLIER
01/03/2024,Marketing,Digital Content Associates Ltd,"Books, Publications And Resources",1495,0,COMMERCIAL SUPPLIER
01/03/2024,Marketing,Digital Content Associates Ltd,"Books, Publications And Resources",2325,0,COMMERCIAL SUPPLIER
01/03/2024,Marketing,Digital Content Associates Ltd,"Books, Publications And Resources",2145,0,COMMERCIAL SUPPLIER
01/03/2024,Environment and Sustainable Transport,Symetri Limited,Ict Software,18344.5,0,COMMERCIAL SUPPLIER
01/03/2024,Adults & Health,L.A.Services & Solutions Limited,Building Alterations And Materials,9750,0,COMMERCIAL SUPPLIER
01/03/2024,Marketing,Personal Information - Redacted,Consultancy Fees,884.6,0,VENDOR
01/03/2024,Children and Young People,First Option Healthcare,Additional Placements - Third Party,593.4,0,NON COMMERCIAL SUPPLIER
01/03/2024,Children and Young People,First Option Healthcare,Equipment & Adaptation - Private Contractors Payment,1176.86,0,NON COMMERCIAL SUPPLIER
01/03/2024,Environment and Sustainable Transport,Enterprise Flex-E-Rent,Highway Services,642.14,0,COMMERCIAL SUPPLIER
01/03/2024,Environment and Sustainable Transport,Enterprise Flex-E-Rent,Highway Services,642.14,0,COMMERCIAL SUPPLIER
01/03/2024,Environment and Sustainable Transport,Enterprise Flex-E-Rent,Highway Services,642.14,0,COMMERCIAL SUPPLIER
01/03/2024,Environment and Sustainable Transport,Enterprise Flex-E-Rent,Highway Services,642.14,0,COMMERCIAL SUPPLIER
01/03/2024,Environment and Sustainable Transport,Enterprise Flex-E-Rent,Highway Services,744.47,0,COMMERCIAL SUPPLIER
01/03/2024,Environment and Sustainable Transport,Enterprise Flex-E-Rent,Highway Services,580,0,COMMERCIAL SUPPLIER
01/03/2024,Environment and Sustainable Transport,Enterprise Flex-E-Rent,Highway Services,642.14,0,COMMERCIAL SUPPLIER
01/03/2024,Environment and Sustainable Transport,Enterprise Flex-E-Rent,Highway Services,1314.94,0,COMMERCIAL SUPPLIER
01/03/2024,Environment and Sustainable Transport,Enterprise Flex-E-Rent,Highway Services,642.14,0,COMMERCIAL SUPPLIER
01/03/2024,Environment and Sustainable Transport,Enterprise Flex-E-Rent,Highway Services,584.14,0,COMMERCIAL SUPPLIER
01/03/2024,Environment and Sustainable Transport,Enterprise Flex-E-Rent,Highway Services,669.11,0,COMMERCIAL SUPPLIER
01/03/2024,Environment and Sustainable Transport,Enterprise Flex-E-Rent,Highway Services,642.14,0,COMMERCIAL SUPPLIER
01/03/2024,Environment and Sustainable Transport,Enterprise Flex-E-Rent,Highway Services,642.14,0,COMMERCIAL SUPPLIER
01/03/2024,Environment and Sustainable Transport,Enterprise Flex-E-Rent,Highway Services,642.14,0,COMMERCIAL SUPPLIER
01/03/2024,Environment and Sustainable Transport,Enterprise Flex-E-Rent,Highway Services,642.14,0,COMMERCIAL SUPPLIER
01/03/2024,Environment and Sustainable Transport,Enterprise Flex-E-Rent,Highway Services,733.25,0,COMMERCIAL SUPPLIER
01/03/2024,Environment and Sustainable Transport,Enterprise Flex-E-Rent,Highway Services,642.14,0,COMMERCIAL SUPPLIER
01/03/2024,Environment and Sustainable Transport,Enterprise Flex-E-Rent,Highway Services,642.14,0,COMMERCIAL SUPPLIER
01/03/2024,Environment and Sustainable Transport,Enterprise Flex-E-Rent,Highway Services,642.14,0,COMMERCIAL SUPPLIER
01/03/2024,Environment and Sustainable Transport,Enterprise Flex-E-Rent,Highway Services,642.14,0,COMMERCIAL SUPPLIER
01/03/2024,Environment and Sustainable Transport,Enterprise Flex-E-Rent,Highway Services,669.07,0,COMMERCIAL SUPPLIER
01/03/2024,Environment and Sustainable Transport,Enterprise Flex-E-Rent,Highway Services,642.14,0,COMMERCIAL SUPPLIER
01/03/2024,Children and Young People,Personal Information - Redacted,Tree Works,328,0,INDIVIDUALS
01/03/2024,Marketing,Personal Information - Redacted,Events,300,0,VENDOR
01/03/2024,Environment and Sustainable Transport,L & F Plant Hire Co Ltd T/A Ti,Vehicle Hire,987,0,VENDOR
01/03/2024,Environment and Sustainable Transport,L & F Plant Hire Co Ltd T/A Ti,Vehicle Hire,1638,0,VENDOR
01/03/2024,Environment and Sustainable Transport,L & F Plant Hire Co Ltd T/A Ti,Vehicle Hire,1638,0,VENDOR
01/03/2024,Children and Young People,St Christopher's Fellowship.,Private Contractors Payment - Other,2929.5,0,COMMERCIAL SUPPLIER
01/03/2024,Marketing,Bolinda UK Ltd,"Books, Publications And Resources",7958,0,COMMERCIAL SUPPLIER
01/03/2024,Marketing,Bolinda UK Ltd,"Books, Publications And Resources",3870,0,COMMERCIAL SUPPLIER
01/03/2024,Marketing,Bolinda UK Ltd,"Books, Publications And Resources",1500,0,COMMERCIAL SUPPLIER
01/03/2024,Environment and Sustainable Transport,Ford Motor Company Ltd t/a PartsPlus,Highway Services,229.7,0,COMMERCIAL SUPPLIER
01/03/2024,Adults & Health,Goldsmith Personnel Ltd,Daycare - Private Contractors Payment,93.6,0,VENDOR
01/03/2024,Adults & Health,Goldsmith Personnel Ltd,Daycare - Private Contractors Payment,56.16,0,VENDOR
01/03/2024,Adults & Health,Goldsmith Personnel Ltd,Home Care - Private Contractors Payment,18.72,0,VENDOR
01/03/2024,Adults & Health,Goldsmith Personnel Ltd,Home Care - Private Contractors Payment,140.4,0,VENDOR
01/03/2024,Adults & Health,Goldsmith Personnel Ltd,Daycare - Private Contractors Payment,37.44,0,VENDOR
01/03/2024,Adults & Health,Goldsmith Personnel Ltd,Home Care - Private Contractors Payment,589.68,0,VENDOR
01/03/2024,Adults & Health,Goldsmith Personnel Ltd,Home Care - Private Contractors Payment,37.44,0,VENDOR
01/03/2024,Adults & Health,Goldsmith Personnel Ltd,Home Care - Private Contractors Payment,18.72,0,VENDOR
01/03/2024,Adults & Health,Goldsmith Personnel Ltd,Daycare - Private Contractors Payment,37.44,0,VENDOR
01/03/2024,Adults & Health,Goldsmith Personnel Ltd,Daycare - Private Contractors Payment,56.16,0,VENDOR
01/03/2024,Adults & Health,Goldsmith Personnel Ltd,Home Care - Private Contractors Payment,589.68,0,VENDOR
01/03/2024,Adults & Health,Goldsmith Personnel Ltd,Home Care - Private Contractors Payment,140.4,0,VENDOR
01/03/2024,Adults & Health,Goldsmith Personnel Ltd,Home Care - Private Contractors Payment,37.44,0,VENDOR
01/03/2024,Adults & Health,Goldsmith Personnel Ltd,Daycare - Private Contractors Payment,93.6,0,VENDOR
01/03/2024,Adults & Health,Goldsmith Personnel Ltd,Home Care - Private Contractors Payment,393.12,0,VENDOR
01/03/2024,Adults & Health,Goldsmith Personnel Ltd,Daycare - Private Contractors Payment,108.6,0,VENDOR
01/03/2024,Adults & Health,Goldsmith Personnel Ltd,Daycare - Private Contractors Payment,56.16,0,VENDOR
01/03/2024,Adults & Health,Goldsmith Personnel Ltd,Home Care - Private Contractors Payment,18.72,0,VENDOR
01/03/2024,Adults & Health,Goldsmith Personnel Ltd,Daycare - Private Contractors Payment,-465.15,0,VENDOR
01/03/2024,Adults & Health,Goldsmith Personnel Ltd,Home Care - Private Contractors Payment,140.4,0,VENDOR
01/03/2024,Adults & Health,Goldsmith Personnel Ltd,Home Care - Private Contractors Payment,37.44,0,VENDOR
01/03/2024,Adults & Health,Goldsmith Personnel Ltd,Home Care - Private Contractors Payment,393.12,0,VENDOR
01/03/2024,Adults & Health,Goldsmith Personnel Ltd,Home Care - Private Contractors Payment,393.12,0,VENDOR
01/03/2024,Adults & Health,Goldsmith Personnel Ltd,Home Care - Private Contractors Payment,18.72,0,VENDOR
01/03/2024,Adults & Health,Goldsmith Personnel Ltd,Home Care - Private Contractors Payment,393.12,0,VENDOR
01/03/2024,Adults & Health,Goldsmith Personnel Ltd,Daycare - Private Contractors Payment,93.6,0,VENDOR
01/03/2024,Adults & Health,Goldsmith Personnel Ltd,Home Care - Private Contractors Payment,37.44,0,VENDOR
01/03/2024,Adults & Health,Goldsmith Personnel Ltd,Home Care - Private Contractors Payment,575.64,0,VENDOR
01/03/2024,Adults & Health,Goldsmith Personnel Ltd,Daycare - Private Contractors Payment,37.44,0,VENDOR
01/03/2024,Adults & Health,Goldsmith Personnel Ltd,Home Care - Private Contractors Payment,589.68,0,VENDOR
01/03/2024,Adults & Health,Goldsmith Personnel Ltd,Daycare - Private Contractors Payment,-746.15,0,VENDOR
01/03/2024,Adults & Health,Goldsmith Personnel Ltd,Home Care - Private Contractors Payment,140.4,0,VENDOR
01/03/2024,Adults & Health,Goldsmith Personnel Ltd,Home Care - Private Contractors Payment,393.12,0,VENDOR
01/03/2024,Adults & Health,Goldsmith Personnel Ltd,Home Care - Private Contractors Payment,37.44,0,VENDOR
01/03/2024,Adults & Health,Goldsmith Personnel Ltd,Home Care - Private Contractors Payment,140.4,0,VENDOR
01/03/2024,Adults & Health,Goldsmith Personnel Ltd,Home Care - Private Contractors Payment,589.68,0,VENDOR
01/03/2024,Adults & Health,Goldsmith Personnel Ltd,Daycare - Private Contractors Payment,93.6,0,VENDOR
01/03/2024,Adults & Health,Goldsmith Personnel Ltd,Home Care - Private Contractors Payment,18.72,0,VENDOR
01/03/2024,Adults & Health,Goldsmith Personnel Ltd,Daycare - Private Contractors Payment,56.16,0,VENDOR
01/03/2024,Adults & Health,Goldsmith Personnel Ltd,Home Care - Private Contractors Payment,37.44,0,VENDOR
01/03/2024,Adults & Health,Goldsmith Personnel Ltd,Home Care - Private Contractors Payment,393.12,0,VENDOR
01/03/2024,Adults & Health,Goldsmith Personnel Ltd,Home Care - Private Contractors Payment,140.4,0,VENDOR
01/03/2024,Adults & Health,Goldsmith Personnel Ltd,Home Care - Private Contractors Payment,168.48,0,VENDOR
01/03/2024,Adults & Health,Goldsmith Personnel Ltd,Daycare - Private Contractors Payment,93.6,0,VENDOR
01/03/2024,Adults & Health,Goldsmith Personnel Ltd,Home Care - Private Contractors Payment,18.72,0,VENDOR
01/03/2024,Adults & Health,Goldsmith Personnel Ltd,Daycare - Private Contractors Payment,224.64,0,VENDOR
01/03/2024,Adults & Health,Goldsmith Personnel Ltd,Daycare - Private Contractors Payment,56.16,0,VENDOR
01/03/2024,Adults & Health,Goldsmith Personnel Ltd,Home Care - Private Contractors Payment,393.12,0,VENDOR
01/03/2024,Adults & Health,Goldsmith Personnel Ltd,Home Care - Private Contractors Payment,140.4,0,VENDOR
01/03/2024,Adults & Health,Goldsmith Personnel Ltd,Home Care - Private Contractors Payment,561.6,0,VENDOR
01/03/2024,Adults & Health,Goldsmith Personnel Ltd,Home Care - Private Contractors Payment,37.44,0,VENDOR
01/03/2024,Adults & Health,Goldsmith Personnel Ltd,Daycare - Private Contractors Payment,93.6,0,VENDOR
01/03/2024,Adults & Health,Goldsmith Personnel Ltd,Home Care - Private Contractors Payment,18.72,0,VENDOR
01/03/2024,Adults & Health,Goldsmith Personnel Ltd,Daycare - Private Contractors Payment,93.6,0,VENDOR
01/03/2024,Adults & Health,Goldsmith Personnel Ltd,Home Care - Private Contractors Payment,33.72,0,VENDOR
01/03/2024,Adults & Health,Goldsmith Personnel Ltd,Daycare - Private Contractors Payment,112.32,0,VENDOR
01/03/2024,Adults & Health,Goldsmith Personnel Ltd,Daycare - Private Contractors Payment,56.16,0,VENDOR
01/03/2024,Adults & Health,Goldsmith Personnel Ltd,Home Care - Private Contractors Payment,408.12,0,VENDOR
01/03/2024,Adults & Health,Goldsmith Personnel Ltd,Home Care - Private Contractors Payment,140.4,0,VENDOR
01/03/2024,Adults & Health,Goldsmith Personnel Ltd,Home Care - Private Contractors Payment,37.44,0,VENDOR
01/03/2024,Adults & Health,Goldsmith Personnel Ltd,Home Care - Private Contractors Payment,166.69,0,VENDOR
01/03/2024,Adults & Health,Goldsmith Personnel Ltd,Daycare - Private Contractors Payment,37.44,0,VENDOR
01/03/2024,Adults & Health,Goldsmith Personnel Ltd,Daycare - Private Contractors Payment,56.16,0,VENDOR
01/03/2024,Adults & Health,Futures for Shared Lives Ltd,Adult Placement Scheme - Private Contractors Payment,612.88,0,NON COMMERCIAL SUPPLIER
01/03/2024,Adults & Health,Futures for Shared Lives Ltd,Adult Placement Scheme - Private Contractors Payment,536.27,0,NON COMMERCIAL SUPPLIER
01/03/2024,Adults & Health,Futures for Shared Lives Ltd,Adult Placement Scheme - Private Contractors Payment,536.27,0,NON COMMERCIAL SUPPLIER
01/03/2024,Adults & Health,Futures for Shared Lives Ltd,Adult Placement Scheme - Private Contractors Payment,536.27,0,NON COMMERCIAL SUPPLIER
01/03/2024,Inclusive Economy & Housing,Hmg building services ltd,"Maintenance - Equipment, Furniture And Materials",5740.65,0,CIS
01/03/2024,Inclusive Economy & Housing,Hmg building services ltd,"Maintenance - Equipment, Furniture And Materials",8514.67,0,CIS
01/03/2024,Inclusive Economy & Housing,Hmg building services ltd,"Maintenance - Equipment, Furniture And Materials",2596,0,CIS
01/03/2024,Environment and Sustainable Transport,The Stationery Office Ltd,"Advertising, Publicity And Marketing",221.4,0,COMMERCIAL SUPPLIER
01/03/2024,Adults & Health,Caremark (Thanet),Home Care - Private Contractors Payment,436,0,NON COMMERCIAL SUPPLIER
01/03/2024,Inclusive Economy & Housing,Beacon Scaffolding Ltd,"Maintenance - Equipment, Furniture And Materials",743.04,0,CIS
01/03/2024,Adults & Health,Headway East London,Daycare - Private Contractors Payment,218.88,0,COMMERCIAL SUPPLIER
01/03/2024,Adults & Health,Headway East London,Payments To Voluntary Sector,113.4,0,COMMERCIAL SUPPLIER
01/03/2024,Adults & Health,Headway East London,Daycare - Private Contractors Payment,218.88,0,COMMERCIAL SUPPLIER
01/03/2024,Adults & Health,Headway East London,Payments To Voluntary Sector,113.4,0,COMMERCIAL SUPPLIER
01/03/2024,Adults & Health,Headway East London,Daycare - Private Contractors Payment,218.88,0,COMMERCIAL SUPPLIER
01/03/2024,Adults & Health,Headway East London,Daycare - Private Contractors Payment,218.88,0,COMMERCIAL SUPPLIER
01/03/2024,Adults & Health,Headway East London,Payments To Voluntary Sector,122.6,0,COMMERCIAL SUPPLIER
01/03/2024,Adults & Health,Headway East London,Payments To Voluntary Sector,113.4,0,COMMERCIAL SUPPLIER
01/03/2024,Adults & Health,Headway East London,Daycare - Private Contractors Payment,109.44,0,COMMERCIAL SUPPLIER
01/03/2024,Adults & Health,Headway East London,Daycare - Private Contractors Payment,109.44,0,COMMERCIAL SUPPLIER
01/03/2024,Adults & Health,Headway East London,Daycare - Private Contractors Payment,109.44,0,COMMERCIAL SUPPLIER
01/03/2024,Adults & Health,Headway East London,Daycare - Private Contractors Payment,109.44,0,COMMERCIAL SUPPLIER
01/03/2024,Adults & Health,Headway East London,Daycare - Private Contractors Payment,109.44,0,COMMERCIAL SUPPLIER
01/03/2024,Adults & Health,Headway East London,Daycare - Private Contractors Payment,109.44,0,COMMERCIAL SUPPLIER
01/03/2024,Adults & Health,Headway East London,Daycare - Private Contractors Payment,109.44,0,COMMERCIAL SUPPLIER
01/03/2024,Adults & Health,Headway East London,Daycare - Private Contractors Payment,109.44,0,COMMERCIAL SUPPLIER
01/03/2024,Adults & Health,Headway East London,Daycare - Private Contractors Payment,218.88,0,COMMERCIAL SUPPLIER
01/03/2024,Adults & Health,Headway East London,Daycare - Private Contractors Payment,305.88,0,COMMERCIAL SUPPLIER
01/03/2024,Adults & Health,Headway East London,Daycare - Private Contractors Payment,218.88,0,COMMERCIAL SUPPLIER
01/03/2024,Adults & Health,Headway East London,Daycare - Private Contractors Payment,218.88,0,COMMERCIAL SUPPLIER
01/03/2024,Adults & Health,Headway East London,Daycare - Private Contractors Payment,218.88,0,COMMERCIAL SUPPLIER
01/03/2024,Adults & Health,Headway East London,Daycare - Private Contractors Payment,218.88,0,COMMERCIAL SUPPLIER
01/03/2024,Adults & Health,Headway East London,Daycare - Private Contractors Payment,218.88,0,COMMERCIAL SUPPLIER
01/03/2024,Adults & Health,Headway East London,Daycare - Private Contractors Payment,218.88,0,COMMERCIAL SUPPLIER
01/03/2024,Adults & Health,Headway East London,Daycare - Private Contractors Payment,91,0,COMMERCIAL SUPPLIER
01/03/2024,Adults & Health,Headway East London,Daycare - Private Contractors Payment,91,0,COMMERCIAL SUPPLIER
01/03/2024,Adults & Health,Headway East London,Daycare - Private Contractors Payment,91,0,COMMERCIAL SUPPLIER
01/03/2024,Adults & Health,Headway East London,Daycare - Private Contractors Payment,91,0,COMMERCIAL SUPPLIER
01/03/2024,Inclusive Economy & Housing,Titan Containers A/S,Hire - Equipment Furniture And Materials,232.5,0,VENDOR
01/03/2024,Children and Young People,Medical Expert Witness Alliance (MEWA),Legal Fees,405,0,COMMERCIAL SUPPLIER
01/03/2024,Inclusive Economy & Housing,CCS Media Limited.,Ict Hardware,1190,0,COMMERCIAL SUPPLIER
01/03/2024,RMS,Travis Perkins Trading Company Ltd,Building Alterations And Materials,126.2,0,COMMERCIAL SUPPLIER
01/03/2024,RMS,Travis Perkins Trading Company Ltd,Building Alterations And Materials,210.6,0,COMMERCIAL SUPPLIER
01/03/2024,RMS,Travis Perkins Trading Company Ltd,Building Alterations And Materials,1082,0,COMMERCIAL SUPPLIER
01/03/2024,RMS,Travis Perkins Trading Company Ltd,Building Alterations And Materials,536,0,COMMERCIAL SUPPLIER
01/03/2024,RMS,Travis Perkins Trading Company Ltd,Building Alterations And Materials,305.52,0,COMMERCIAL SUPPLIER
01/03/2024,RMS,Travis Perkins Trading Company Ltd,Building Alterations And Materials,655.5,0,COMMERCIAL SUPPLIER
01/03/2024,RMS,Travis Perkins Trading Company Ltd,Building Alterations And Materials,250.5,0,COMMERCIAL SUPPLIER
01/03/2024,RMS,Travis Perkins Trading Company Ltd,Building Alterations And Materials,643.9,0,COMMERCIAL SUPPLIER
01/03/2024,RMS,Travis Perkins Trading Company Ltd,Building Alterations And Materials,204.3,0,COMMERCIAL SUPPLIER
01/03/2024,RMS,Travis Perkins Trading Company Ltd,Building Alterations And Materials,255.6,0,COMMERCIAL SUPPLIER
01/03/2024,RMS,Travis Perkins Trading Company Ltd,Building Alterations And Materials,342.06,0,COMMERCIAL SUPPLIER
01/03/2024,RMS,Travis Perkins Trading Company Ltd,Building Alterations And Materials,260.6,0,COMMERCIAL SUPPLIER
01/03/2024,RMS,Travis Perkins Trading Company Ltd,Building Alterations And Materials,211.88,0,COMMERCIAL SUPPLIER
01/03/2024,RMS,Travis Perkins Trading Company Ltd,Building Alterations And Materials,325.6,0,COMMERCIAL SUPPLIER
01/03/2024,RMS,Travis Perkins Trading Company Ltd,Building Alterations And Materials,51.26,0,COMMERCIAL SUPPLIER
01/03/2024,RMS,Travis Perkins Trading Company Ltd,Building Alterations And Materials,4736.46,0,COMMERCIAL SUPPLIER
01/03/2024,RMS,Travis Perkins Trading Company Ltd,Building Alterations And Materials,4334.96,0,COMMERCIAL SUPPLIER
01/03/2024,RMS,Travis Perkins Trading Company Ltd,Building Alterations And Materials,1195.2,0,COMMERCIAL SUPPLIER
01/03/2024,RMS,Travis Perkins Trading Company Ltd,Building Alterations And Materials,25,0,COMMERCIAL SUPPLIER
01/03/2024,RMS,Travis Perkins Trading Company Ltd,Building Alterations And Materials,287.7,0,COMMERCIAL SUPPLIER
01/03/2024,RMS,Travis Perkins Trading Company Ltd,Building Alterations And Materials,75,0,COMMERCIAL SUPPLIER
01/03/2024,RMS,Travis Perkins Trading Company Ltd,Building Alterations And Materials,114,0,COMMERCIAL SUPPLIER
01/03/2024,RMS,Travis Perkins Trading Company Ltd,Building Alterations And Materials,38,0,COMMERCIAL SUPPLIER
01/03/2024,RMS,Travis Perkins Trading Company Ltd,Building Alterations And Materials,5262.1,0,COMMERCIAL SUPPLIER
01/03/2024,RMS,Travis Perkins Trading Company Ltd,Building Alterations And Materials,95,0,COMMERCIAL SUPPLIER
01/03/2024,RMS,Travis Perkins Trading Company Ltd,Building Alterations And Materials,611,0,COMMERCIAL SUPPLIER
01/03/2024,RMS,Travis Perkins Trading Company Ltd,Building Alterations And Materials,873.6,0,COMMERCIAL SUPPLIER
01/03/2024,RMS,Travis Perkins Trading Company Ltd,Building Alterations And Materials,671.6,0,COMMERCIAL SUPPLIER
01/03/2024,RMS,Travis Perkins Trading Company Ltd,Building Alterations And Materials,248.64,0,COMMERCIAL SUPPLIER
01/03/2024,RMS,Travis Perkins Trading Company Ltd,Building Alterations And Materials,289.4,0,COMMERCIAL SUPPLIER
01/03/2024,RMS,Travis Perkins Trading Company Ltd,Building Alterations And Materials,18,0,COMMERCIAL SUPPLIER
01/03/2024,RMS,Travis Perkins Trading Company Ltd,Building Alterations And Materials,187,0,COMMERCIAL SUPPLIER
01/03/2024,RMS,Travis Perkins Trading Company Ltd,Building Alterations And Materials,244,0,COMMERCIAL SUPPLIER
01/03/2024,RMS,Travis Perkins Trading Company Ltd,Building Alterations And Materials,94,0,COMMERCIAL SUPPLIER
01/03/2024,RMS,Travis Perkins Trading Company Ltd,Building Alterations And Materials,118.75,0,COMMERCIAL SUPPLIER
01/03/2024,RMS,Travis Perkins Trading Company Ltd,Building Alterations And Materials,118.75,0,COMMERCIAL SUPPLIER
01/03/2024,RMS,Travis Perkins Trading Company Ltd,Building Alterations And Materials,206.67,0,COMMERCIAL SUPPLIER
01/03/2024,RMS,Travis Perkins Trading Company Ltd,Building Alterations And Materials,10,0,COMMERCIAL SUPPLIER
01/03/2024,RMS,Travis Perkins Trading Company Ltd,Building Alterations And Materials,2216,0,COMMERCIAL SUPPLIER
01/03/2024,RMS,Travis Perkins Trading Company Ltd,Building Alterations And Materials,237.1,0,COMMERCIAL SUPPLIER
01/03/2024,Resources,Workman LLP,Facilities Management,978307.42,0,COMMERCIAL SUPPLIER
01/03/2024,Environment and Sustainable Transport,Rushton Workwear Ltd,Highway Services,175,0,COMMERCIAL SUPPLIER
01/03/2024,Environment and Sustainable Transport,Rushton Workwear Ltd,Highway Services,175,0,COMMERCIAL SUPPLIER
01/03/2024,Environment and Sustainable Transport,Rushton Workwear Ltd,Highway Services,175,0,COMMERCIAL SUPPLIER
01/03/2024,Environment and Sustainable Transport,Rushton Workwear Ltd,Highway Services,35,0,COMMERCIAL SUPPLIER
01/03/2024,Environment and Sustainable Transport,Rushton Workwear Ltd,Highway Services,175,0,COMMERCIAL SUPPLIER
01/03/2024,Adults & Health,Sweettree Home Care Services,Home Care - Private Contractors Payment,377.3,0,NON COMMERCIAL SUPPLIER
01/03/2024,Adults & Health,Sweettree Home Care Services,Daycare - Private Contractors Payment,269.5,0,NON COMMERCIAL SUPPLIER
01/03/2024,Adults & Health,Sweettree Home Care Services,Home Care - Private Contractors Payment,74.6,0,NON COMMERCIAL SUPPLIER
01/03/2024,Adults & Health,Sweettree Home Care Services,Home Care - Private Contractors Payment,107.8,0,NON COMMERCIAL SUPPLIER
01/03/2024,Adults & Health,Sweettree Home Care Services,Home Care - Private Contractors Payment,269.5,0,NON COMMERCIAL SUPPLIER
01/03/2024,Adults & Health,Sweettree Home Care Services,Daycare - Private Contractors Payment,269.5,0,NON COMMERCIAL SUPPLIER
01/03/2024,Adults & Health,Sweettree Home Care Services,Daycare - Private Contractors Payment,269.5,0,NON COMMERCIAL SUPPLIER
01/03/2024,Adults & Health,Sweettree Home Care Services,Home Care - Private Contractors Payment,377.3,0,NON COMMERCIAL SUPPLIER
01/03/2024,Adults & Health,Sweettree Home Care Services,Home Care - Private Contractors Payment,431.2,0,NON COMMERCIAL SUPPLIER
01/03/2024,Adults & Health,Sweettree Home Care Services,Home Care - Private Contractors Payment,431.2,0,NON COMMERCIAL SUPPLIER
01/03/2024,Adults & Health,Sweettree Home Care Services,Daycare - Private Contractors Payment,134.75,0,NON COMMERCIAL SUPPLIER
01/03/2024,Adults & Health,Sweettree Home Care Services,Home Care - Private Contractors Payment,431.2,0,NON COMMERCIAL SUPPLIER
01/03/2024,Adults & Health,Sweettree Home Care Services,Home Care - Private Contractors Payment,431.2,0,NON COMMERCIAL SUPPLIER
01/03/2024,Housing Revenue Account,Swan Housing Group,Professional Services - General,952263.64,0,VENDOR
01/03/2024,Resources,Jones Lang LaSalle Ltd,Facilities Management,424749.73,0,COMMERCIAL SUPPLIER
01/03/2024,Resources,Jones Lang LaSalle Ltd,Facilities Management,167250,0,COMMERCIAL SUPPLIER
01/03/2024,Inclusive Economy & Housing,Ricardo-AEA Ltd,Consultancy Fees,2493.5,0,COMMERCIAL SUPPLIER
01/03/2024,Inclusive Economy & Housing,Ricardo-AEA Ltd,Consultancy Fees,2493.5,0,COMMERCIAL SUPPLIER
01/03/2024,Inclusive Economy & Housing,Ricardo-AEA Ltd,Consultancy Fees,7664,0,COMMERCIAL SUPPLIER
01/03/2024,Children and Young People,London Kundalini Centre,Arts And Leisure Costs,360,0,INDIVIDUALS
01/03/2024,Adults & Health,Kaleidoscope Project,Private Contractors Payment - Other,900,0,VENDOR
01/03/2024,Adults & Health,Kaleidoscope Project,Private Contractors Payment - Other,7500,0,VENDOR
01/03/2024,Adults & Health,Kaleidoscope Project,Private Contractors Payment - Other,9600,0,VENDOR
01/03/2024,Adults & Health,Kaleidoscope Project,Private Contractors Payment - Other,1200,0,VENDOR
01/03/2024,Children and Young People,Pulse Healthcare Ltd,Additional Placements - Third Party,914.88,0,COMMERCIAL SUPPLIER
01/03/2024,Housing Revenue Account,J Mcpherson Legal Costing Limited,Legal Fees,1280,0,COMMERCIAL SUPPLIER
01/03/2024,Children and Young People,Cansford Laboratories Limited,Legal Fees,595.42,0,COMMERCIAL SUPPLIER
01/03/2024,Resources,Northumbria Healthcare NHS Foundation Trust,Payment To Health Authorities,241.52,0,NHS BODIES
01/03/2024,Resources,Northumbria Healthcare NHS Foundation Trust,Payment To Health Authorities,2305.54,0,NHS BODIES
01/03/2024,Housing Revenue Account,J.A. Steel & Son Ltd,Private Contractors Payment - Other,306,0,COMMERCIAL SUPPLIER
01/03/2024,Environment and Sustainable Transport,Ofcom,Legal Fees,5920,0,CENTRAL/GOVERNMENT DEPARTMENTS
01/03/2024,Environment and Sustainable Transport,Portakabin Ltd,Premises Hire - Facilities,2373.33,0,COMMERCIAL SUPPLIER
01/03/2024,Resources,Newham Learning Partnership (Project Co) Limited,"Maintenance - Equipment, Furniture And Materials",343241.99,0,VENDOR
01/03/2024,Resources,Newham Learning Partnership (Project Co) Limited,"Maintenance - Equipment, Furniture And Materials",425485.75,0,VENDOR
01/03/2024,Resources,Building A Future (Newham Schools) Limited,"Maintenance - Equipment, Furniture And Materials",303126.95,0,VENDOR
01/03/2024,Resources,Building A Future (Newham Schools) Limited,"Maintenance - Equipment, Furniture And Materials",80508.3,0,VENDOR
01/03/2024,Resources,Building A Future (Newham Schools) Limited,"Maintenance - Equipment, Furniture And Materials",80968.6,0,VENDOR
01/03/2024,Resources,Newham Learning Partnership (Project Co) Limited,"Maintenance - Equipment, Furniture And Materials",5015.5,0,VENDOR
01/03/2024,Resources,Newham Learning Partnership (Project Co) Limited,"Maintenance - Equipment, Furniture And Materials",288,0,VENDOR
01/03/2024,Inclusive Economy & Housing,London Borough of Havering,Private Contractors Payment - Other,4099.17,0,LOCAL AUTHORITY SERVICES
01/03/2024,Housing Revenue Account,NEC Software Solutions UK Ltd,Ict Licences,6945,0,COMMERCIAL SUPPLIER
01/03/2024,Housing Revenue Account,NEC Software Solutions UK Ltd,Ict Licences,5645.5,0,COMMERCIAL SUPPLIER
01/03/2024,Housing Revenue Account,NEC Software Solutions UK Ltd,Ict Licences,8940.5,0,COMMERCIAL SUPPLIER
01/03/2024,Adults & Health,Achieve Together Ltd,Daycare - Private Contractors Payment,129.92,0,NON COMMERCIAL SUPPLIER
01/03/2024,Adults & Health,Achieve Together Ltd,Daycare - Private Contractors Payment,194.88,0,NON COMMERCIAL SUPPLIER
01/03/2024,Adults & Health,Achieve Together Ltd,Daycare - Private Contractors Payment,194.88,0,NON COMMERCIAL SUPPLIER
01/03/2024,Adults & Health,Achieve Together Ltd,Daycare - Private Contractors Payment,194.88,0,NON COMMERCIAL SUPPLIER
01/03/2024,Adults & Health,Achieve Together Ltd,Daycare - Private Contractors Payment,194.88,0,NON COMMERCIAL SUPPLIER
01/03/2024,Marketing,Ambition Aspire Achieve,Arts And Leisure Costs,9295,0,COMMERCIAL SUPPLIER
01/03/2024,Marketing,Banner Group Ltd,Stationery,60,0,COMMERCIAL SUPPLIER
01/03/2024,Marketing,Banner Group Ltd,Stationery,79.99,0,COMMERCIAL SUPPLIER
01/03/2024,Marketing,Banner Group Ltd,Stationery,10.5,0,COMMERCIAL SUPPLIER
01/03/2024,Marketing,Banner Group Ltd,Stationery,52.2,0,COMMERCIAL SUPPLIER
01/03/2024,Marketing,Banner Group Ltd,Stationery,29.99,0,COMMERCIAL SUPPLIER
01/03/2024,Marketing,Banner Group Ltd,Stationery,13.5,0,COMMERCIAL SUPPLIER
01/03/2024,Marketing,Banner Group Ltd,Stationery,16.2,0,COMMERCIAL SUPPLIER
01/03/2024,Marketing,Banner Group Ltd,Stationery,54.24,0,COMMERCIAL SUPPLIER
01/03/2024,Marketing,Banner Group Ltd,Stationery,19.99,0,COMMERCIAL SUPPLIER
01/03/2024,Marketing,Banner Group Ltd,Stationery,83.24,0,COMMERCIAL SUPPLIER
01/03/2024,Marketing,Banner Group Ltd,Stationery,63.52,0,COMMERCIAL SUPPLIER
01/03/2024,Marketing,Banner Group Ltd,Stationery,6.36,0,COMMERCIAL SUPPLIER
01/03/2024,Marketing,Banner Group Ltd,Stationery,174.16,0,COMMERCIAL SUPPLIER
01/03/2024,Children and Young People,Banner Group Ltd,Stationery,456.07,0,COMMERCIAL SUPPLIER
01/03/2024,Marketing,Banner Group Ltd,Stationery,132.8,0,COMMERCIAL SUPPLIER
01/03/2024,Marketing,Banner Group Ltd,Stationery,83.94,0,COMMERCIAL SUPPLIER
01/03/2024,Marketing,Banner Group Ltd,Stationery,17.5,0,COMMERCIAL SUPPLIER
01/03/2024,Marketing,Banner Group Ltd,Stationery,42.12,0,COMMERCIAL SUPPLIER
01/03/2024,Marketing,Banner Group Ltd,Stationery,90.4,0,COMMERCIAL SUPPLIER
01/03/2024,Marketing,Banner Group Ltd,Stationery,4.16,0,COMMERCIAL SUPPLIER
01/03/2024,Marketing,Banner Group Ltd,Stationery,221.61,0,COMMERCIAL SUPPLIER
01/03/2024,Environment and Sustainable Transport,Banner Group Ltd,Stationery,92.52,0,COMMERCIAL SUPPLIER
01/03/2024,Environment and Sustainable Transport,Banner Group Ltd,Stationery,22.5,0,COMMERCIAL SUPPLIER
01/03/2024,Environment and Sustainable Transport,Banner Group Ltd,Stationery,50.8,0,COMMERCIAL SUPPLIER
01/03/2024,Environment and Sustainable Transport,Banner Group Ltd,Stationery,102.9,0,COMMERCIAL SUPPLIER
01/03/2024,Environment and Sustainable Transport,Banner Group Ltd,Stationery,12.48,0,COMMERCIAL SUPPLIER
01/03/2024,Inclusive Economy & Housing,Personal Information - Redacted,Compensation,5814.5,0,INDIVIDUALS
01/03/2024,RMS,Personal Information - Redacted,Compensation,400,0,INDIVIDUALS
01/03/2024,Adults & Health,Look Ahead Housing and Care Ltd,Long Term Support - Community: Supported Living,20124.75,0,COMMERCIAL SUPPLIER
01/03/2024,Housing Revenue Account,ERND Building Services (UK) Ltd,"Maintenance - Equipment, Furniture And Materials",1513.53,0,COMMERCIAL SUPPLIER
01/03/2024,Marketing,Personal Information - Redacted,Events,320,0,COMMERCIAL SUPPLIER
01/03/2024,Children and Young People,Just Networking Consultancy Ltd.,Consultancy Fees,652.92,0,PUBLIC CORPORATION
01/03/2024,Adults & Health,L & Q Living,Private Contractors Payment - Other,1296.36,0,VENDOR
01/03/2024,Adults & Health,Look Ahead Housing and Care Ltd,Private Contractors Payment - Other,20774,0,COMMERCIAL SUPPLIER
01/03/2024,Adults & Health,Advance Housing & Support Ltd,Private Contractors Payment - Other,5531.96,0,VENDOR
01/03/2024,Adults & Health,Ambient Support Ltd,Private Contractors Payment - Other,8585,0,VENDOR
01/03/2024,Environment and Sustainable Transport,RFW Engineering Ltd,"Purchase - Equipment, Furniture And Materials",1740,0,COMMERCIAL SUPPLIER
01/03/2024,Children and Young People,One Plus One Marriage and Partnership Research,"Purchase - Equipment, Furniture And Materials",6940,0,VOLUNTARY ORGANISATION
01/03/2024,RMS,London Network for Pest Solutions Ltd,Private Contractors Payment - Other,450,0,COMMERCIAL SUPPLIER
01/03/2024,RMS,London Network for Pest Solutions Ltd,Private Contractors Payment - Other,815,0,COMMERCIAL SUPPLIER
01/03/2024,RMS,London Network for Pest Solutions Ltd,Private Contractors Payment - Other,500,0,COMMERCIAL SUPPLIER
01/03/2024,Children and Young People,Personal Information - Redacted,Legal Fees,850,0,LEGAL SERVICES
01/03/2024,Resources,Personal Information - Redacted,"Purchase - Equipment, Furniture And Materials",22.99,0,Employee
01/03/2024,Dedicated Schools Budget,Personal Information - Redacted,Schools - Transfer Payment,16411,0,NON COMMERCIAL SUPPLIER
01/03/2024,Dedicated Schools Budget,Personal Information - Redacted,Schools - Transfer Payment,59772.88,0,VENDOR
01/03/2024,Dedicated Schools Budget,Personal Information - Redacted,Schools - Transfer Payment,38919,0,COMMERCIAL SUPPLIER
01/03/2024,Dedicated Schools Budget,Personal Information - Redacted,Schools - Transfer Payment,6681,0,COMMERCIAL SUPPLIER
01/03/2024,Dedicated Schools Budget,Personal Information - Redacted,Schools - Transfer Payment,10996.78,0,COMMERCIAL SUPPLIER
01/03/2024,Dedicated Schools Budget,Personal Information - Redacted,Schools - Transfer Payment,29619.67,0,NON COMMERCIAL SUPPLIER
01/03/2024,Dedicated Schools Budget,Personal Information - Redacted,Schools - Transfer Payment,24258.83,0,VENDOR
01/03/2024,Dedicated Schools Budget,Personal Information - Redacted,Schools - Transfer Payment,28613.58,0,COMMERCIAL SUPPLIER
01/03/2024,Dedicated Schools Budget,Personal Information - Redacted,Schools - Transfer Payment,23583.58,0,COMMERCIAL SUPPLIER
01/03/2024,Dedicated Schools Budget,Personal Information - Redacted,Schools - Transfer Payment,36769.86,0,VENDOR
01/03/2024,Dedicated Schools Budget,Personal Information - Redacted,Schools - Transfer Payment,37634,0,COMMERCIAL SUPPLIER
01/03/2024,Dedicated Schools Budget,Personal Information - Redacted,Schools - Transfer Payment,8975,0,COMMERCIAL SUPPLIER
01/03/2024,Dedicated Schools Budget,Personal Information - Redacted,Schools - Transfer Payment,26846,0,COMMERCIAL SUPPLIER
01/03/2024,Dedicated Schools Budget,Personal Information - Redacted,Schools - Transfer Payment,13222.33,0,COMMERCIAL SUPPLIER
01/03/2024,Dedicated Schools Budget,Personal Information - Redacted,Schools - Transfer Payment,8191,0,INDIVIDUALS
01/03/2024,Dedicated Schools Budget,Personal Information - Redacted,Schools - Transfer Payment,17453.33,0,NON COMMERCIAL SUPPLIER
01/03/2024,Dedicated Schools Budget,Personal Information - Redacted,Schools - Transfer Payment,12978.58,0,COMMERCIAL SUPPLIER
01/03/2024,Dedicated Schools Budget,Personal Information - Redacted,Schools - Transfer Payment,2165,0,NON COMMERCIAL SUPPLIER
01/03/2024,Dedicated Schools Budget,Personal Information - Redacted,Schools - Transfer Payment,1309,0,COMMERCIAL SUPPLIER
01/03/2024,Dedicated Schools Budget,Personal Information - Redacted,Schools - Transfer Payment,21442,0,VENDOR
01/03/2024,Dedicated Schools Budget,Personal Information - Redacted,Schools - Transfer Payment,4198.03,0,COMMERCIAL SUPPLIER
01/03/2024,Dedicated Schools Budget,Personal Information - Redacted,Schools - Transfer Payment,3647,0,COMMERCIAL SUPPLIER
01/03/2024,Dedicated Schools Budget,Personal Information - Redacted,Schools - Transfer Payment,78311.17,0,COMMERCIAL SUPPLIER
01/03/2024,Dedicated Schools Budget,Personal Information - Redacted,Schools - Transfer Payment,41348.25,0,NON COMMERCIAL SUPPLIER
01/03/2024,Dedicated Schools Budget,Personal Information - Redacted,Schools - Transfer Payment,59390,0,VENDOR
01/03/2024,Dedicated Schools Budget,Personal Information - Redacted,Schools - Transfer Payment,42409.5,0,COMMERCIAL SUPPLIER
01/03/2024,Dedicated Schools Budget,Personal Information - Redacted,Schools - Transfer Payment,25557,0,COMMERCIAL SUPPLIER
01/03/2024,Dedicated Schools Budget,Personal Information - Redacted,Schools - Transfer Payment,11493.67,0,COMMERCIAL SUPPLIER
01/03/2024,Dedicated Schools Budget,Personal Information - Redacted,Schools - Transfer Payment,4974,0,INDIVIDUALS
01/03/2024,Dedicated Schools Budget,Personal Information - Redacted,Schools - Transfer Payment,17031,0,COMMERCIAL SUPPLIER
01/03/2024,Dedicated Schools Budget,Personal Information - Redacted,Schools - Transfer Payment,58418.83,0,COMMERCIAL SUPPLIER
01/03/2024,Dedicated Schools Budget,Personal Information - Redacted,Schools - Transfer Payment,16623.33,0,NON COMMERCIAL SUPPLIER
01/03/2024,Dedicated Schools Budget,Personal Information - Redacted,Schools - Transfer Payment,20141.5,0,COMMERCIAL SUPPLIER
01/03/2024,Dedicated Schools Budget,Personal Information - Redacted,Schools - Transfer Payment,15551,0,COMMERCIAL SUPPLIER
01/03/2024,Dedicated Schools Budget,Personal Information - Redacted,Schools - Transfer Payment,5658.75,0,COMMERCIAL SUPPLIER
01/03/2024,Dedicated Schools Budget,Personal Information - Redacted,Schools - Transfer Payment,26492,0,COMMERCIAL SUPPLIER
01/03/2024,Dedicated Schools Budget,Personal Information - Redacted,Schools - Transfer Payment,31527.5,0,COMMERCIAL SUPPLIER
01/03/2024,Dedicated Schools Budget,Personal Information - Redacted,Schools - Transfer Payment,30478.67,0,NON COMMERCIAL SUPPLIER
01/03/2024,Dedicated Schools Budget,Personal Information - Redacted,Schools - Transfer Payment,25103.78,0,COMMERCIAL SUPPLIER
01/03/2024,Dedicated Schools Budget,Personal Information - Redacted,Schools - Transfer Payment,10594,0,COMMERCIAL SUPPLIER
01/03/2024,Dedicated Schools Budget,Personal Information - Redacted,Schools - Transfer Payment,10779.92,0,LOCAL AUTHORITY SERVICES
01/03/2024,Dedicated Schools Budget,Personal Information - Redacted,Schools - Transfer Payment,33369.75,0,COMMERCIAL SUPPLIER
01/03/2024,Dedicated Schools Budget,Personal Information - Redacted,Schools - Transfer Payment,268.83,0,COMMERCIAL SUPPLIER
01/03/2024,Dedicated Schools Budget,Personal Information - Redacted,Schools - Transfer Payment,21205,0,COMMERCIAL SUPPLIER
01/03/2024,Dedicated Schools Budget,Personal Information - Redacted,Schools - Transfer Payment,8876,0,VENDOR
01/03/2024,Dedicated Schools Budget,Personal Information - Redacted,Schools - Transfer Payment,24493,0,NON COMMERCIAL SUPPLIER
01/03/2024,Dedicated Schools Budget,Personal Information - Redacted,Schools - Transfer Payment,2788,0,VENDOR
01/03/2024,Dedicated Schools Budget,Personal Information - Redacted,Schools - Transfer Payment,17716,0,VENDOR
01/03/2024,Dedicated Schools Budget,Personal Information - Redacted,Schools - Transfer Payment,30148.94,0,NON COMMERCIAL SUPPLIER
01/03/2024,Dedicated Schools Budget,Personal Information - Redacted,Schools - Transfer Payment,13141.04,0,NON COMMERCIAL SUPPLIER
01/03/2024,Adults & Health,Rosy Care Limited,Payments To Voluntary Sector,100,0,NON COMMERCIAL SUPPLIER
01/03/2024,Adults & Health,Rosy Care Limited,Daycare - Private Contractors Payment,550,0,NON COMMERCIAL SUPPLIER
01/03/2024,Adults & Health,Rosy Care Limited,Payments To Voluntary Sector,80,0,NON COMMERCIAL SUPPLIER
01/03/2024,Adults & Health,Rosy Care Limited,Daycare - Private Contractors Payment,440,0,NON COMMERCIAL SUPPLIER
01/03/2024,Adults & Health,Rosy Care Limited,Payments To Voluntary Sector,80,0,NON COMMERCIAL SUPPLIER
01/03/2024,Adults & Health,Rosy Care Limited,Daycare - Private Contractors Payment,440,0,NON COMMERCIAL SUPPLIER
01/03/2024,Adults & Health,Rosy Care Limited,Payments To Voluntary Sector,60,0,NON COMMERCIAL SUPPLIER
01/03/2024,Adults & Health,Rosy Care Limited,Daycare - Private Contractors Payment,330,0,NON COMMERCIAL SUPPLIER
01/03/2024,Housing Revenue Account,Barnes & Partners Solicitors,Legal Fees,11500,0,LEGAL SERVICES
01/03/2024,Dedicated Schools Budget,Golden Circle Tuition Limited,Professional Services - General,2190,0,COMMERCIAL SUPPLIER
01/03/2024,Children and Young People,Youth Reality Homes Ltd,Supported Other Accommodation - Private Contractors Payment,995,0,NON COMMERCIAL SUPPLIER
01/03/2024,Children and Young People,Youth Reality Homes Ltd,Supported Other Accommodation - Private Contractors Payment,995,0,NON COMMERCIAL SUPPLIER
01/03/2024,Children and Young People,Youth Reality Homes Ltd,Supported Other Accommodation - Private Contractors Payment,995,0,NON COMMERCIAL SUPPLIER
01/03/2024,Children and Young People,Youth Reality Homes Ltd,Supported Other Accommodation - Private Contractors Payment,995,0,NON COMMERCIAL SUPPLIER
01/03/2024,Children and Young People,Youth Reality Homes Ltd,Supported Other Accommodation - Private Contractors Payment,995,0,NON COMMERCIAL SUPPLIER
01/03/2024,Children and Young People,Youth Reality Homes Ltd,Supported Other Accommodation - Private Contractors Payment,995,0,NON COMMERCIAL SUPPLIER
01/03/2024,Children and Young People,Youth Reality Homes Ltd,Supported Other Accommodation - Private Contractors Payment,995,0,NON COMMERCIAL SUPPLIER
01/03/2024,Children and Young People,Youth Reality Homes Ltd,Supported Other Accommodation - Private Contractors Payment,995,0,NON COMMERCIAL SUPPLIER
01/03/2024,Children and Young People,Youth Reality Homes Ltd,Supported Other Accommodation - Private Contractors Payment,995,0,NON COMMERCIAL SUPPLIER
01/03/2024,Children and Young People,Youth Reality Homes Ltd,Supported Other Accommodation - Private Contractors Payment,995,0,NON COMMERCIAL SUPPLIER
01/03/2024,Children and Young People,Youth Reality Homes Ltd,Supported Other Accommodation - Private Contractors Payment,995,0,NON COMMERCIAL SUPPLIER
01/03/2024,Children and Young People,Youth Reality Homes Ltd,Supported Other Accommodation - Private Contractors Payment,995,0,NON COMMERCIAL SUPPLIER
01/03/2024,Children and Young People,Youth Reality Homes Ltd,Supported Other Accommodation - Private Contractors Payment,995,0,NON COMMERCIAL SUPPLIER
01/03/2024,Children and Young People,Youth Reality Homes Ltd,Supported Other Accommodation - Private Contractors Payment,995,0,NON COMMERCIAL SUPPLIER
01/03/2024,Children and Young People,Youth Reality Homes Ltd,Supported Other Accommodation - Private Contractors Payment,995,0,NON COMMERCIAL SUPPLIER
01/03/2024,Children and Young People,Youth Reality Homes Ltd,Supported Other Accommodation - Private Contractors Payment,995,0,NON COMMERCIAL SUPPLIER
01/03/2024,Children and Young People,Youth Reality Homes Ltd,Supported Other Accommodation - Private Contractors Payment,995,0,NON COMMERCIAL SUPPLIER
01/03/2024,Children and Young People,Youth Reality Homes Ltd,Supported Other Accommodation - Private Contractors Payment,995,0,NON COMMERCIAL SUPPLIER
01/03/2024,Children and Young People,Youth Reality Homes Ltd,Supported Other Accommodation - Private Contractors Payment,995,0,NON COMMERCIAL SUPPLIER
01/03/2024,Children and Young People,Youth Reality Homes Ltd,Supported Other Accommodation - Private Contractors Payment,995,0,NON COMMERCIAL SUPPLIER
01/03/2024,Children and Young People,Youth Reality Homes Ltd,Supported Other Accommodation - Private Contractors Payment,995,0,NON COMMERCIAL SUPPLIER
01/03/2024,Children and Young People,Youth Reality Homes Ltd,Supported Other Accommodation - Private Contractors Payment,995,0,NON COMMERCIAL SUPPLIER
01/03/2024,Children and Young People,Youth Reality Homes Ltd,Supported Other Accommodation - Private Contractors Payment,995,0,NON COMMERCIAL SUPPLIER
01/03/2024,Children and Young People,Youth Reality Homes Ltd,Supported Other Accommodation - Private Contractors Payment,995,0,NON COMMERCIAL SUPPLIER
01/03/2024,Children and Young People,Youth Reality Homes Ltd,Supported Other Accommodation - Private Contractors Payment,995,0,NON COMMERCIAL SUPPLIER
01/03/2024,Children and Young People,Youth Reality Homes Ltd,Supported Other Accommodation - Private Contractors Payment,995,0,NON COMMERCIAL SUPPLIER
01/03/2024,Children and Young People,Youth Reality Homes Ltd,Supported Other Accommodation - Private Contractors Payment,995,0,NON COMMERCIAL SUPPLIER
01/03/2024,Children and Young People,Youth Reality Homes Ltd,Supported Other Accommodation - Private Contractors Payment,995,0,NON COMMERCIAL SUPPLIER
01/03/2024,Children and Young People,Youth Reality Homes Ltd,Supported Other Accommodation - Private Contractors Payment,995,0,NON COMMERCIAL SUPPLIER
01/03/2024,Children and Young People,Youth Reality Homes Ltd,Supported Other Accommodation - Private Contractors Payment,995,0,NON COMMERCIAL SUPPLIER
01/03/2024,Children and Young People,Youth Reality Homes Ltd,Supported Other Accommodation - Private Contractors Payment,995,0,NON COMMERCIAL SUPPLIER
01/03/2024,Children and Young People,PFS Prepaid Financial Services,Client Expenses - Third Party,1214,0,INDIVIDUALS
01/03/2024,Children and Young People,Youth Reality Homes Ltd,Supported Other Accommodation - Private Contractors Payment,995,0,NON COMMERCIAL SUPPLIER
01/03/2024,Children and Young People,Youth Reality Homes Ltd,Supported Other Accommodation - Private Contractors Payment,995,0,NON COMMERCIAL SUPPLIER
01/03/2024,Children and Young People,Youth Reality Homes Ltd,Supported Other Accommodation - Private Contractors Payment,995,0,NON COMMERCIAL SUPPLIER
01/03/2024,Children and Young People,Youth Reality Homes Ltd,Supported Other Accommodation - Private Contractors Payment,995,0,NON COMMERCIAL SUPPLIER
01/03/2024,Children and Young People,Youth Reality Homes Ltd,Supported Other Accommodation - Private Contractors Payment,426.43,0,NON COMMERCIAL SUPPLIER
01/03/2024,Children and Young People,PFS Prepaid Financial Services,Equipment & Adaptation - Private Contractors Payment,373.58,0,INDIVIDUALS
01/03/2024,Children and Young People,PFS Prepaid Financial Services,Equipment & Adaptation - Private Contractors Payment,373.58,0,INDIVIDUALS
01/03/2024,Children and Young People,PFS Prepaid Financial Services,Weekly Allowances - Private Contractors Payment,268,0,INDIVIDUALS
01/03/2024,Children and Young People,PFS Prepaid Financial Services,Membership And Subscriptions,777.86,0,INDIVIDUALS
01/03/2024,Children and Young People,PFS Prepaid Financial Services,Payment To Private Sector Landlords (Psl),922.25,0,INDIVIDUALS
01/03/2024,Children and Young People,PFS Prepaid Financial Services,Client Expenses - Third Party,481.14,0,INDIVIDUALS
01/03/2024,Children and Young People,PFS Prepaid Financial Services,Client Expenses - Third Party,525,0,INDIVIDUALS
01/03/2024,Children and Young People,PFS Prepaid Financial Services,Client Expenses - Third Party,262.82,0,INDIVIDUALS
01/03/2024,Children and Young People,PFS Prepaid Financial Services,Additional Placements - Third Party,600,0,INDIVIDUALS
01/03/2024,Children and Young People,Youth Reality Homes Ltd,Supported Other Accommodation - Private Contractors Payment,568.57,0,NON COMMERCIAL SUPPLIER
01/03/2024,Children and Young People,British Telecommunications plc,Land Line Telephone Costs,449.91,0,COMMERCIAL SUPPLIER
01/03/2024,oneSource,Bdi Securities,Security Services (Excluding Premises),1044,0,COMMERCIAL SUPPLIER
01/03/2024,oneSource,Bdi Securities,Security Services (Excluding Premises),304,0,COMMERCIAL SUPPLIER
01/03/2024,Adults & Health,Rosy Care Limited,Daycare - Private Contractors Payment,300,0,NON COMMERCIAL SUPPLIER
01/03/2024,Adults & Health,Rosy Care Limited,Daycare - Private Contractors Payment,300,0,NON COMMERCIAL SUPPLIER
01/03/2024,Adults & Health,Rosy Care Limited,Daycare - Private Contractors Payment,225,0,NON COMMERCIAL SUPPLIER
01/03/2024,Adults & Health,Rosy Care Limited,Daycare - Private Contractors Payment,375,0,NON COMMERCIAL SUPPLIER
01/03/2024,Housing Revenue Account,ABS Lawyers LTD,Legal Fees,1000,0,COMMERCIAL SUPPLIER
01/03/2024,Housing Revenue Account,Hodge Jones & Allen Solicitors LLP,Legal Fees,3000,0,COMMERCIAL SUPPLIER
01/03/2024,Housing Revenue Account,Personal Information - Redacted,Compensation,658.11,0,INDIVIDUALS
01/03/2024,Children and Young People,PFS Prepaid Financial Services,Lease - Equipment Furniture And Materials,1433.22,0,INDIVIDUALS
01/03/2024,RMS,Hmg building services ltd,Private Contractors Payment - Other,4875,0,CIS
01/03/2024,RMS,Hmg building services ltd,Private Contractors Payment - Other,1098.5,0,CIS
01/03/2024,RMS,Hmg building services ltd,Private Contractors Payment - Other,1250,0,CIS
01/03/2024,RMS,Hmg building services ltd,Private Contractors Payment - Other,2875,0,CIS
01/03/2024,RMS,Hmg building services ltd,Private Contractors Payment - Other,1500,0,CIS
01/03/2024,RMS,Hmg building services ltd,Private Contractors Payment - Other,1500,0,CIS
01/03/2024,RMS,Hmg building services ltd,Private Contractors Payment - Other,1266.5,0,CIS
01/03/2024,RMS,Hmg building services ltd,Private Contractors Payment - Other,315,0,CIS
01/03/2024,RMS,Hmg building services ltd,Private Contractors Payment - Other,38,0,CIS
01/03/2024,RMS,Hmg building services ltd,Private Contractors Payment - Other,1770,0,CIS
01/03/2024,RMS,Hmg building services ltd,Private Contractors Payment - Other,500,0,CIS
01/03/2024,RMS,Hmg building services ltd,Private Contractors Payment - Other,315,0,CIS
01/03/2024,RMS,Hmg building services ltd,Private Contractors Payment - Other,46,0,CIS
01/03/2024,RMS,Hmg building services ltd,Private Contractors Payment - Other,315,0,CIS
01/03/2024,RMS,Hmg building services ltd,Private Contractors Payment - Other,2691.94,0,CIS
01/03/2024,RMS,Hmg building services ltd,Private Contractors Payment - Other,1000,0,CIS
01/03/2024,RMS,Hmg building services ltd,Private Contractors Payment - Other,782.24,0,CIS
01/03/2024,RMS,Hmg building services ltd,Private Contractors Payment - Other,735.11,0,CIS
01/03/2024,RMS,Hmg building services ltd,Private Contractors Payment - Other,900,0,CIS
01/03/2024,RMS,Hmg building services ltd,Private Contractors Payment - Other,267.8,0,CIS
01/03/2024,RMS,Hmg building services ltd,Private Contractors Payment - Other,1500,0,CIS
01/03/2024,RMS,Hmg building services ltd,Private Contractors Payment - Other,750,0,CIS
01/03/2024,RMS,Hmg building services ltd,Private Contractors Payment - Other,218.65,0,CIS
01/03/2024,RMS,Hmg building services ltd,Private Contractors Payment - Other,7500,0,CIS
01/03/2024,RMS,Hmg building services ltd,Private Contractors Payment - Other,7500,0,CIS
01/03/2024,RMS,Hmg building services ltd,Private Contractors Payment - Other,2250,0,CIS
01/03/2024,RMS,Hmg building services ltd,Private Contractors Payment - Other,2300,0,CIS
01/03/2024,RMS,Hmg building services ltd,Private Contractors Payment - Other,1449.5,0,CIS
01/03/2024,RMS,Hmg building services ltd,Private Contractors Payment - Other,315,0,CIS
01/03/2024,RMS,Hmg building services ltd,Private Contractors Payment - Other,47,0,CIS
01/03/2024,RMS,Hmg building services ltd,Private Contractors Payment - Other,315,0,CIS
01/03/2024,Environment and Sustainable Transport,Kenson Contractors (Benington) Ltd,"Maintenance - Equipment, Furniture And Materials",22809.04,0,COMMERCIAL SUPPLIER
01/03/2024,Dedicated Schools Budget,Newham College of Further Education,Professional Services - General,672051.5,0,COMMERCIAL SUPPLIER
01/03/2024,Dedicated Schools Budget,Newham College of Further Education,Professional Services - General,672051.5,0,COMMERCIAL SUPPLIER
01/03/2024,Environment and Sustainable Transport,Chipside Ltd,Private Contractors Payment - Other,660,0,COMMERCIAL SUPPLIER
01/03/2024,RMS,T & D Glassworks Ltd,Private Contractors Payment - Other,224.6,0,COMMERCIAL SUPPLIER
01/03/2024,Adults & Health,Voiceability,Private Contractors Payment - Other,15625,0,COMMERCIAL SUPPLIER
01/03/2024,Resources,Education Support (Newham) Ltd,"Maintenance - Equipment, Furniture And Materials",371541.72,0,VENDOR
01/03/2024,Marketing,Stratford Seventh-day Adventish Church,Private Contractors Payment - Other,500,0,NON COMMERCIAL SUPPLIER
01/03/2024,Inclusive Economy & Housing,Castle Water Ltd,Water And Sewerage,153.78,0,COMMERCIAL SUPPLIER
01/03/2024,Inclusive Economy & Housing,Castle Water Ltd,Water And Sewerage,134.11,0,COMMERCIAL SUPPLIER
01/03/2024,Adults & Health,Castle Water Ltd,Water And Sewerage,696.49,0,COMMERCIAL SUPPLIER
01/03/2024,Corporate Budgets,Tradition (U.K) Ltd,Debt Management Expenses,1479.45,0,VENDOR
01/03/2024,Children and Young People,Personal Information - Redacted,Vehicle Hire,1120,0,INDIVIDUALS
01/03/2024,Children and Young People,Personal Information - Redacted,Vehicle Hire,528,0,INDIVIDUALS
01/03/2024,Children and Young People,Personal Information - Redacted,Vehicle Hire,550,0,INDIVIDUALS
01/03/2024,Children and Young People,Personal Information - Redacted,Vehicle Hire,396,0,INDIVIDUALS
01/03/2024,Children and Young People,Personal Information - Redacted,Vehicle Hire,320,0,INDIVIDUALS
01/03/2024,Children and Young People,Personal Information - Redacted,Vehicle Hire,1056,0,INDIVIDUALS
01/03/2024,Children and Young People,Personal Information - Redacted,Vehicle Hire,440,0,INDIVIDUALS
01/03/2024,Children and Young People,Personal Information - Redacted,Vehicle Hire,1320,0,INDIVIDUALS
01/03/2024,Children and Young People,Personal Information - Redacted,Vehicle Hire,345,0,INDIVIDUALS
01/03/2024,Children and Young People,Personal Information - Redacted,Vehicle Hire,1140,0,INDIVIDUALS
01/03/2024,Children and Young People,Personal Information - Redacted,Vehicle Hire,266,0,INDIVIDUALS
01/03/2024,Children and Young People,Personal Information - Redacted,Vehicle Hire,440,0,INDIVIDUALS
01/03/2024,Children and Young People,Personal Information - Redacted,Vehicle Hire,528,0,INDIVIDUALS
01/03/2024,Children and Young People,Personal Information - Redacted,Vehicle Hire,264,0,INDIVIDUALS
01/03/2024,Children and Young People,Personal Information - Redacted,Vehicle Hire,440,0,INDIVIDUALS
01/03/2024,Children and Young People,Personal Information - Redacted,Vehicle Hire,1144,0,INDIVIDUALS
01/03/2024,Children and Young People,Personal Information - Redacted,Vehicle Hire,792,0,INDIVIDUALS
01/03/2024,Children and Young People,Personal Information - Redacted,Vehicle Hire,880,0,INDIVIDUALS
01/03/2024,Children and Young People,Personal Information - Redacted,Vehicle Hire,2340,0,INDIVIDUALS
01/03/2024,Resources,Serjeant Security Ltd,Security Of Premises,12627.27,0,VENDOR
01/03/2024,Resources,Serjeant Security Ltd,Security Of Premises,12456.96,0,VENDOR
02/03/2024,Marketing,The Glass Is Half Full,Events,500,0,NON COMMERCIAL SUPPLIER
02/03/2024,Adults & Health,Ebme Solutions Ltd,"Purchase - Equipment, Furniture And Materials",379.66,0,COMMERCIAL SUPPLIER
02/03/2024,Adults & Health,Ebme Solutions Ltd,"Purchase - Equipment, Furniture And Materials",472.42,0,COMMERCIAL SUPPLIER
02/03/2024,Adults & Health,Ebme Solutions Ltd,"Purchase - Equipment, Furniture And Materials",493.49,0,COMMERCIAL SUPPLIER
02/03/2024,Adults & Health,Ebme Solutions Ltd,"Purchase - Equipment, Furniture And Materials",1468.65,0,COMMERCIAL SUPPLIER
02/03/2024,Adults & Health,Ebme Solutions Ltd,"Purchase - Equipment, Furniture And Materials",1909.03,0,COMMERCIAL SUPPLIER
02/03/2024,Adults & Health,Ebme Solutions Ltd,"Purchase - Equipment, Furniture And Materials",543,0,COMMERCIAL SUPPLIER
02/03/2024,Children and Young People,Personal Information - Redacted,Events,2100,0,NON COMMERCIAL SUPPLIER
02/03/2024,Children and Young People,Mantis Kickboxing Club,Events,666.67,0,NON COMMERCIAL SUPPLIER
02/03/2024,Adults & Health,NewLife Collective Ltd,"Purchase - Equipment, Furniture And Materials",300,0,COMMERCIAL SUPPLIER
03/03/2024,Marketing,The New Black Film Collective,Arts And Leisure Costs,2000,0,VENDOR
03/03/2024,Marketing,The New Black Film Collective,Arts And Leisure Costs,750,0,VENDOR
03/03/2024,Marketing,The New Black Film Collective,Arts And Leisure Costs,300,0,VENDOR
03/03/2024,Transformation,Personal Information - Redacted,Private Contractors Payment - Other,735,0,LOCAL AUTHORITY SERVICES
03/03/2024,Transformation,Personal Information - Redacted,Private Contractors Payment - Other,595,0,LOCAL AUTHORITY SERVICES
03/03/2024,Children and Young People,Personal Information - Redacted,Additional Placements - Third Party,546,0,INDIVIDUALS
03/03/2024,Children and Young People,Personal Information - Redacted,Payment To Private Sector Landlords (Psl),450,0,INDIVIDUALS
03/03/2024,Children and Young People,Alphabet House Nursery School,Equipment & Adaptation - Private Contractors Payment,295,0,COMMERCIAL SUPPLIER
03/03/2024,Children and Young People,Personal Information - Redacted,Client Expenses - Third Party,362,0,FOSTER CARERS
03/03/2024,Children and Young People,Personal Information - Redacted,Client Expenses - Third Party,883.36,0,INDIVIDUALS
03/03/2024,Children and Young People,Personal Information - Redacted,Client Expenses - Third Party,848.36,0,INDIVIDUALS
03/03/2024,Children and Young People,Personal Information - Redacted,Client Expenses - Third Party,1000,0,INDIVIDUALS
03/03/2024,Children and Young People,Personal Information - Redacted,Client Expenses - Third Party,666.67,0,INDIVIDUALS
03/03/2024,Children and Young People,Remedy Recruitment Group Ltd,Staff Recruitment Costs,2025,0,COMMERCIAL SUPPLIER
04/03/2024,Adults & Health,Uniting Friends,Daycare - Private Contractors Payment,140,0,VENDOR
04/03/2024,Adults & Health,Uniting Friends,Daycare - Private Contractors Payment,140,0,VENDOR
04/03/2024,Adults & Health,Uniting Friends,Daycare - Private Contractors Payment,360.25,0,VENDOR
04/03/2024,Adults & Health,Uniting Friends,Daycare - Private Contractors Payment,360.25,0,VENDOR
04/03/2024,Adults & Health,Uniting Friends,Daycare - Private Contractors Payment,360.25,0,VENDOR
04/03/2024,Adults & Health,Uniting Friends,Daycare - Private Contractors Payment,360.25,0,VENDOR
04/03/2024,Environment and Sustainable Transport,Openview Security Solutions Ltd,Security Services (Excluding Premises),6560.36,0,COMMERCIAL SUPPLIER
04/03/2024,Children and Young People,Hope 2 Humanity (CIO),Events,37611.02,0,COMMERCIAL SUPPLIER
04/03/2024,Marketing,Personal Information - Redacted,Events,483.47,0,INDIVIDUALS
04/03/2024,Resources,Sully Form Ltd,"Maintenance - Equipment, Furniture And Materials",280,0,VENDOR
04/03/2024,Adults & Health,London Care Plc,Home Care - Private Contractors Payment,574.56,0,COMMERCIAL SUPPLIER
04/03/2024,Adults & Health,London Care Plc,Home Care - Private Contractors Payment,348.84,0,COMMERCIAL SUPPLIER
04/03/2024,Adults & Health,London Care Plc,Home Care - Private Contractors Payment,41.04,0,COMMERCIAL SUPPLIER
04/03/2024,Adults & Health,London Care Plc,Home Care - Private Contractors Payment,76.95,0,COMMERCIAL SUPPLIER
04/03/2024,Adults & Health,London Care Plc,Home Care - Private Contractors Payment,323.19,0,COMMERCIAL SUPPLIER
04/03/2024,Adults & Health,London Care Plc,Home Care - Private Contractors Payment,30.78,0,COMMERCIAL SUPPLIER
04/03/2024,Adults & Health,London Care Plc,Home Care - Private Contractors Payment,30.78,0,COMMERCIAL SUPPLIER
04/03/2024,Adults & Health,London Care Plc,Home Care - Private Contractors Payment,754.11,0,COMMERCIAL SUPPLIER
04/03/2024,Adults & Health,London Care Plc,Home Care - Private Contractors Payment,20.52,0,COMMERCIAL SUPPLIER
04/03/2024,Adults & Health,London Care Plc,Home Care - Private Contractors Payment,143.64,0,COMMERCIAL SUPPLIER
04/03/2024,Adults & Health,London Care Plc,Home Care - Private Contractors Payment,107.73,0,COMMERCIAL SUPPLIER
04/03/2024,Adults & Health,London Care Plc,Home Care - Private Contractors Payment,61.56,0,COMMERCIAL SUPPLIER
04/03/2024,Adults & Health,London Care Plc,Home Care - Private Contractors Payment,359.1,0,COMMERCIAL SUPPLIER
04/03/2024,Adults & Health,London Care Plc,Home Care - Private Contractors Payment,46.17,0,COMMERCIAL SUPPLIER
04/03/2024,Adults & Health,London Care Plc,Home Care - Private Contractors Payment,215.46,0,COMMERCIAL SUPPLIER
04/03/2024,Adults & Health,London Care Plc,Home Care - Private Contractors Payment,41.04,0,COMMERCIAL SUPPLIER
04/03/2024,Adults & Health,London Care Plc,Respite Care - Private Contractors Payment,41.04,0,COMMERCIAL SUPPLIER
04/03/2024,Adults & Health,London Care Plc,Daycare - Private Contractors Payment,102.6,0,COMMERCIAL SUPPLIER
04/03/2024,Adults & Health,London Care Plc,Home Care - Private Contractors Payment,123.12,0,COMMERCIAL SUPPLIER
04/03/2024,Adults & Health,London Care Plc,Home Care - Private Contractors Payment,143.64,0,COMMERCIAL SUPPLIER
04/03/2024,Adults & Health,London Care Plc,Daycare - Private Contractors Payment,41.04,0,COMMERCIAL SUPPLIER
04/03/2024,Adults & Health,London Care Plc,Home Care - Private Contractors Payment,251.37,0,COMMERCIAL SUPPLIER
04/03/2024,Adults & Health,London Care Plc,Home Care - Private Contractors Payment,107.73,0,COMMERCIAL SUPPLIER
04/03/2024,Adults & Health,London Care Plc,Home Care - Private Contractors Payment,359.1,0,COMMERCIAL SUPPLIER
04/03/2024,Adults & Health,London Care Plc,Home Care - Private Contractors Payment,360.46,0,COMMERCIAL SUPPLIER
04/03/2024,Adults & Health,London Care Plc,Home Care - Private Contractors Payment,179.55,0,COMMERCIAL SUPPLIER
04/03/2024,Adults & Health,London Care Plc,Home Care - Private Contractors Payment,318.06,0,COMMERCIAL SUPPLIER
04/03/2024,Adults & Health,London Care Plc,Home Care - Private Contractors Payment,506.48,0,COMMERCIAL SUPPLIER
04/03/2024,Adults & Health,London Care Plc,Home Care - Private Contractors Payment,-430.92,0,COMMERCIAL SUPPLIER
04/03/2024,Adults & Health,London Care Plc,Home Care - Private Contractors Payment,343.71,0,COMMERCIAL SUPPLIER
04/03/2024,Adults & Health,London Care Plc,Home Care - Private Contractors Payment,56.43,0,COMMERCIAL SUPPLIER
04/03/2024,Adults & Health,London Care Plc,Home Care - Private Contractors Payment,71.82,0,COMMERCIAL SUPPLIER
04/03/2024,Adults & Health,London Care Plc,Home Care - Private Contractors Payment,451.44,0,COMMERCIAL SUPPLIER
04/03/2024,Adults & Health,London Care Plc,Home Care - Private Contractors Payment,-327.64,0,COMMERCIAL SUPPLIER
04/03/2024,Adults & Health,London Care Plc,Home Care - Private Contractors Payment,-99.86,0,COMMERCIAL SUPPLIER
04/03/2024,Adults & Health,London Care Plc,Home Care - Private Contractors Payment,-451.44,0,COMMERCIAL SUPPLIER
04/03/2024,Adults & Health,London Care Plc,Home Care - Private Contractors Payment,35.91,0,COMMERCIAL SUPPLIER
04/03/2024,Adults & Health,London Care Plc,Daycare - Private Contractors Payment,61.56,0,COMMERCIAL SUPPLIER
04/03/2024,Adults & Health,London Care Plc,Daycare - Private Contractors Payment,82.08,0,COMMERCIAL SUPPLIER
04/03/2024,Adults & Health,London Care Plc,Home Care - Private Contractors Payment,287.28,0,COMMERCIAL SUPPLIER
04/03/2024,Adults & Health,London Care Plc,Home Care - Private Contractors Payment,71.82,0,COMMERCIAL SUPPLIER
04/03/2024,Adults & Health,London Care Plc,Home Care - Private Contractors Payment,323.19,0,COMMERCIAL SUPPLIER
04/03/2024,Adults & Health,London Care Plc,Home Care - Private Contractors Payment,143.64,0,COMMERCIAL SUPPLIER
04/03/2024,Adults & Health,London Care Plc,Home Care - Private Contractors Payment,143.64,0,COMMERCIAL SUPPLIER
04/03/2024,Adults & Health,London Care Plc,Home Care - Private Contractors Payment,251.37,0,COMMERCIAL SUPPLIER
04/03/2024,Adults & Health,London Care Plc,Home Care - Private Contractors Payment,359.1,0,COMMERCIAL SUPPLIER
04/03/2024,Adults & Health,London Care Plc,Home Care - Private Contractors Payment,20.52,0,COMMERCIAL SUPPLIER
04/03/2024,Adults & Health,London Care Plc,Home Care - Private Contractors Payment,61.56,0,COMMERCIAL SUPPLIER
04/03/2024,Adults & Health,London Care Plc,Home Care - Private Contractors Payment,790.02,0,COMMERCIAL SUPPLIER
04/03/2024,Adults & Health,London Care Plc,Respite Care - Private Contractors Payment,41.04,0,COMMERCIAL SUPPLIER
04/03/2024,Adults & Health,London Care Plc,Home Care - Private Contractors Payment,251.37,0,COMMERCIAL SUPPLIER
04/03/2024,Adults & Health,London Care Plc,Home Care - Private Contractors Payment,41.04,0,COMMERCIAL SUPPLIER
04/03/2024,Adults & Health,London Care Plc,Home Care - Private Contractors Payment,707.94,0,COMMERCIAL SUPPLIER
04/03/2024,Adults & Health,London Care Plc,Daycare - Private Contractors Payment,61.56,0,COMMERCIAL SUPPLIER
04/03/2024,Adults & Health,London Care Plc,Home Care - Private Contractors Payment,123.12,0,COMMERCIAL SUPPLIER
04/03/2024,Adults & Health,London Care Plc,Home Care - Private Contractors Payment,30.78,0,COMMERCIAL SUPPLIER
04/03/2024,Adults & Health,London Care Plc,Home Care - Private Contractors Payment,41.04,0,COMMERCIAL SUPPLIER
04/03/2024,Adults & Health,London Care Plc,Home Care - Private Contractors Payment,359.1,0,COMMERCIAL SUPPLIER
04/03/2024,Adults & Health,London Care Plc,Daycare - Private Contractors Payment,287.28,0,COMMERCIAL SUPPLIER
04/03/2024,Adults & Health,London Care Plc,Home Care - Private Contractors Payment,20.52,0,COMMERCIAL SUPPLIER
04/03/2024,Adults & Health,London Care Plc,Home Care - Private Contractors Payment,323.19,0,COMMERCIAL SUPPLIER
04/03/2024,Adults & Health,London Care Plc,Home Care - Private Contractors Payment,179.55,0,COMMERCIAL SUPPLIER
04/03/2024,Adults & Health,London Care Plc,Home Care - Private Contractors Payment,143.64,0,COMMERCIAL SUPPLIER
04/03/2024,Adults & Health,London Care Plc,Home Care - Private Contractors Payment,107.73,0,COMMERCIAL SUPPLIER
04/03/2024,Adults & Health,London Care Plc,Home Care - Private Contractors Payment,610.47,0,COMMERCIAL SUPPLIER
04/03/2024,Adults & Health,London Care Plc,Daycare - Private Contractors Payment,41.04,0,COMMERCIAL SUPPLIER
04/03/2024,Adults & Health,London Care Plc,Daycare - Private Contractors Payment,61.56,0,COMMERCIAL SUPPLIER
04/03/2024,Adults & Health,London Care Plc,Home Care - Private Contractors Payment,323.19,0,COMMERCIAL SUPPLIER
04/03/2024,Adults & Health,London Care Plc,Home Care - Private Contractors Payment,359.1,0,COMMERCIAL SUPPLIER
04/03/2024,Adults & Health,London Care Plc,Home Care - Private Contractors Payment,215.46,0,COMMERCIAL SUPPLIER
04/03/2024,Adults & Health,London Care Plc,Home Care - Private Contractors Payment,117.99,0,COMMERCIAL SUPPLIER
04/03/2024,Adults & Health,London Care Plc,Daycare - Private Contractors Payment,82.08,0,COMMERCIAL SUPPLIER
04/03/2024,Adults & Health,London Care Plc,Daycare - Private Contractors Payment,41.04,0,COMMERCIAL SUPPLIER
04/03/2024,Adults & Health,London Care Plc,Home Care - Private Contractors Payment,20.52,0,COMMERCIAL SUPPLIER
04/03/2024,Adults & Health,London Care Plc,Home Care - Private Contractors Payment,107.73,0,COMMERCIAL SUPPLIER
04/03/2024,Adults & Health,London Care Plc,Home Care - Private Contractors Payment,323.19,0,COMMERCIAL SUPPLIER
04/03/2024,Adults & Health,London Care Plc,Daycare - Private Contractors Payment,51.3,0,COMMERCIAL SUPPLIER
04/03/2024,Adults & Health,London Care Plc,Home Care - Private Contractors Payment,179.55,0,COMMERCIAL SUPPLIER
04/03/2024,Adults & Health,London Care Plc,Daycare - Private Contractors Payment,30.78,0,COMMERCIAL SUPPLIER
04/03/2024,Adults & Health,London Care Plc,Home Care - Private Contractors Payment,41.04,0,COMMERCIAL SUPPLIER
04/03/2024,Adults & Health,London Care Plc,Home Care - Private Contractors Payment,20.52,0,COMMERCIAL SUPPLIER
04/03/2024,Adults & Health,London Care Plc,Home Care - Private Contractors Payment,41.04,0,COMMERCIAL SUPPLIER
04/03/2024,Adults & Health,London Care Plc,Home Care - Private Contractors Payment,251.37,0,COMMERCIAL SUPPLIER
04/03/2024,Adults & Health,London Care Plc,Home Care - Private Contractors Payment,123.12,0,COMMERCIAL SUPPLIER
04/03/2024,Adults & Health,London Care Plc,Home Care - Private Contractors Payment,153.9,0,COMMERCIAL SUPPLIER
04/03/2024,Adults & Health,London Care Plc,Daycare - Private Contractors Payment,20.52,0,COMMERCIAL SUPPLIER
04/03/2024,Adults & Health,London Care Plc,Respite Care - Private Contractors Payment,230.85,0,COMMERCIAL SUPPLIER
04/03/2024,Adults & Health,London Care Plc,Home Care - Private Contractors Payment,30.78,0,COMMERCIAL SUPPLIER
04/03/2024,Adults & Health,London Care Plc,Home Care - Private Contractors Payment,215.46,0,COMMERCIAL SUPPLIER
04/03/2024,Adults & Health,London Care Plc,Home Care - Private Contractors Payment,215.46,0,COMMERCIAL SUPPLIER
04/03/2024,Adults & Health,London Care Plc,Home Care - Private Contractors Payment,143.64,0,COMMERCIAL SUPPLIER
04/03/2024,Adults & Health,London Care Plc,Daycare - Private Contractors Payment,71.82,0,COMMERCIAL SUPPLIER
04/03/2024,Adults & Health,London Care Plc,Home Care - Private Contractors Payment,112.86,0,COMMERCIAL SUPPLIER
04/03/2024,Adults & Health,London Care Plc,Home Care - Private Contractors Payment,220.59,0,COMMERCIAL SUPPLIER
04/03/2024,Adults & Health,London Care Plc,Home Care - Private Contractors Payment,251.37,0,COMMERCIAL SUPPLIER
04/03/2024,Adults & Health,London Care Plc,Home Care - Private Contractors Payment,107.73,0,COMMERCIAL SUPPLIER
04/03/2024,Adults & Health,London Care Plc,Daycare - Private Contractors Payment,102.6,0,COMMERCIAL SUPPLIER
04/03/2024,Adults & Health,London Care Plc,Home Care - Private Contractors Payment,179.55,0,COMMERCIAL SUPPLIER
04/03/2024,Adults & Health,London Care Plc,Daycare - Private Contractors Payment,30.78,0,COMMERCIAL SUPPLIER
04/03/2024,Adults & Health,London Care Plc,Home Care - Private Contractors Payment,107.73,0,COMMERCIAL SUPPLIER
04/03/2024,Adults & Health,London Care Plc,Home Care - Private Contractors Payment,323.19,0,COMMERCIAL SUPPLIER
04/03/2024,Adults & Health,London Care Plc,Home Care - Private Contractors Payment,20.52,0,COMMERCIAL SUPPLIER
04/03/2024,Adults & Health,London Care Plc,Home Care - Private Contractors Payment,107.73,0,COMMERCIAL SUPPLIER
04/03/2024,Adults & Health,London Care Plc,Home Care - Private Contractors Payment,35.91,0,COMMERCIAL SUPPLIER
04/03/2024,Adults & Health,London Care Plc,Home Care - Private Contractors Payment,323.19,0,COMMERCIAL SUPPLIER
04/03/2024,Adults & Health,London Care Plc,Daycare - Private Contractors Payment,102.6,0,COMMERCIAL SUPPLIER
04/03/2024,Adults & Health,London Care Plc,Daycare - Private Contractors Payment,102.6,0,COMMERCIAL SUPPLIER
04/03/2024,Adults & Health,London Care Plc,Home Care - Private Contractors Payment,20.52,0,COMMERCIAL SUPPLIER
04/03/2024,Adults & Health,London Care Plc,Daycare - Private Contractors Payment,30.78,0,COMMERCIAL SUPPLIER
04/03/2024,Adults & Health,London Care Plc,Daycare - Private Contractors Payment,41.04,0,COMMERCIAL SUPPLIER
04/03/2024,Adults & Health,London Care Plc,Home Care - Private Contractors Payment,30.78,0,COMMERCIAL SUPPLIER
04/03/2024,Adults & Health,London Care Plc,Daycare - Private Contractors Payment,30.78,0,COMMERCIAL SUPPLIER
04/03/2024,Adults & Health,London Care Plc,Home Care - Private Contractors Payment,107.73,0,COMMERCIAL SUPPLIER
04/03/2024,Adults & Health,London Care Plc,Home Care - Private Contractors Payment,35.91,0,COMMERCIAL SUPPLIER
04/03/2024,Adults & Health,London Care Plc,Home Care - Private Contractors Payment,323.19,0,COMMERCIAL SUPPLIER
04/03/2024,Adults & Health,London Care Plc,Home Care - Private Contractors Payment,251.37,0,COMMERCIAL SUPPLIER
04/03/2024,Adults & Health,London Care Plc,Home Care - Private Contractors Payment,20.52,0,COMMERCIAL SUPPLIER
04/03/2024,Adults & Health,London Care Plc,Home Care - Private Contractors Payment,30.78,0,COMMERCIAL SUPPLIER
04/03/2024,Adults & Health,London Care Plc,Home Care - Private Contractors Payment,138.51,0,COMMERCIAL SUPPLIER
04/03/2024,Adults & Health,London Care Plc,Home Care - Private Contractors Payment,20.52,0,COMMERCIAL SUPPLIER
04/03/2024,Adults & Health,London Care Plc,Home Care - Private Contractors Payment,71.82,0,COMMERCIAL SUPPLIER
04/03/2024,Adults & Health,London Care Plc,Home Care - Private Contractors Payment,76.95,0,COMMERCIAL SUPPLIER
04/03/2024,Adults & Health,London Care Plc,Home Care - Private Contractors Payment,46.17,0,COMMERCIAL SUPPLIER
04/03/2024,Adults & Health,London Care Plc,Home Care - Private Contractors Payment,415.53,0,COMMERCIAL SUPPLIER
04/03/2024,Adults & Health,London Care Plc,Home Care - Private Contractors Payment,323.19,0,COMMERCIAL SUPPLIER
04/03/2024,Adults & Health,London Care Plc,Home Care - Private Contractors Payment,107.73,0,COMMERCIAL SUPPLIER
04/03/2024,Adults & Health,London Care Plc,Home Care - Private Contractors Payment,287.28,0,COMMERCIAL SUPPLIER
04/03/2024,Adults & Health,London Care Plc,Home Care - Private Contractors Payment,143.64,0,COMMERCIAL SUPPLIER
04/03/2024,Adults & Health,London Care Plc,Home Care - Private Contractors Payment,754.11,0,COMMERCIAL SUPPLIER
04/03/2024,Adults & Health,London Care Plc,Home Care - Private Contractors Payment,107.73,0,COMMERCIAL SUPPLIER
04/03/2024,Adults & Health,London Care Plc,Home Care - Private Contractors Payment,179.55,0,COMMERCIAL SUPPLIER
04/03/2024,Adults & Health,London Care Plc,Home Care - Private Contractors Payment,107.73,0,COMMERCIAL SUPPLIER
04/03/2024,Adults & Health,London Care Plc,Home Care - Private Contractors Payment,610.47,0,COMMERCIAL SUPPLIER
04/03/2024,Adults & Health,London Care Plc,Daycare - Private Contractors Payment,41.04,0,COMMERCIAL SUPPLIER
04/03/2024,Adults & Health,London Care Plc,Daycare - Private Contractors Payment,102.6,0,COMMERCIAL SUPPLIER
04/03/2024,Adults & Health,London Care Plc,Daycare - Private Contractors Payment,80.71,0,COMMERCIAL SUPPLIER
04/03/2024,Adults & Health,London Care Plc,Home Care - Private Contractors Payment,102.6,0,COMMERCIAL SUPPLIER
04/03/2024,Adults & Health,London Care Plc,Home Care - Private Contractors Payment,779.76,0,COMMERCIAL SUPPLIER
04/03/2024,Adults & Health,London Care Plc,Daycare - Private Contractors Payment,254.1,0,COMMERCIAL SUPPLIER
04/03/2024,Adults & Health,London Care Plc,Home Care - Private Contractors Payment,107.73,0,COMMERCIAL SUPPLIER
04/03/2024,Adults & Health,London Care Plc,Home Care - Private Contractors Payment,287.28,0,COMMERCIAL SUPPLIER
04/03/2024,Adults & Health,London Care Plc,Home Care - Private Contractors Payment,790.02,0,COMMERCIAL SUPPLIER
04/03/2024,Adults & Health,London Care Plc,Home Care - Private Contractors Payment,123.12,0,COMMERCIAL SUPPLIER
04/03/2024,Adults & Health,London Care Plc,Respite Care - Private Contractors Payment,41.04,0,COMMERCIAL SUPPLIER
04/03/2024,Adults & Health,London Care Plc,Home Care - Private Contractors Payment,179.55,0,COMMERCIAL SUPPLIER
04/03/2024,Adults & Health,London Care Plc,Home Care - Private Contractors Payment,107.73,0,COMMERCIAL SUPPLIER
04/03/2024,Adults & Health,London Care Plc,Home Care - Private Contractors Payment,292.41,0,COMMERCIAL SUPPLIER
04/03/2024,Adults & Health,London Care Plc,Home Care - Private Contractors Payment,179.55,0,COMMERCIAL SUPPLIER
04/03/2024,Adults & Health,London Care Plc,Daycare - Private Contractors Payment,-133.38,0,COMMERCIAL SUPPLIER
04/03/2024,Adults & Health,London Care Plc,Home Care - Private Contractors Payment,61.56,0,COMMERCIAL SUPPLIER
04/03/2024,Adults & Health,London Care Plc,Home Care - Private Contractors Payment,41.04,0,COMMERCIAL SUPPLIER
04/03/2024,Adults & Health,London Care Plc,Home Care - Private Contractors Payment,395.01,0,COMMERCIAL SUPPLIER
04/03/2024,Adults & Health,London Care Plc,Daycare - Private Contractors Payment,61.56,0,COMMERCIAL SUPPLIER
04/03/2024,Adults & Health,London Care Plc,Daycare - Private Contractors Payment,82.08,0,COMMERCIAL SUPPLIER
04/03/2024,Adults & Health,London Care Plc,Home Care - Private Contractors Payment,46.17,0,COMMERCIAL SUPPLIER
04/03/2024,Adults & Health,London Care Plc,Home Care - Private Contractors Payment,348.84,0,COMMERCIAL SUPPLIER
04/03/2024,Adults & Health,London Care Plc,Daycare - Private Contractors Payment,20.52,0,COMMERCIAL SUPPLIER
04/03/2024,Adults & Health,London Care Plc,Home Care - Private Contractors Payment,20.52,0,COMMERCIAL SUPPLIER
04/03/2024,Adults & Health,London Care Plc,Reablement,107.73,0,COMMERCIAL SUPPLIER
04/03/2024,Adults & Health,London Care Plc,Home Care - Private Contractors Payment,102.6,0,COMMERCIAL SUPPLIER
04/03/2024,Adults & Health,London Care Plc,Home Care - Private Contractors Payment,194.94,0,COMMERCIAL SUPPLIER
04/03/2024,Adults & Health,London Care Plc,Daycare - Private Contractors Payment,82.08,0,COMMERCIAL SUPPLIER
04/03/2024,Adults & Health,London Care Plc,Home Care - Private Contractors Payment,251.37,0,COMMERCIAL SUPPLIER
04/03/2024,Adults & Health,London Care Plc,Home Care - Private Contractors Payment,338.58,0,COMMERCIAL SUPPLIER
04/03/2024,Adults & Health,London Care Plc,Daycare - Private Contractors Payment,41.04,0,COMMERCIAL SUPPLIER
04/03/2024,Adults & Health,London Care Plc,Home Care - Private Contractors Payment,71.82,0,COMMERCIAL SUPPLIER
04/03/2024,Adults & Health,London Care Plc,Home Care - Private Contractors Payment,-183.31,0,COMMERCIAL SUPPLIER
04/03/2024,Adults & Health,London Care Plc,Respite Care - Private Contractors Payment,230.85,0,COMMERCIAL SUPPLIER
04/03/2024,Adults & Health,London Care Plc,Daycare - Private Contractors Payment,112.86,0,COMMERCIAL SUPPLIER
04/03/2024,Adults & Health,London Care Plc,Home Care - Private Contractors Payment,251.37,0,COMMERCIAL SUPPLIER
04/03/2024,Adults & Health,London Care Plc,Home Care - Private Contractors Payment,707.94,0,COMMERCIAL SUPPLIER
04/03/2024,Adults & Health,London Care Plc,Home Care - Private Contractors Payment,251.37,0,COMMERCIAL SUPPLIER
04/03/2024,Adults & Health,London Care Plc,Home Care - Private Contractors Payment,348.84,0,COMMERCIAL SUPPLIER
04/03/2024,Adults & Health,London Care Plc,Home Care - Private Contractors Payment,359.1,0,COMMERCIAL SUPPLIER
04/03/2024,Adults & Health,London Care Plc,Daycare - Private Contractors Payment,-131.33,0,COMMERCIAL SUPPLIER
04/03/2024,Adults & Health,London Care Plc,Home Care - Private Contractors Payment,46.17,0,COMMERCIAL SUPPLIER
04/03/2024,Adults & Health,London Care Plc,Daycare - Private Contractors Payment,51.3,0,COMMERCIAL SUPPLIER
04/03/2024,Adults & Health,London Care Plc,Home Care - Private Contractors Payment,251.37,0,COMMERCIAL SUPPLIER
04/03/2024,Adults & Health,London Care Plc,Home Care - Private Contractors Payment,323.19,0,COMMERCIAL SUPPLIER
04/03/2024,Adults & Health,London Care Plc,Home Care - Private Contractors Payment,71.82,0,COMMERCIAL SUPPLIER
04/03/2024,Adults & Health,London Care Plc,Home Care - Private Contractors Payment,179.55,0,COMMERCIAL SUPPLIER
04/03/2024,Adults & Health,London Care Plc,Home Care - Private Contractors Payment,179.55,0,COMMERCIAL SUPPLIER
04/03/2024,Adults & Health,London Care Plc,Home Care - Private Contractors Payment,128.25,0,COMMERCIAL SUPPLIER
04/03/2024,Adults & Health,London Care Plc,Reablement,20.52,0,COMMERCIAL SUPPLIER
04/03/2024,Adults & Health,London Care Plc,Home Care - Private Contractors Payment,466.83,0,COMMERCIAL SUPPLIER
04/03/2024,Adults & Health,London Care Plc,Home Care - Private Contractors Payment,107.73,0,COMMERCIAL SUPPLIER
04/03/2024,Adults & Health,London Care Plc,Home Care - Private Contractors Payment,646.38,0,COMMERCIAL SUPPLIER
04/03/2024,Adults & Health,London Care Plc,Home Care - Private Contractors Payment,251.37,0,COMMERCIAL SUPPLIER
04/03/2024,Adults & Health,London Care Plc,Home Care - Private Contractors Payment,138.51,0,COMMERCIAL SUPPLIER
04/03/2024,Adults & Health,London Care Plc,Home Care - Private Contractors Payment,102.6,0,COMMERCIAL SUPPLIER
04/03/2024,Adults & Health,London Care Plc,Daycare - Private Contractors Payment,20.52,0,COMMERCIAL SUPPLIER
04/03/2024,Adults & Health,London Care Plc,Home Care - Private Contractors Payment,251.37,0,COMMERCIAL SUPPLIER
04/03/2024,Adults & Health,London Care Plc,Home Care - Private Contractors Payment,143.64,0,COMMERCIAL SUPPLIER
04/03/2024,Adults & Health,London Care Plc,Respite Care - Private Contractors Payment,61.56,0,COMMERCIAL SUPPLIER
04/03/2024,Adults & Health,London Care Plc,Home Care - Private Contractors Payment,46.17,0,COMMERCIAL SUPPLIER
04/03/2024,Adults & Health,London Care Plc,Home Care - Private Contractors Payment,323.19,0,COMMERCIAL SUPPLIER
04/03/2024,Adults & Health,London Care Plc,Home Care - Private Contractors Payment,359.1,0,COMMERCIAL SUPPLIER
04/03/2024,Adults & Health,London Care Plc,Daycare - Private Contractors Payment,61.56,0,COMMERCIAL SUPPLIER
04/03/2024,Adults & Health,London Care Plc,Home Care - Private Contractors Payment,179.55,0,COMMERCIAL SUPPLIER
04/03/2024,Adults & Health,London Care Plc,Respite Care - Private Contractors Payment,41.04,0,COMMERCIAL SUPPLIER
04/03/2024,Adults & Health,London Care Plc,Home Care - Private Contractors Payment,215.46,0,COMMERCIAL SUPPLIER
04/03/2024,Adults & Health,London Care Plc,Home Care - Private Contractors Payment,251.37,0,COMMERCIAL SUPPLIER
04/03/2024,Adults & Health,London Care Plc,Daycare - Private Contractors Payment,76.56,0,COMMERCIAL SUPPLIER
04/03/2024,Adults & Health,London Care Plc,Home Care - Private Contractors Payment,112.18,0,COMMERCIAL SUPPLIER
04/03/2024,Adults & Health,London Care Plc,Daycare - Private Contractors Payment,53.35,0,COMMERCIAL SUPPLIER
04/03/2024,Adults & Health,London Care Plc,Home Care - Private Contractors Payment,71.82,0,COMMERCIAL SUPPLIER
04/03/2024,Adults & Health,London Care Plc,Home Care - Private Contractors Payment,184.68,0,COMMERCIAL SUPPLIER
04/03/2024,Adults & Health,London Care Plc,Home Care - Private Contractors Payment,179.55,0,COMMERCIAL SUPPLIER
04/03/2024,Adults & Health,London Care Plc,Home Care - Private Contractors Payment,359.1,0,COMMERCIAL SUPPLIER
04/03/2024,Adults & Health,London Care Plc,Reablement,20.52,0,COMMERCIAL SUPPLIER
04/03/2024,Adults & Health,London Care Plc,Home Care - Private Contractors Payment,215.46,0,COMMERCIAL SUPPLIER
04/03/2024,Adults & Health,London Care Plc,Home Care - Private Contractors Payment,82.08,0,COMMERCIAL SUPPLIER
04/03/2024,Adults & Health,London Care Plc,Daycare - Private Contractors Payment,1.03,0,COMMERCIAL SUPPLIER
04/03/2024,Adults & Health,London Care Plc,Home Care - Private Contractors Payment,322.51,0,COMMERCIAL SUPPLIER
04/03/2024,Adults & Health,London Care Plc,Home Care - Private Contractors Payment,410.01,0,COMMERCIAL SUPPLIER
04/03/2024,Adults & Health,London Care Plc,Home Care - Private Contractors Payment,35.91,0,COMMERCIAL SUPPLIER
04/03/2024,Adults & Health,London Care Plc,Home Care - Private Contractors Payment,184.68,0,COMMERCIAL SUPPLIER
04/03/2024,Adults & Health,London Care Plc,Home Care - Private Contractors Payment,323.19,0,COMMERCIAL SUPPLIER
04/03/2024,Adults & Health,London Care Plc,Home Care - Private Contractors Payment,35.91,0,COMMERCIAL SUPPLIER
04/03/2024,Adults & Health,London Care Plc,Home Care - Private Contractors Payment,87.21,0,COMMERCIAL SUPPLIER
04/03/2024,Adults & Health,London Care Plc,Home Care - Private Contractors Payment,133.38,0,COMMERCIAL SUPPLIER
04/03/2024,Adults & Health,London Care Plc,Home Care - Private Contractors Payment,107.73,0,COMMERCIAL SUPPLIER
04/03/2024,Adults & Health,London Care Plc,Reablement,20.52,0,COMMERCIAL SUPPLIER
04/03/2024,Adults & Health,London Care Plc,Home Care - Private Contractors Payment,790.02,0,COMMERCIAL SUPPLIER
04/03/2024,Adults & Health,London Care Plc,Home Care - Private Contractors Payment,348.84,0,COMMERCIAL SUPPLIER
04/03/2024,Adults & Health,London Care Plc,Home Care - Private Contractors Payment,82.76,0,COMMERCIAL SUPPLIER
04/03/2024,Adults & Health,London Care Plc,Home Care - Private Contractors Payment,71.82,0,COMMERCIAL SUPPLIER
04/03/2024,Adults & Health,London Care Plc,Home Care - Private Contractors Payment,30.78,0,COMMERCIAL SUPPLIER
04/03/2024,Adults & Health,London Care Plc,Home Care - Private Contractors Payment,107.73,0,COMMERCIAL SUPPLIER
04/03/2024,Adults & Health,London Care Plc,Home Care - Private Contractors Payment,215.46,0,COMMERCIAL SUPPLIER
04/03/2024,Adults & Health,London Care Plc,Home Care - Private Contractors Payment,30.78,0,COMMERCIAL SUPPLIER
04/03/2024,Adults & Health,London Care Plc,Home Care - Private Contractors Payment,323.19,0,COMMERCIAL SUPPLIER
04/03/2024,Adults & Health,London Care Plc,Home Care - Private Contractors Payment,159.37,0,COMMERCIAL SUPPLIER
04/03/2024,Adults & Health,London Care Plc,Daycare - Private Contractors Payment,148.38,0,COMMERCIAL SUPPLIER
04/03/2024,Adults & Health,London Care Plc,Home Care - Private Contractors Payment,41.04,0,COMMERCIAL SUPPLIER
04/03/2024,Adults & Health,London Care Plc,Home Care - Private Contractors Payment,143.64,0,COMMERCIAL SUPPLIER
04/03/2024,Adults & Health,London Care Plc,Home Care - Private Contractors Payment,20.52,0,COMMERCIAL SUPPLIER
04/03/2024,Adults & Health,London Care Plc,Home Care - Private Contractors Payment,61.56,0,COMMERCIAL SUPPLIER
04/03/2024,Adults & Health,London Care Plc,Daycare - Private Contractors Payment,71.82,0,COMMERCIAL SUPPLIER
04/03/2024,Adults & Health,London Care Plc,Home Care - Private Contractors Payment,194.94,0,COMMERCIAL SUPPLIER
04/03/2024,Adults & Health,London Care Plc,Home Care - Private Contractors Payment,287.28,0,COMMERCIAL SUPPLIER
04/03/2024,Adults & Health,London Care Plc,Home Care - Private Contractors Payment,30.78,0,COMMERCIAL SUPPLIER
04/03/2024,Adults & Health,London Care Plc,Home Care - Private Contractors Payment,471.96,0,COMMERCIAL SUPPLIER
04/03/2024,Adults & Health,London Care Plc,Home Care - Private Contractors Payment,538.65,0,COMMERCIAL SUPPLIER
04/03/2024,Adults & Health,London Care Plc,Home Care - Private Contractors Payment,20.52,0,COMMERCIAL SUPPLIER
04/03/2024,Adults & Health,London Care Plc,Home Care - Private Contractors Payment,107.73,0,COMMERCIAL SUPPLIER
04/03/2024,Adults & Health,London Care Plc,Home Care - Private Contractors Payment,61.56,0,COMMERCIAL SUPPLIER
04/03/2024,Adults & Health,London Care Plc,Home Care - Private Contractors Payment,46.17,0,COMMERCIAL SUPPLIER
04/03/2024,Adults & Health,London Care Plc,Daycare - Private Contractors Payment,41.04,0,COMMERCIAL SUPPLIER
04/03/2024,Adults & Health,London Care Plc,Home Care - Private Contractors Payment,82.08,0,COMMERCIAL SUPPLIER
04/03/2024,Adults & Health,London Care Plc,Home Care - Private Contractors Payment,179.55,0,COMMERCIAL SUPPLIER
04/03/2024,Adults & Health,London Care Plc,Daycare - Private Contractors Payment,30.78,0,COMMERCIAL SUPPLIER
04/03/2024,Adults & Health,London Care Plc,Home Care - Private Contractors Payment,179.55,0,COMMERCIAL SUPPLIER
04/03/2024,Adults & Health,London Care Plc,Home Care - Private Contractors Payment,215.46,0,COMMERCIAL SUPPLIER
04/03/2024,Adults & Health,London Care Plc,Home Care - Private Contractors Payment,471.96,0,COMMERCIAL SUPPLIER
04/03/2024,Adults & Health,London Care Plc,Home Care - Private Contractors Payment,107.73,0,COMMERCIAL SUPPLIER
04/03/2024,Adults & Health,London Care Plc,Daycare - Private Contractors Payment,41.04,0,COMMERCIAL SUPPLIER
04/03/2024,Adults & Health,London Care Plc,Home Care - Private Contractors Payment,251.37,0,COMMERCIAL SUPPLIER
04/03/2024,Adults & Health,London Care Plc,Home Care - Private Contractors Payment,251.37,0,COMMERCIAL SUPPLIER
04/03/2024,Adults & Health,London Care Plc,Home Care - Private Contractors Payment,41.04,0,COMMERCIAL SUPPLIER
04/03/2024,Adults & Health,London Care Plc,Home Care - Private Contractors Payment,107.73,0,COMMERCIAL SUPPLIER
04/03/2024,Adults & Health,London Care Plc,Home Care - Private Contractors Payment,287.28,0,COMMERCIAL SUPPLIER
04/03/2024,Adults & Health,London Care Plc,Home Care - Private Contractors Payment,179.55,0,COMMERCIAL SUPPLIER
04/03/2024,Adults & Health,London Care Plc,Home Care - Private Contractors Payment,415.53,0,COMMERCIAL SUPPLIER
04/03/2024,Adults & Health,London Care Plc,Home Care - Private Contractors Payment,179.55,0,COMMERCIAL SUPPLIER
04/03/2024,Adults & Health,London Care Plc,Home Care - Private Contractors Payment,790.02,0,COMMERCIAL SUPPLIER
04/03/2024,Adults & Health,London Care Plc,Home Care - Private Contractors Payment,251.37,0,COMMERCIAL SUPPLIER
04/03/2024,Adults & Health,London Care Plc,Daycare - Private Contractors Payment,82.08,0,COMMERCIAL SUPPLIER
04/03/2024,Adults & Health,London Care Plc,Home Care - Private Contractors Payment,179.55,0,COMMERCIAL SUPPLIER
04/03/2024,Adults & Health,London Care Plc,Home Care - Private Contractors Payment,92.34,0,COMMERCIAL SUPPLIER
04/03/2024,Adults & Health,London Care Plc,Home Care - Private Contractors Payment,61.56,0,COMMERCIAL SUPPLIER
04/03/2024,Adults & Health,London Care Plc,Daycare - Private Contractors Payment,-277.02,0,COMMERCIAL SUPPLIER
04/03/2024,Adults & Health,London Care Plc,Home Care - Private Contractors Payment,153.9,0,COMMERCIAL SUPPLIER
04/03/2024,Adults & Health,London Care Plc,Daycare - Private Contractors Payment,56.04,0,COMMERCIAL SUPPLIER
04/03/2024,Adults & Health,London Care Plc,Home Care - Private Contractors Payment,359.1,0,COMMERCIAL SUPPLIER
04/03/2024,Adults & Health,London Care Plc,Home Care - Private Contractors Payment,97.47,0,COMMERCIAL SUPPLIER
04/03/2024,Adults & Health,London Care Plc,Home Care - Private Contractors Payment,-112.86,0,COMMERCIAL SUPPLIER
04/03/2024,Adults & Health,London Care Plc,Home Care - Private Contractors Payment,297.54,0,COMMERCIAL SUPPLIER
04/03/2024,Adults & Health,London Care Plc,Home Care - Private Contractors Payment,51.3,0,COMMERCIAL SUPPLIER
04/03/2024,Adults & Health,London Care Plc,Home Care - Private Contractors Payment,30.78,0,COMMERCIAL SUPPLIER
04/03/2024,Adults & Health,London Care Plc,Home Care - Private Contractors Payment,46.17,0,COMMERCIAL SUPPLIER
04/03/2024,Adults & Health,London Care Plc,Home Care - Private Contractors Payment,123.12,0,COMMERCIAL SUPPLIER
04/03/2024,Adults & Health,London Care Plc,Home Care - Private Contractors Payment,359.1,0,COMMERCIAL SUPPLIER
04/03/2024,Adults & Health,London Care Plc,Home Care - Private Contractors Payment,107.73,0,COMMERCIAL SUPPLIER
04/03/2024,Adults & Health,London Care Plc,Daycare - Private Contractors Payment,61.56,0,COMMERCIAL SUPPLIER
04/03/2024,Adults & Health,London Care Plc,Home Care - Private Contractors Payment,20.52,0,COMMERCIAL SUPPLIER
04/03/2024,Adults & Health,London Care Plc,Home Care - Private Contractors Payment,179.55,0,COMMERCIAL SUPPLIER
04/03/2024,Adults & Health,London Care Plc,Home Care - Private Contractors Payment,251.37,0,COMMERCIAL SUPPLIER
04/03/2024,Adults & Health,London Care Plc,Home Care - Private Contractors Payment,107.73,0,COMMERCIAL SUPPLIER
04/03/2024,Adults & Health,London Care Plc,Home Care - Private Contractors Payment,20.52,0,COMMERCIAL SUPPLIER
04/03/2024,Adults & Health,London Care Plc,Home Care - Private Contractors Payment,323.19,0,COMMERCIAL SUPPLIER
04/03/2024,Adults & Health,London Care Plc,Home Care - Private Contractors Payment,51.3,0,COMMERCIAL SUPPLIER
04/03/2024,Adults & Health,London Care Plc,Home Care - Private Contractors Payment,30.78,0,COMMERCIAL SUPPLIER
04/03/2024,Adults & Health,London Care Plc,Daycare - Private Contractors Payment,82.08,0,COMMERCIAL SUPPLIER
04/03/2024,Adults & Health,London Care Plc,Daycare - Private Contractors Payment,20.52,0,COMMERCIAL SUPPLIER
04/03/2024,Adults & Health,London Care Plc,Home Care - Private Contractors Payment,61.56,0,COMMERCIAL SUPPLIER
04/03/2024,Adults & Health,London Care Plc,Home Care - Private Contractors Payment,92.34,0,COMMERCIAL SUPPLIER
04/03/2024,Adults & Health,London Care Plc,Home Care - Private Contractors Payment,92.34,0,COMMERCIAL SUPPLIER
04/03/2024,Adults & Health,London Care Plc,Home Care - Private Contractors Payment,261.24,0,COMMERCIAL SUPPLIER
04/03/2024,Adults & Health,London Care Plc,Home Care - Private Contractors Payment,148.77,0,COMMERCIAL SUPPLIER
04/03/2024,Adults & Health,London Care Plc,Reablement,153.9,0,COMMERCIAL SUPPLIER
04/03/2024,Adults & Health,London Care Plc,Home Care - Private Contractors Payment,128.25,0,COMMERCIAL SUPPLIER
04/03/2024,Adults & Health,London Care Plc,Home Care - Private Contractors Payment,107.73,0,COMMERCIAL SUPPLIER
04/03/2024,Adults & Health,London Care Plc,Home Care - Private Contractors Payment,20.52,0,COMMERCIAL SUPPLIER
04/03/2024,Adults & Health,London Care Plc,Home Care - Private Contractors Payment,107.73,0,COMMERCIAL SUPPLIER
04/03/2024,Adults & Health,London Care Plc,Home Care - Private Contractors Payment,687.42,0,COMMERCIAL SUPPLIER
04/03/2024,Adults & Health,London Care Plc,Home Care - Private Contractors Payment,277.02,0,COMMERCIAL SUPPLIER
04/03/2024,Adults & Health,London Care Plc,Home Care - Private Contractors Payment,107.73,0,COMMERCIAL SUPPLIER
04/03/2024,Adults & Health,London Care Plc,Home Care - Private Contractors Payment,169.29,0,COMMERCIAL SUPPLIER
04/03/2024,Adults & Health,London Care Plc,Home Care - Private Contractors Payment,15.39,0,COMMERCIAL SUPPLIER
04/03/2024,Adults & Health,London Care Plc,Respite Care - Private Contractors Payment,102.6,0,COMMERCIAL SUPPLIER
04/03/2024,Adults & Health,London Care Plc,Home Care - Private Contractors Payment,107.73,0,COMMERCIAL SUPPLIER
04/03/2024,Adults & Health,London Care Plc,Respite Care - Private Contractors Payment,492.48,0,COMMERCIAL SUPPLIER
04/03/2024,Adults & Health,London Care Plc,Home Care - Private Contractors Payment,187.76,0,COMMERCIAL SUPPLIER
04/03/2024,Adults & Health,London Care Plc,Home Care - Private Contractors Payment,92.34,0,COMMERCIAL SUPPLIER
04/03/2024,Adults & Health,London Care Plc,Home Care - Private Contractors Payment,15.39,0,COMMERCIAL SUPPLIER
04/03/2024,Adults & Health,London Care Plc,Home Care - Private Contractors Payment,661.38,0,COMMERCIAL SUPPLIER
04/03/2024,Adults & Health,London Care Plc,Home Care - Private Contractors Payment,20.52,0,COMMERCIAL SUPPLIER
04/03/2024,Adults & Health,London Care Plc,Home Care - Private Contractors Payment,230.85,0,COMMERCIAL SUPPLIER
04/03/2024,Adults & Health,London Care Plc,Home Care - Private Contractors Payment,20.52,0,COMMERCIAL SUPPLIER
04/03/2024,Adults & Health,London Care Plc,Home Care - Private Contractors Payment,20.52,0,COMMERCIAL SUPPLIER
04/03/2024,Adults & Health,London Care Plc,Home Care - Private Contractors Payment,-728.46,0,COMMERCIAL SUPPLIER
04/03/2024,Adults & Health,London Care Plc,Home Care - Private Contractors Payment,35.91,0,COMMERCIAL SUPPLIER
04/03/2024,Adults & Health,London Care Plc,Home Care - Private Contractors Payment,35.91,0,COMMERCIAL SUPPLIER
04/03/2024,Adults & Health,London Care Plc,Home Care - Private Contractors Payment,338.19,0,COMMERCIAL SUPPLIER
04/03/2024,Adults & Health,London Care Plc,Home Care - Private Contractors Payment,123.12,0,COMMERCIAL SUPPLIER
04/03/2024,Adults & Health,London Care Plc,Home Care - Private Contractors Payment,-27.02,0,COMMERCIAL SUPPLIER
04/03/2024,Adults & Health,London Care Plc,Home Care - Private Contractors Payment,5.13,0,COMMERCIAL SUPPLIER
04/03/2024,Adults & Health,London Care Plc,Home Care - Private Contractors Payment,-82.08,0,COMMERCIAL SUPPLIER
04/03/2024,Adults & Health,London Care Plc,Home Care - Private Contractors Payment,205.2,0,COMMERCIAL SUPPLIER
04/03/2024,Adults & Health,London Care Plc,Home Care - Private Contractors Payment,251.37,0,COMMERCIAL SUPPLIER
04/03/2024,Adults & Health,London Care Plc,Home Care - Private Contractors Payment,128.25,0,COMMERCIAL SUPPLIER
04/03/2024,Adults & Health,London Care Plc,Home Care - Private Contractors Payment,359.1,0,COMMERCIAL SUPPLIER
04/03/2024,Adults & Health,London Care Plc,Home Care - Private Contractors Payment,169.29,0,COMMERCIAL SUPPLIER
04/03/2024,Adults & Health,London Care Plc,Home Care - Private Contractors Payment,235.98,0,COMMERCIAL SUPPLIER
04/03/2024,Adults & Health,London Care Plc,Home Care - Private Contractors Payment,266.37,0,COMMERCIAL SUPPLIER
04/03/2024,Adults & Health,London Care Plc,Home Care - Private Contractors Payment,41.04,0,COMMERCIAL SUPPLIER
04/03/2024,Adults & Health,London Care Plc,Home Care - Private Contractors Payment,251.37,0,COMMERCIAL SUPPLIER
04/03/2024,Adults & Health,London Care Plc,Daycare - Private Contractors Payment,41.04,0,COMMERCIAL SUPPLIER
04/03/2024,Adults & Health,London Care Plc,Home Care - Private Contractors Payment,179.55,0,COMMERCIAL SUPPLIER
04/03/2024,Adults & Health,London Care Plc,Home Care - Private Contractors Payment,323.19,0,COMMERCIAL SUPPLIER
04/03/2024,Adults & Health,London Care Plc,Home Care - Private Contractors Payment,30.78,0,COMMERCIAL SUPPLIER
04/03/2024,Adults & Health,London Care Plc,Home Care - Private Contractors Payment,359.1,0,COMMERCIAL SUPPLIER
04/03/2024,Adults & Health,London Care Plc,Home Care - Private Contractors Payment,20.52,0,COMMERCIAL SUPPLIER
04/03/2024,Adults & Health,London Care Plc,Home Care - Private Contractors Payment,35.91,0,COMMERCIAL SUPPLIER
04/03/2024,Adults & Health,London Care Plc,Home Care - Private Contractors Payment,102.6,0,COMMERCIAL SUPPLIER
04/03/2024,Adults & Health,London Care Plc,Home Care - Private Contractors Payment,251.37,0,COMMERCIAL SUPPLIER
04/03/2024,Adults & Health,London Care Plc,Home Care - Private Contractors Payment,287.28,0,COMMERCIAL SUPPLIER
04/03/2024,Adults & Health,London Care Plc,Home Care - Private Contractors Payment,297.54,0,COMMERCIAL SUPPLIER
04/03/2024,Adults & Health,London Care Plc,Home Care - Private Contractors Payment,45.78,0,COMMERCIAL SUPPLIER
04/03/2024,Adults & Health,London Care Plc,Home Care - Private Contractors Payment,358.42,0,COMMERCIAL SUPPLIER
04/03/2024,Adults & Health,London Care Plc,Home Care - Private Contractors Payment,754.11,0,COMMERCIAL SUPPLIER
04/03/2024,Adults & Health,London Care Plc,Home Care - Private Contractors Payment,86.82,0,COMMERCIAL SUPPLIER
04/03/2024,Adults & Health,London Care Plc,Home Care - Private Contractors Payment,107.73,0,COMMERCIAL SUPPLIER
04/03/2024,Adults & Health,London Care Plc,Home Care - Private Contractors Payment,323.19,0,COMMERCIAL SUPPLIER
04/03/2024,Adults & Health,London Care Plc,Home Care - Private Contractors Payment,61.56,0,COMMERCIAL SUPPLIER
04/03/2024,Adults & Health,London Care Plc,Home Care - Private Contractors Payment,20.52,0,COMMERCIAL SUPPLIER
04/03/2024,Adults & Health,London Care Plc,Home Care - Private Contractors Payment,323.19,0,COMMERCIAL SUPPLIER
04/03/2024,Adults & Health,London Care Plc,Home Care - Private Contractors Payment,51.3,0,COMMERCIAL SUPPLIER
04/03/2024,Adults & Health,London Care Plc,Home Care - Private Contractors Payment,143.64,0,COMMERCIAL SUPPLIER
04/03/2024,Adults & Health,London Care Plc,Home Care - Private Contractors Payment,574.56,0,COMMERCIAL SUPPLIER
04/03/2024,Adults & Health,London Care Plc,Respite Care - Private Contractors Payment,492.48,0,COMMERCIAL SUPPLIER
04/03/2024,Adults & Health,London Care Plc,Home Care - Private Contractors Payment,646.38,0,COMMERCIAL SUPPLIER
04/03/2024,Adults & Health,London Care Plc,Home Care - Private Contractors Payment,538.65,0,COMMERCIAL SUPPLIER
04/03/2024,Adults & Health,London Care Plc,Home Care - Private Contractors Payment,282.15,0,COMMERCIAL SUPPLIER
04/03/2024,Adults & Health,London Care Plc,Home Care - Private Contractors Payment,46.17,0,COMMERCIAL SUPPLIER
04/03/2024,Adults & Health,London Care Plc,Home Care - Private Contractors Payment,20.52,0,COMMERCIAL SUPPLIER
04/03/2024,Adults & Health,London Care Plc,Home Care - Private Contractors Payment,251.37,0,COMMERCIAL SUPPLIER
04/03/2024,Adults & Health,London Care Plc,Home Care - Private Contractors Payment,287.28,0,COMMERCIAL SUPPLIER
04/03/2024,Adults & Health,London Care Plc,Home Care - Private Contractors Payment,30.78,0,COMMERCIAL SUPPLIER
04/03/2024,Adults & Health,London Care Plc,Home Care - Private Contractors Payment,790.02,0,COMMERCIAL SUPPLIER
04/03/2024,Adults & Health,London Care Plc,Home Care - Private Contractors Payment,359.1,0,COMMERCIAL SUPPLIER
04/03/2024,Adults & Health,London Care Plc,Home Care - Private Contractors Payment,20.52,0,COMMERCIAL SUPPLIER
04/03/2024,Adults & Health,London Care Plc,Respite Care - Private Contractors Payment,41.04,0,COMMERCIAL SUPPLIER
04/03/2024,Adults & Health,London Care Plc,Home Care - Private Contractors Payment,323.19,0,COMMERCIAL SUPPLIER
04/03/2024,Adults & Health,London Care Plc,Home Care - Private Contractors Payment,251.37,0,COMMERCIAL SUPPLIER
04/03/2024,Adults & Health,London Care Plc,Home Care - Private Contractors Payment,179.55,0,COMMERCIAL SUPPLIER
04/03/2024,Adults & Health,London Care Plc,Daycare - Private Contractors Payment,41.04,0,COMMERCIAL SUPPLIER
04/03/2024,Adults & Health,London Care Plc,Home Care - Private Contractors Payment,107.73,0,COMMERCIAL SUPPLIER
04/03/2024,Adults & Health,London Care Plc,Home Care - Private Contractors Payment,61.56,0,COMMERCIAL SUPPLIER
04/03/2024,Adults & Health,London Care Plc,Home Care - Private Contractors Payment,754.11,0,COMMERCIAL SUPPLIER
04/03/2024,Adults & Health,London Care Plc,Home Care - Private Contractors Payment,30.78,0,COMMERCIAL SUPPLIER
04/03/2024,Adults & Health,London Care Plc,Home Care - Private Contractors Payment,466.83,0,COMMERCIAL SUPPLIER
04/03/2024,Adults & Health,London Care Plc,Home Care - Private Contractors Payment,30.78,0,COMMERCIAL SUPPLIER
04/03/2024,Adults & Health,London Care Plc,Home Care - Private Contractors Payment,200.07,0,COMMERCIAL SUPPLIER
04/03/2024,Adults & Health,London Care Plc,Home Care - Private Contractors Payment,20.52,0,COMMERCIAL SUPPLIER
04/03/2024,Adults & Health,London Care Plc,Home Care - Private Contractors Payment,179.55,0,COMMERCIAL SUPPLIER
04/03/2024,Adults & Health,London Care Plc,Home Care - Private Contractors Payment,128.25,0,COMMERCIAL SUPPLIER
04/03/2024,Adults & Health,London Care Plc,Home Care - Private Contractors Payment,251.37,0,COMMERCIAL SUPPLIER
04/03/2024,Adults & Health,London Care Plc,Home Care - Private Contractors Payment,20.52,0,COMMERCIAL SUPPLIER
04/03/2024,Adults & Health,London Care Plc,Home Care - Private Contractors Payment,107.73,0,COMMERCIAL SUPPLIER
04/03/2024,Adults & Health,London Care Plc,Home Care - Private Contractors Payment,359.1,0,COMMERCIAL SUPPLIER
04/03/2024,Adults & Health,London Care Plc,Home Care - Private Contractors Payment,30.78,0,COMMERCIAL SUPPLIER
04/03/2024,Adults & Health,London Care Plc,Home Care - Private Contractors Payment,112.86,0,COMMERCIAL SUPPLIER
04/03/2024,Adults & Health,London Care Plc,Home Care - Private Contractors Payment,30.78,0,COMMERCIAL SUPPLIER
04/03/2024,Adults & Health,London Care Plc,Home Care - Private Contractors Payment,318.06,0,COMMERCIAL SUPPLIER
04/03/2024,Adults & Health,London Care Plc,Home Care - Private Contractors Payment,179.55,0,COMMERCIAL SUPPLIER
04/03/2024,Adults & Health,London Care Plc,Home Care - Private Contractors Payment,574.56,0,COMMERCIAL SUPPLIER
04/03/2024,Adults & Health,London Care Plc,Daycare - Private Contractors Payment,30.78,0,COMMERCIAL SUPPLIER
04/03/2024,Adults & Health,London Care Plc,Respite Care - Private Contractors Payment,492.48,0,COMMERCIAL SUPPLIER
04/03/2024,Adults & Health,London Care Plc,Home Care - Private Contractors Payment,153.9,0,COMMERCIAL SUPPLIER
04/03/2024,Adults & Health,London Care Plc,Home Care - Private Contractors Payment,107.73,0,COMMERCIAL SUPPLIER
04/03/2024,Adults & Health,London Care Plc,Home Care - Private Contractors Payment,20.52,0,COMMERCIAL SUPPLIER
04/03/2024,Adults & Health,London Care Plc,Daycare - Private Contractors Payment,205.2,0,COMMERCIAL SUPPLIER
04/03/2024,Adults & Health,London Care Plc,Daycare - Private Contractors Payment,61.56,0,COMMERCIAL SUPPLIER
04/03/2024,Adults & Health,London Care Plc,Respite Care - Private Contractors Payment,102.6,0,COMMERCIAL SUPPLIER
04/03/2024,Adults & Health,London Care Plc,Home Care - Private Contractors Payment,41.04,0,COMMERCIAL SUPPLIER
04/03/2024,Adults & Health,London Care Plc,Home Care - Private Contractors Payment,251.37,0,COMMERCIAL SUPPLIER
04/03/2024,Adults & Health,London Care Plc,Daycare - Private Contractors Payment,102.6,0,COMMERCIAL SUPPLIER
04/03/2024,Adults & Health,London Care Plc,Home Care - Private Contractors Payment,30.78,0,COMMERCIAL SUPPLIER
04/03/2024,Adults & Health,London Care Plc,Home Care - Private Contractors Payment,574.56,0,COMMERCIAL SUPPLIER
04/03/2024,Adults & Health,London Care Plc,Respite Care - Private Contractors Payment,492.48,0,COMMERCIAL SUPPLIER
04/03/2024,Adults & Health,London Care Plc,Home Care - Private Contractors Payment,323.19,0,COMMERCIAL SUPPLIER
04/03/2024,Adults & Health,London Care Plc,Respite Care - Private Contractors Payment,41.04,0,COMMERCIAL SUPPLIER
04/03/2024,Adults & Health,London Care Plc,Home Care - Private Contractors Payment,359.1,0,COMMERCIAL SUPPLIER
04/03/2024,Adults & Health,London Care Plc,Home Care - Private Contractors Payment,251.37,0,COMMERCIAL SUPPLIER
04/03/2024,Adults & Health,London Care Plc,Home Care - Private Contractors Payment,102.6,0,COMMERCIAL SUPPLIER
04/03/2024,Adults & Health,London Care Plc,Home Care - Private Contractors Payment,189.81,0,COMMERCIAL SUPPLIER
04/03/2024,Adults & Health,London Care Plc,Daycare - Private Contractors Payment,205.2,0,COMMERCIAL SUPPLIER
04/03/2024,Adults & Health,London Care Plc,Daycare - Private Contractors Payment,61.56,0,COMMERCIAL SUPPLIER
04/03/2024,Adults & Health,London Care Plc,Home Care - Private Contractors Payment,30.78,0,COMMERCIAL SUPPLIER
04/03/2024,Adults & Health,London Care Plc,Daycare - Private Contractors Payment,66.3,0,COMMERCIAL SUPPLIER
04/03/2024,Adults & Health,London Care Plc,Home Care - Private Contractors Payment,41.38,0,COMMERCIAL SUPPLIER
04/03/2024,Adults & Health,London Care Plc,Home Care - Private Contractors Payment,169.29,0,COMMERCIAL SUPPLIER
04/03/2024,Adults & Health,London Care Plc,Home Care - Private Contractors Payment,41.04,0,COMMERCIAL SUPPLIER
04/03/2024,Adults & Health,London Care Plc,Home Care - Private Contractors Payment,359.1,0,COMMERCIAL SUPPLIER
04/03/2024,Adults & Health,London Care Plc,Home Care - Private Contractors Payment,251.37,0,COMMERCIAL SUPPLIER
04/03/2024,Adults & Health,London Care Plc,Home Care - Private Contractors Payment,184.68,0,COMMERCIAL SUPPLIER
04/03/2024,Adults & Health,London Care Plc,Home Care - Private Contractors Payment,143.64,0,COMMERCIAL SUPPLIER
04/03/2024,Adults & Health,London Care Plc,Home Care - Private Contractors Payment,30.78,0,COMMERCIAL SUPPLIER
04/03/2024,Adults & Health,London Care Plc,Home Care - Private Contractors Payment,143.64,0,COMMERCIAL SUPPLIER
04/03/2024,Adults & Health,London Care Plc,Home Care - Private Contractors Payment,112.86,0,COMMERCIAL SUPPLIER
04/03/2024,Adults & Health,London Care Plc,Daycare - Private Contractors Payment,102.6,0,COMMERCIAL SUPPLIER
04/03/2024,Adults & Health,London Care Plc,Home Care - Private Contractors Payment,46.17,0,COMMERCIAL SUPPLIER
04/03/2024,Adults & Health,London Care Plc,Home Care - Private Contractors Payment,35.91,0,COMMERCIAL SUPPLIER
04/03/2024,Adults & Health,London Care Plc,Home Care - Private Contractors Payment,230.46,0,COMMERCIAL SUPPLIER
04/03/2024,Adults & Health,London Care Plc,Home Care - Private Contractors Payment,235.98,0,COMMERCIAL SUPPLIER
04/03/2024,Adults & Health,London Care Plc,Home Care - Private Contractors Payment,251.37,0,COMMERCIAL SUPPLIER
04/03/2024,Adults & Health,London Care Plc,Home Care - Private Contractors Payment,71.82,0,COMMERCIAL SUPPLIER
04/03/2024,Adults & Health,London Care Plc,Home Care - Private Contractors Payment,215.46,0,COMMERCIAL SUPPLIER
04/03/2024,Adults & Health,London Care Plc,Daycare - Private Contractors Payment,82.08,0,COMMERCIAL SUPPLIER
04/03/2024,Adults & Health,London Care Plc,Respite Care - Private Contractors Payment,102.6,0,COMMERCIAL SUPPLIER
04/03/2024,Adults & Health,London Care Plc,Home Care - Private Contractors Payment,251.37,0,COMMERCIAL SUPPLIER
04/03/2024,Adults & Health,London Care Plc,Home Care - Private Contractors Payment,251.37,0,COMMERCIAL SUPPLIER
04/03/2024,Adults & Health,London Care Plc,Home Care - Private Contractors Payment,107.73,0,COMMERCIAL SUPPLIER
04/03/2024,Adults & Health,London Care Plc,Home Care - Private Contractors Payment,20.52,0,COMMERCIAL SUPPLIER
04/03/2024,Adults & Health,London Care Plc,Daycare - Private Contractors Payment,102.6,0,COMMERCIAL SUPPLIER
04/03/2024,Adults & Health,London Care Plc,Daycare - Private Contractors Payment,205.2,0,COMMERCIAL SUPPLIER
04/03/2024,Adults & Health,London Care Plc,Daycare - Private Contractors Payment,-366.63,0,COMMERCIAL SUPPLIER
04/03/2024,Adults & Health,London Care Plc,Home Care - Private Contractors Payment,80.03,0,COMMERCIAL SUPPLIER
04/03/2024,Adults & Health,London Care Plc,Home Care - Private Contractors Payment,194.94,0,COMMERCIAL SUPPLIER
04/03/2024,Adults & Health,London Care Plc,Home Care - Private Contractors Payment,51.3,0,COMMERCIAL SUPPLIER
04/03/2024,Adults & Health,London Care Plc,Home Care - Private Contractors Payment,123.12,0,COMMERCIAL SUPPLIER
04/03/2024,Adults & Health,London Care Plc,Home Care - Private Contractors Payment,107.73,0,COMMERCIAL SUPPLIER
04/03/2024,Adults & Health,London Care Plc,Home Care - Private Contractors Payment,107.73,0,COMMERCIAL SUPPLIER
04/03/2024,Adults & Health,London Care Plc,Home Care - Private Contractors Payment,66.3,0,COMMERCIAL SUPPLIER
04/03/2024,Adults & Health,London Care Plc,Home Care - Private Contractors Payment,-78.99,0,COMMERCIAL SUPPLIER
04/03/2024,Adults & Health,London Care Plc,Home Care - Private Contractors Payment,179.55,0,COMMERCIAL SUPPLIER
04/03/2024,Adults & Health,London Care Plc,Home Care - Private Contractors Payment,30.78,0,COMMERCIAL SUPPLIER
04/03/2024,Adults & Health,London Care Plc,Home Care - Private Contractors Payment,30.78,0,COMMERCIAL SUPPLIER
04/03/2024,Adults & Health,London Care Plc,Home Care - Private Contractors Payment,123.12,0,COMMERCIAL SUPPLIER
04/03/2024,Adults & Health,London Care Plc,Daycare - Private Contractors Payment,-30.78,0,COMMERCIAL SUPPLIER
04/03/2024,Adults & Health,London Care Plc,Daycare - Private Contractors Payment,41.04,0,COMMERCIAL SUPPLIER
04/03/2024,Adults & Health,London Care Plc,Home Care - Private Contractors Payment,194.94,0,COMMERCIAL SUPPLIER
04/03/2024,Adults & Health,London Care Plc,Home Care - Private Contractors Payment,179.55,0,COMMERCIAL SUPPLIER
04/03/2024,Adults & Health,London Care Plc,Home Care - Private Contractors Payment,359.1,0,COMMERCIAL SUPPLIER
04/03/2024,Adults & Health,London Care Plc,Home Care - Private Contractors Payment,30.78,0,COMMERCIAL SUPPLIER
04/03/2024,Adults & Health,London Care Plc,Reablement,20.52,0,COMMERCIAL SUPPLIER
04/03/2024,Adults & Health,London Care Plc,Home Care - Private Contractors Payment,646.38,0,COMMERCIAL SUPPLIER
04/03/2024,Adults & Health,London Care Plc,Home Care - Private Contractors Payment,251.37,0,COMMERCIAL SUPPLIER
04/03/2024,Adults & Health,London Care Plc,Home Care - Private Contractors Payment,46.17,0,COMMERCIAL SUPPLIER
04/03/2024,Adults & Health,London Care Plc,Home Care - Private Contractors Payment,179.55,0,COMMERCIAL SUPPLIER
04/03/2024,Adults & Health,London Care Plc,Home Care - Private Contractors Payment,359.1,0,COMMERCIAL SUPPLIER
04/03/2024,Adults & Health,London Care Plc,Home Care - Private Contractors Payment,100.21,0,COMMERCIAL SUPPLIER
04/03/2024,Adults & Health,London Care Plc,Home Care - Private Contractors Payment,179.55,0,COMMERCIAL SUPPLIER
04/03/2024,Adults & Health,London Care Plc,Home Care - Private Contractors Payment,251.37,0,COMMERCIAL SUPPLIER
04/03/2024,Adults & Health,London Care Plc,Daycare - Private Contractors Payment,61.56,0,COMMERCIAL SUPPLIER
04/03/2024,Adults & Health,London Care Plc,Home Care - Private Contractors Payment,189.81,0,COMMERCIAL SUPPLIER
04/03/2024,Adults & Health,London Care Plc,Home Care - Private Contractors Payment,20.52,0,COMMERCIAL SUPPLIER
04/03/2024,Adults & Health,London Care Plc,Home Care - Private Contractors Payment,359.1,0,COMMERCIAL SUPPLIER
04/03/2024,Adults & Health,London Care Plc,Home Care - Private Contractors Payment,46.17,0,COMMERCIAL SUPPLIER
04/03/2024,Adults & Health,London Care Plc,Home Care - Private Contractors Payment,277.02,0,COMMERCIAL SUPPLIER
04/03/2024,Adults & Health,London Care Plc,Daycare - Private Contractors Payment,41.04,0,COMMERCIAL SUPPLIER
04/03/2024,Adults & Health,London Care Plc,Home Care - Private Contractors Payment,251.37,0,COMMERCIAL SUPPLIER
04/03/2024,Adults & Health,London Care Plc,Daycare - Private Contractors Payment,30.78,0,COMMERCIAL SUPPLIER
04/03/2024,Adults & Health,London Care Plc,Home Care - Private Contractors Payment,251.37,0,COMMERCIAL SUPPLIER
04/03/2024,Adults & Health,London Care Plc,Home Care - Private Contractors Payment,235.98,0,COMMERCIAL SUPPLIER
04/03/2024,Adults & Health,London Care Plc,Home Care - Private Contractors Payment,46.17,0,COMMERCIAL SUPPLIER
04/03/2024,Adults & Health,London Care Plc,Home Care - Private Contractors Payment,-990.09,0,COMMERCIAL SUPPLIER
04/03/2024,Adults & Health,London Care Plc,Home Care - Private Contractors Payment,46.17,0,COMMERCIAL SUPPLIER
04/03/2024,Adults & Health,London Care Plc,Home Care - Private Contractors Payment,-538.65,0,COMMERCIAL SUPPLIER
04/03/2024,Adults & Health,London Care Plc,Home Care - Private Contractors Payment,123.12,0,COMMERCIAL SUPPLIER
04/03/2024,Adults & Health,London Care Plc,Home Care - Private Contractors Payment,302.28,0,COMMERCIAL SUPPLIER
04/03/2024,Adults & Health,London Care Plc,Home Care - Private Contractors Payment,205.2,0,COMMERCIAL SUPPLIER
04/03/2024,Adults & Health,London Care Plc,Home Care - Private Contractors Payment,107.73,0,COMMERCIAL SUPPLIER
04/03/2024,Adults & Health,London Care Plc,Home Care - Private Contractors Payment,266.37,0,COMMERCIAL SUPPLIER
04/03/2024,Adults & Health,London Care Plc,Daycare - Private Contractors Payment,-116.97,0,COMMERCIAL SUPPLIER
04/03/2024,Adults & Health,London Care Plc,Home Care - Private Contractors Payment,251.37,0,COMMERCIAL SUPPLIER
04/03/2024,Adults & Health,London Care Plc,Home Care - Private Contractors Payment,61.56,0,COMMERCIAL SUPPLIER
04/03/2024,Adults & Health,London Care Plc,Home Care - Private Contractors Payment,189.81,0,COMMERCIAL SUPPLIER
04/03/2024,Adults & Health,London Care Plc,Respite Care - Private Contractors Payment,61.56,0,COMMERCIAL SUPPLIER
04/03/2024,Adults & Health,London Care Plc,Home Care - Private Contractors Payment,71.82,0,COMMERCIAL SUPPLIER
04/03/2024,Adults & Health,London Care Plc,Home Care - Private Contractors Payment,251.37,0,COMMERCIAL SUPPLIER
04/03/2024,Adults & Health,London Care Plc,Daycare - Private Contractors Payment,61.56,0,COMMERCIAL SUPPLIER
04/03/2024,Adults & Health,London Care Plc,Home Care - Private Contractors Payment,143.64,0,COMMERCIAL SUPPLIER
04/03/2024,Adults & Health,London Care Plc,Daycare - Private Contractors Payment,51.3,0,COMMERCIAL SUPPLIER
04/03/2024,Adults & Health,London Care Plc,Home Care - Private Contractors Payment,30.78,0,COMMERCIAL SUPPLIER
04/03/2024,Adults & Health,London Care Plc,Home Care - Private Contractors Payment,179.55,0,COMMERCIAL SUPPLIER
04/03/2024,Adults & Health,London Care Plc,Home Care - Private Contractors Payment,215.46,0,COMMERCIAL SUPPLIER
04/03/2024,Adults & Health,London Care Plc,Home Care - Private Contractors Payment,107.73,0,COMMERCIAL SUPPLIER
04/03/2024,Adults & Health,London Care Plc,Home Care - Private Contractors Payment,395.01,0,COMMERCIAL SUPPLIER
04/03/2024,Adults & Health,London Care Plc,Home Care - Private Contractors Payment,215.46,0,COMMERCIAL SUPPLIER
04/03/2024,Adults & Health,London Care Plc,Home Care - Private Contractors Payment,46.17,0,COMMERCIAL SUPPLIER
04/03/2024,Adults & Health,London Care Plc,Home Care - Private Contractors Payment,184.68,0,COMMERCIAL SUPPLIER
04/03/2024,Adults & Health,London Care Plc,Home Care - Private Contractors Payment,143.64,0,COMMERCIAL SUPPLIER
04/03/2024,Adults & Health,London Care Plc,Home Care - Private Contractors Payment,471.96,0,COMMERCIAL SUPPLIER
04/03/2024,Adults & Health,London Care Plc,Home Care - Private Contractors Payment,30.78,0,COMMERCIAL SUPPLIER
04/03/2024,Adults & Health,London Care Plc,Home Care - Private Contractors Payment,179.55,0,COMMERCIAL SUPPLIER
04/03/2024,Adults & Health,London Care Plc,Home Care - Private Contractors Payment,107.73,0,COMMERCIAL SUPPLIER
04/03/2024,Adults & Health,London Care Plc,Home Care - Private Contractors Payment,20.52,0,COMMERCIAL SUPPLIER
04/03/2024,Adults & Health,London Care Plc,Home Care - Private Contractors Payment,117.99,0,COMMERCIAL SUPPLIER
04/03/2024,Adults & Health,London Care Plc,Home Care - Private Contractors Payment,46.17,0,COMMERCIAL SUPPLIER
04/03/2024,Adults & Health,London Care Plc,Home Care - Private Contractors Payment,3.42,0,COMMERCIAL SUPPLIER
04/03/2024,Adults & Health,London Care Plc,Home Care - Private Contractors Payment,-51.3,0,COMMERCIAL SUPPLIER
04/03/2024,Adults & Health,London Care Plc,Home Care - Private Contractors Payment,179.55,0,COMMERCIAL SUPPLIER
04/03/2024,Adults & Health,London Care Plc,Home Care - Private Contractors Payment,179.55,0,COMMERCIAL SUPPLIER
04/03/2024,Adults & Health,London Care Plc,Home Care - Private Contractors Payment,41.04,0,COMMERCIAL SUPPLIER
04/03/2024,Adults & Health,London Care Plc,Home Care - Private Contractors Payment,41.04,0,COMMERCIAL SUPPLIER
04/03/2024,Adults & Health,London Care Plc,Home Care - Private Contractors Payment,323.19,0,COMMERCIAL SUPPLIER
04/03/2024,Adults & Health,London Care Plc,Home Care - Private Contractors Payment,30.78,0,COMMERCIAL SUPPLIER
04/03/2024,Adults & Health,London Care Plc,Home Care - Private Contractors Payment,30.78,0,COMMERCIAL SUPPLIER
04/03/2024,Adults & Health,London Care Plc,Home Care - Private Contractors Payment,194.94,0,COMMERCIAL SUPPLIER
04/03/2024,Adults & Health,London Care Plc,Daycare - Private Contractors Payment,102.6,0,COMMERCIAL SUPPLIER
04/03/2024,Adults & Health,London Care Plc,Home Care - Private Contractors Payment,143.64,0,COMMERCIAL SUPPLIER
04/03/2024,Adults & Health,London Care Plc,Home Care - Private Contractors Payment,112.86,0,COMMERCIAL SUPPLIER
04/03/2024,Adults & Health,London Care Plc,Home Care - Private Contractors Payment,359.1,0,COMMERCIAL SUPPLIER
04/03/2024,Adults & Health,London Care Plc,Home Care - Private Contractors Payment,20.52,0,COMMERCIAL SUPPLIER
04/03/2024,Adults & Health,London Care Plc,Home Care - Private Contractors Payment,251.37,0,COMMERCIAL SUPPLIER
04/03/2024,Adults & Health,London Care Plc,Home Care - Private Contractors Payment,318.06,0,COMMERCIAL SUPPLIER
04/03/2024,Adults & Health,London Care Plc,Home Care - Private Contractors Payment,215.46,0,COMMERCIAL SUPPLIER
04/03/2024,Adults & Health,London Care Plc,Home Care - Private Contractors Payment,107.73,0,COMMERCIAL SUPPLIER
04/03/2024,Adults & Health,London Care Plc,Home Care - Private Contractors Payment,359.1,0,COMMERCIAL SUPPLIER
04/03/2024,Adults & Health,London Care Plc,Daycare - Private Contractors Payment,102.6,0,COMMERCIAL SUPPLIER
04/03/2024,Adults & Health,London Care Plc,Home Care - Private Contractors Payment,179.55,0,COMMERCIAL SUPPLIER
04/03/2024,Adults & Health,London Care Plc,Home Care - Private Contractors Payment,30.78,0,COMMERCIAL SUPPLIER
04/03/2024,Adults & Health,London Care Plc,Home Care - Private Contractors Payment,215.46,0,COMMERCIAL SUPPLIER
04/03/2024,Adults & Health,London Care Plc,Home Care - Private Contractors Payment,41.04,0,COMMERCIAL SUPPLIER
04/03/2024,Adults & Health,London Care Plc,Home Care - Private Contractors Payment,41.04,0,COMMERCIAL SUPPLIER
04/03/2024,Adults & Health,London Care Plc,Home Care - Private Contractors Payment,30.78,0,COMMERCIAL SUPPLIER
04/03/2024,Adults & Health,London Care Plc,Home Care - Private Contractors Payment,179.55,0,COMMERCIAL SUPPLIER
04/03/2024,Adults & Health,London Care Plc,Home Care - Private Contractors Payment,215.46,0,COMMERCIAL SUPPLIER
04/03/2024,Adults & Health,London Care Plc,Daycare - Private Contractors Payment,41.04,0,COMMERCIAL SUPPLIER
04/03/2024,Adults & Health,London Care Plc,Home Care - Private Contractors Payment,41.04,0,COMMERCIAL SUPPLIER
04/03/2024,Adults & Health,London Care Plc,Home Care - Private Contractors Payment,348.84,0,COMMERCIAL SUPPLIER
04/03/2024,Adults & Health,London Care Plc,Home Care - Private Contractors Payment,20.52,0,COMMERCIAL SUPPLIER
04/03/2024,Adults & Health,London Care Plc,Home Care - Private Contractors Payment,323.19,0,COMMERCIAL SUPPLIER
04/03/2024,Adults & Health,London Care Plc,Daycare - Private Contractors Payment,287.28,0,COMMERCIAL SUPPLIER
04/03/2024,Adults & Health,London Care Plc,Home Care - Private Contractors Payment,323.19,0,COMMERCIAL SUPPLIER
04/03/2024,Adults & Health,London Care Plc,Home Care - Private Contractors Payment,107.73,0,COMMERCIAL SUPPLIER
04/03/2024,Adults & Health,London Care Plc,Home Care - Private Contractors Payment,107.73,0,COMMERCIAL SUPPLIER
04/03/2024,Adults & Health,London Care Plc,Home Care - Private Contractors Payment,323.19,0,COMMERCIAL SUPPLIER
04/03/2024,Adults & Health,London Care Plc,Home Care - Private Contractors Payment,61.56,0,COMMERCIAL SUPPLIER
04/03/2024,Adults & Health,London Care Plc,Home Care - Private Contractors Payment,179.55,0,COMMERCIAL SUPPLIER
04/03/2024,Adults & Health,London Care Plc,Home Care - Private Contractors Payment,71.82,0,COMMERCIAL SUPPLIER
04/03/2024,Adults & Health,London Care Plc,Home Care - Private Contractors Payment,251.37,0,COMMERCIAL SUPPLIER
04/03/2024,Adults & Health,London Care Plc,Home Care - Private Contractors Payment,251.37,0,COMMERCIAL SUPPLIER
04/03/2024,Adults & Health,London Care Plc,Home Care - Private Contractors Payment,123.12,0,COMMERCIAL SUPPLIER
04/03/2024,Adults & Health,London Care Plc,Home Care - Private Contractors Payment,41.04,0,COMMERCIAL SUPPLIER
04/03/2024,Adults & Health,London Care Plc,Respite Care - Private Contractors Payment,230.85,0,COMMERCIAL SUPPLIER
04/03/2024,Adults & Health,London Care Plc,Home Care - Private Contractors Payment,107.73,0,COMMERCIAL SUPPLIER
04/03/2024,Adults & Health,London Care Plc,Respite Care - Private Contractors Payment,61.56,0,COMMERCIAL SUPPLIER
04/03/2024,Adults & Health,London Care Plc,Home Care - Private Contractors Payment,61.56,0,COMMERCIAL SUPPLIER
04/03/2024,Adults & Health,London Care Plc,Home Care - Private Contractors Payment,323.19,0,COMMERCIAL SUPPLIER
04/03/2024,Adults & Health,London Care Plc,Home Care - Private Contractors Payment,41.04,0,COMMERCIAL SUPPLIER
04/03/2024,Adults & Health,London Care Plc,Daycare - Private Contractors Payment,61.56,0,COMMERCIAL SUPPLIER
04/03/2024,Adults & Health,London Care Plc,Daycare - Private Contractors Payment,71.82,0,COMMERCIAL SUPPLIER
04/03/2024,Adults & Health,London Care Plc,Home Care - Private Contractors Payment,323.19,0,COMMERCIAL SUPPLIER
04/03/2024,Adults & Health,London Care Plc,Daycare - Private Contractors Payment,82.08,0,COMMERCIAL SUPPLIER
04/03/2024,Adults & Health,London Care Plc,Home Care - Private Contractors Payment,20.52,0,COMMERCIAL SUPPLIER
04/03/2024,Adults & Health,London Care Plc,Home Care - Private Contractors Payment,51.3,0,COMMERCIAL SUPPLIER
04/03/2024,Adults & Health,London Care Plc,Respite Care - Private Contractors Payment,61.56,0,COMMERCIAL SUPPLIER
04/03/2024,Adults & Health,London Care Plc,Home Care - Private Contractors Payment,30.1,0,COMMERCIAL SUPPLIER
04/03/2024,Adults & Health,London Care Plc,Home Care - Private Contractors Payment,-189.81,0,COMMERCIAL SUPPLIER
04/03/2024,Adults & Health,London Care Plc,Daycare - Private Contractors Payment,10.26,0,COMMERCIAL SUPPLIER
04/03/2024,Adults & Health,London Care Plc,Home Care - Private Contractors Payment,56.43,0,COMMERCIAL SUPPLIER
04/03/2024,Adults & Health,London Care Plc,Home Care - Private Contractors Payment,138.17,0,COMMERCIAL SUPPLIER
04/03/2024,Adults & Health,London Care Plc,Home Care - Private Contractors Payment,333.45,0,COMMERCIAL SUPPLIER
04/03/2024,Adults & Health,London Care Plc,Home Care - Private Contractors Payment,41.04,0,COMMERCIAL SUPPLIER
04/03/2024,Adults & Health,London Care Plc,Home Care - Private Contractors Payment,179.55,0,COMMERCIAL SUPPLIER
04/03/2024,Adults & Health,London Care Plc,Home Care - Private Contractors Payment,318.06,0,COMMERCIAL SUPPLIER
04/03/2024,Adults & Health,London Care Plc,Home Care - Private Contractors Payment,61.56,0,COMMERCIAL SUPPLIER
04/03/2024,Adults & Health,London Care Plc,Home Care - Private Contractors Payment,251.37,0,COMMERCIAL SUPPLIER
04/03/2024,Adults & Health,London Care Plc,Home Care - Private Contractors Payment,251.37,0,COMMERCIAL SUPPLIER
04/03/2024,Adults & Health,London Care Plc,Home Care - Private Contractors Payment,466.83,0,COMMERCIAL SUPPLIER
04/03/2024,Adults & Health,London Care Plc,Home Care - Private Contractors Payment,179.55,0,COMMERCIAL SUPPLIER
04/03/2024,Adults & Health,London Care Plc,Home Care - Private Contractors Payment,71.82,0,COMMERCIAL SUPPLIER
04/03/2024,Adults & Health,London Care Plc,Home Care - Private Contractors Payment,251.37,0,COMMERCIAL SUPPLIER
04/03/2024,Adults & Health,London Care Plc,Home Care - Private Contractors Payment,20.52,0,COMMERCIAL SUPPLIER
04/03/2024,Adults & Health,London Care Plc,Home Care - Private Contractors Payment,71.82,0,COMMERCIAL SUPPLIER
04/03/2024,Adults & Health,London Care Plc,Respite Care - Private Contractors Payment,41.04,0,COMMERCIAL SUPPLIER
04/03/2024,Adults & Health,London Care Plc,Home Care - Private Contractors Payment,41.04,0,COMMERCIAL SUPPLIER
04/03/2024,Adults & Health,London Care Plc,Daycare - Private Contractors Payment,61.56,0,COMMERCIAL SUPPLIER
04/03/2024,Adults & Health,London Care Plc,Home Care - Private Contractors Payment,323.19,0,COMMERCIAL SUPPLIER
04/03/2024,Adults & Health,London Care Plc,Daycare - Private Contractors Payment,287.28,0,COMMERCIAL SUPPLIER
04/03/2024,Adults & Health,London Care Plc,Daycare - Private Contractors Payment,102.6,0,COMMERCIAL SUPPLIER
04/03/2024,Adults & Health,London Care Plc,Home Care - Private Contractors Payment,179.55,0,COMMERCIAL SUPPLIER
04/03/2024,Adults & Health,London Care Plc,Home Care - Private Contractors Payment,323.19,0,COMMERCIAL SUPPLIER
04/03/2024,Adults & Health,London Care Plc,Home Care - Private Contractors Payment,41.04,0,COMMERCIAL SUPPLIER
04/03/2024,Adults & Health,London Care Plc,Home Care - Private Contractors Payment,20.52,0,COMMERCIAL SUPPLIER
04/03/2024,Adults & Health,London Care Plc,Home Care - Private Contractors Payment,215.46,0,COMMERCIAL SUPPLIER
04/03/2024,Adults & Health,London Care Plc,Home Care - Private Contractors Payment,538.65,0,COMMERCIAL SUPPLIER
04/03/2024,Adults & Health,London Care Plc,Home Care - Private Contractors Payment,82.08,0,COMMERCIAL SUPPLIER
04/03/2024,Adults & Health,London Care Plc,Home Care - Private Contractors Payment,76.95,0,COMMERCIAL SUPPLIER
04/03/2024,Adults & Health,London Care Plc,Home Care - Private Contractors Payment,46.17,0,COMMERCIAL SUPPLIER
04/03/2024,Adults & Health,London Care Plc,Home Care - Private Contractors Payment,30.78,0,COMMERCIAL SUPPLIER
04/03/2024,Adults & Health,London Care Plc,Daycare - Private Contractors Payment,30.78,0,COMMERCIAL SUPPLIER
04/03/2024,Adults & Health,London Care Plc,Home Care - Private Contractors Payment,790.02,0,COMMERCIAL SUPPLIER
04/03/2024,Adults & Health,London Care Plc,Respite Care - Private Contractors Payment,41.04,0,COMMERCIAL SUPPLIER
04/03/2024,Adults & Health,London Care Plc,Home Care - Private Contractors Payment,30.78,0,COMMERCIAL SUPPLIER
04/03/2024,Adults & Health,London Care Plc,Home Care - Private Contractors Payment,415.53,0,COMMERCIAL SUPPLIER
04/03/2024,Adults & Health,London Care Plc,Home Care - Private Contractors Payment,20.52,0,COMMERCIAL SUPPLIER
04/03/2024,Adults & Health,London Care Plc,Home Care - Private Contractors Payment,143.64,0,COMMERCIAL SUPPLIER
04/03/2024,Adults & Health,London Care Plc,Home Care - Private Contractors Payment,287.28,0,COMMERCIAL SUPPLIER
04/03/2024,Adults & Health,London Care Plc,Home Care - Private Contractors Payment,143.64,0,COMMERCIAL SUPPLIER
04/03/2024,Adults & Health,London Care Plc,Home Care - Private Contractors Payment,46.17,0,COMMERCIAL SUPPLIER
04/03/2024,Adults & Health,London Care Plc,Home Care - Private Contractors Payment,754.11,0,COMMERCIAL SUPPLIER
04/03/2024,Adults & Health,London Care Plc,Daycare - Private Contractors Payment,82.08,0,COMMERCIAL SUPPLIER
04/03/2024,Adults & Health,London Care Plc,Daycare - Private Contractors Payment,41.04,0,COMMERCIAL SUPPLIER
04/03/2024,Adults & Health,London Care Plc,Home Care - Private Contractors Payment,215.46,0,COMMERCIAL SUPPLIER
04/03/2024,Adults & Health,London Care Plc,Home Care - Private Contractors Payment,251.37,0,COMMERCIAL SUPPLIER
04/03/2024,Adults & Health,London Care Plc,Home Care - Private Contractors Payment,143.64,0,COMMERCIAL SUPPLIER
04/03/2024,Adults & Health,London Care Plc,Home Care - Private Contractors Payment,338.58,0,COMMERCIAL SUPPLIER
04/03/2024,Adults & Health,London Care Plc,Home Care - Private Contractors Payment,20.52,0,COMMERCIAL SUPPLIER
04/03/2024,Adults & Health,London Care Plc,Home Care - Private Contractors Payment,215.46,0,COMMERCIAL SUPPLIER
04/03/2024,Adults & Health,London Care Plc,Home Care - Private Contractors Payment,143.64,0,COMMERCIAL SUPPLIER
04/03/2024,Adults & Health,London Care Plc,Daycare - Private Contractors Payment,20.52,0,COMMERCIAL SUPPLIER
04/03/2024,Adults & Health,London Care Plc,Home Care - Private Contractors Payment,41.04,0,COMMERCIAL SUPPLIER
04/03/2024,Adults & Health,London Care Plc,Daycare - Private Contractors Payment,82.08,0,COMMERCIAL SUPPLIER
04/03/2024,Adults & Health,London Care Plc,Home Care - Private Contractors Payment,41.04,0,COMMERCIAL SUPPLIER
04/03/2024,Adults & Health,London Care Plc,Home Care - Private Contractors Payment,359.1,0,COMMERCIAL SUPPLIER
04/03/2024,Adults & Health,London Care Plc,Home Care - Private Contractors Payment,707.94,0,COMMERCIAL SUPPLIER
04/03/2024,Adults & Health,London Care Plc,Home Care - Private Contractors Payment,107.73,0,COMMERCIAL SUPPLIER
04/03/2024,Adults & Health,London Care Plc,Home Care - Private Contractors Payment,251.37,0,COMMERCIAL SUPPLIER
04/03/2024,Adults & Health,London Care Plc,Daycare - Private Contractors Payment,-71.82,0,COMMERCIAL SUPPLIER
04/03/2024,Adults & Health,London Care Plc,Home Care - Private Contractors Payment,215.46,0,COMMERCIAL SUPPLIER
04/03/2024,Adults & Health,London Care Plc,Home Care - Private Contractors Payment,149.46,0,COMMERCIAL SUPPLIER
04/03/2024,Adults & Health,London Care Plc,Home Care - Private Contractors Payment,-276.34,0,COMMERCIAL SUPPLIER
04/03/2024,Adults & Health,London Care Plc,Home Care - Private Contractors Payment,754.11,0,COMMERCIAL SUPPLIER
04/03/2024,Adults & Health,London Care Plc,Home Care - Private Contractors Payment,153.9,0,COMMERCIAL SUPPLIER
04/03/2024,Adults & Health,London Care Plc,Home Care - Private Contractors Payment,323.19,0,COMMERCIAL SUPPLIER
04/03/2024,Adults & Health,London Care Plc,Home Care - Private Contractors Payment,251.37,0,COMMERCIAL SUPPLIER
04/03/2024,Adults & Health,London Care Plc,Home Care - Private Contractors Payment,754.11,0,COMMERCIAL SUPPLIER
04/03/2024,Adults & Health,London Care Plc,Home Care - Private Contractors Payment,102.6,0,COMMERCIAL SUPPLIER
04/03/2024,Adults & Health,London Care Plc,Daycare - Private Contractors Payment,-104.31,0,COMMERCIAL SUPPLIER
04/03/2024,Adults & Health,London Care Plc,Home Care - Private Contractors Payment,61.56,0,COMMERCIAL SUPPLIER
04/03/2024,Adults & Health,London Care Plc,Respite Care - Private Contractors Payment,102.6,0,COMMERCIAL SUPPLIER
04/03/2024,Adults & Health,London Care Plc,Respite Care - Private Contractors Payment,230.85,0,COMMERCIAL SUPPLIER
04/03/2024,Adults & Health,London Care Plc,Home Care - Private Contractors Payment,61.56,0,COMMERCIAL SUPPLIER
04/03/2024,Adults & Health,London Care Plc,Home Care - Private Contractors Payment,251.37,0,COMMERCIAL SUPPLIER
04/03/2024,Adults & Health,London Care Plc,Home Care - Private Contractors Payment,112.86,0,COMMERCIAL SUPPLIER
04/03/2024,Adults & Health,London Care Plc,Home Care - Private Contractors Payment,220.59,0,COMMERCIAL SUPPLIER
04/03/2024,Adults & Health,London Care Plc,Home Care - Private Contractors Payment,215.46,0,COMMERCIAL SUPPLIER
04/03/2024,Adults & Health,London Care Plc,Home Care - Private Contractors Payment,0,0,COMMERCIAL SUPPLIER
04/03/2024,Adults & Health,London Care Plc,Home Care - Private Contractors Payment,102.6,0,COMMERCIAL SUPPLIER
04/03/2024,Adults & Health,London Care Plc,Home Care - Private Contractors Payment,143.64,0,COMMERCIAL SUPPLIER
04/03/2024,Adults & Health,London Care Plc,Home Care - Private Contractors Payment,-20.52,0,COMMERCIAL SUPPLIER
04/03/2024,Adults & Health,London Care Plc,Home Care - Private Contractors Payment,323.19,0,COMMERCIAL SUPPLIER
04/03/2024,Adults & Health,London Care Plc,Home Care - Private Contractors Payment,107.73,0,COMMERCIAL SUPPLIER
04/03/2024,Adults & Health,London Care Plc,Home Care - Private Contractors Payment,153.9,0,COMMERCIAL SUPPLIER
04/03/2024,Adults & Health,London Care Plc,Daycare - Private Contractors Payment,189.42,0,COMMERCIAL SUPPLIER
04/03/2024,Adults & Health,London Care Plc,Home Care - Private Contractors Payment,15.39,0,COMMERCIAL SUPPLIER
04/03/2024,Adults & Health,London Care Plc,Home Care - Private Contractors Payment,359.1,0,COMMERCIAL SUPPLIER
04/03/2024,Adults & Health,London Care Plc,Daycare - Private Contractors Payment,41.04,0,COMMERCIAL SUPPLIER
04/03/2024,Adults & Health,London Care Plc,Home Care - Private Contractors Payment,107.73,0,COMMERCIAL SUPPLIER
04/03/2024,Adults & Health,London Care Plc,Home Care - Private Contractors Payment,251.37,0,COMMERCIAL SUPPLIER
04/03/2024,Adults & Health,London Care Plc,Home Care - Private Contractors Payment,41.04,0,COMMERCIAL SUPPLIER
04/03/2024,Adults & Health,London Care Plc,Home Care - Private Contractors Payment,153.9,0,COMMERCIAL SUPPLIER
04/03/2024,Adults & Health,London Care Plc,Home Care - Private Contractors Payment,51.3,0,COMMERCIAL SUPPLIER
04/03/2024,Adults & Health,London Care Plc,Home Care - Private Contractors Payment,215.46,0,COMMERCIAL SUPPLIER
04/03/2024,Adults & Health,London Care Plc,Home Care - Private Contractors Payment,123.12,0,COMMERCIAL SUPPLIER
04/03/2024,Adults & Health,London Care Plc,Home Care - Private Contractors Payment,107.73,0,COMMERCIAL SUPPLIER
04/03/2024,Adults & Health,London Care Plc,Home Care - Private Contractors Payment,359.1,0,COMMERCIAL SUPPLIER
04/03/2024,Adults & Health,London Care Plc,Home Care - Private Contractors Payment,20.52,0,COMMERCIAL SUPPLIER
04/03/2024,Adults & Health,London Care Plc,Home Care - Private Contractors Payment,20.52,0,COMMERCIAL SUPPLIER
04/03/2024,Adults & Health,London Care Plc,Home Care - Private Contractors Payment,41.04,0,COMMERCIAL SUPPLIER
04/03/2024,Adults & Health,London Care Plc,Home Care - Private Contractors Payment,323.19,0,COMMERCIAL SUPPLIER
04/03/2024,Adults & Health,London Care Plc,Home Care - Private Contractors Payment,123.12,0,COMMERCIAL SUPPLIER
04/03/2024,Adults & Health,London Care Plc,Home Care - Private Contractors Payment,143.64,0,COMMERCIAL SUPPLIER
04/03/2024,Adults & Health,London Care Plc,Home Care - Private Contractors Payment,220.59,0,COMMERCIAL SUPPLIER
04/03/2024,Adults & Health,London Care Plc,Home Care - Private Contractors Payment,174.42,0,COMMERCIAL SUPPLIER
04/03/2024,Adults & Health,London Care Plc,Home Care - Private Contractors Payment,30.78,0,COMMERCIAL SUPPLIER
04/03/2024,Adults & Health,London Care Plc,Home Care - Private Contractors Payment,215.46,0,COMMERCIAL SUPPLIER
04/03/2024,Adults & Health,London Care Plc,Home Care - Private Contractors Payment,86.82,0,COMMERCIAL SUPPLIER
04/03/2024,Adults & Health,London Care Plc,Home Care - Private Contractors Payment,107.73,0,COMMERCIAL SUPPLIER
04/03/2024,Adults & Health,London Care Plc,Home Care - Private Contractors Payment,107.73,0,COMMERCIAL SUPPLIER
04/03/2024,Adults & Health,London Care Plc,Home Care - Private Contractors Payment,610.47,0,COMMERCIAL SUPPLIER
04/03/2024,Adults & Health,London Care Plc,Daycare - Private Contractors Payment,30.78,0,COMMERCIAL SUPPLIER
04/03/2024,Adults & Health,London Care Plc,Home Care - Private Contractors Payment,46.17,0,COMMERCIAL SUPPLIER
04/03/2024,Adults & Health,London Care Plc,Home Care - Private Contractors Payment,215.46,0,COMMERCIAL SUPPLIER
04/03/2024,Adults & Health,London Care Plc,Reablement,138.51,0,COMMERCIAL SUPPLIER
04/03/2024,Adults & Health,London Care Plc,Home Care - Private Contractors Payment,35.91,0,COMMERCIAL SUPPLIER
04/03/2024,Adults & Health,London Care Plc,Home Care - Private Contractors Payment,153.9,0,COMMERCIAL SUPPLIER
04/03/2024,Adults & Health,London Care Plc,Home Care - Private Contractors Payment,123.12,0,COMMERCIAL SUPPLIER
04/03/2024,Adults & Health,London Care Plc,Home Care - Private Contractors Payment,107.73,0,COMMERCIAL SUPPLIER
04/03/2024,Adults & Health,London Care Plc,Home Care - Private Contractors Payment,30.78,0,COMMERCIAL SUPPLIER
04/03/2024,Adults & Health,London Care Plc,Daycare - Private Contractors Payment,61.56,0,COMMERCIAL SUPPLIER
04/03/2024,Adults & Health,London Care Plc,Daycare - Private Contractors Payment,-148.77,0,COMMERCIAL SUPPLIER
04/03/2024,Adults & Health,London Care Plc,Home Care - Private Contractors Payment,266.37,0,COMMERCIAL SUPPLIER
04/03/2024,Adults & Health,London Care Plc,Daycare - Private Contractors Payment,-25.99,0,COMMERCIAL SUPPLIER
04/03/2024,Adults & Health,London Care Plc,Home Care - Private Contractors Payment,251.37,0,COMMERCIAL SUPPLIER
04/03/2024,Adults & Health,London Care Plc,Home Care - Private Contractors Payment,61.56,0,COMMERCIAL SUPPLIER
04/03/2024,Adults & Health,London Care Plc,Home Care - Private Contractors Payment,-147.75,0,COMMERCIAL SUPPLIER
04/03/2024,Adults & Health,London Care Plc,Daycare - Private Contractors Payment,-346.11,0,COMMERCIAL SUPPLIER
04/03/2024,Adults & Health,London Care Plc,Home Care - Private Contractors Payment,769.11,0,COMMERCIAL SUPPLIER
04/03/2024,Adults & Health,London Care Plc,Home Care - Private Contractors Payment,353.58,0,COMMERCIAL SUPPLIER
04/03/2024,Adults & Health,London Care Plc,Home Care - Private Contractors Payment,61.56,0,COMMERCIAL SUPPLIER
04/03/2024,Adults & Health,London Care Plc,Home Care - Private Contractors Payment,20.52,0,COMMERCIAL SUPPLIER
04/03/2024,Adults & Health,London Care Plc,Home Care - Private Contractors Payment,251.37,0,COMMERCIAL SUPPLIER
04/03/2024,Adults & Health,London Care Plc,Home Care - Private Contractors Payment,141.25,0,COMMERCIAL SUPPLIER
04/03/2024,Adults & Health,London Care Plc,Home Care - Private Contractors Payment,30.78,0,COMMERCIAL SUPPLIER
04/03/2024,Adults & Health,London Care Plc,Home Care - Private Contractors Payment,143.64,0,COMMERCIAL SUPPLIER
04/03/2024,Adults & Health,London Care Plc,Home Care - Private Contractors Payment,323.19,0,COMMERCIAL SUPPLIER
04/03/2024,Adults & Health,London Care Plc,Home Care - Private Contractors Payment,124.49,0,COMMERCIAL SUPPLIER
04/03/2024,Adults & Health,London Care Plc,Home Care - Private Contractors Payment,323.19,0,COMMERCIAL SUPPLIER
04/03/2024,Adults & Health,London Care Plc,Home Care - Private Contractors Payment,41.04,0,COMMERCIAL SUPPLIER
04/03/2024,Adults & Health,London Care Plc,Home Care - Private Contractors Payment,20.52,0,COMMERCIAL SUPPLIER
04/03/2024,Adults & Health,London Care Plc,Daycare - Private Contractors Payment,82.08,0,COMMERCIAL SUPPLIER
04/03/2024,Adults & Health,London Care Plc,Home Care - Private Contractors Payment,179.55,0,COMMERCIAL SUPPLIER
04/03/2024,Adults & Health,London Care Plc,Home Care - Private Contractors Payment,51.3,0,COMMERCIAL SUPPLIER
04/03/2024,Adults & Health,London Care Plc,Home Care - Private Contractors Payment,46.17,0,COMMERCIAL SUPPLIER
04/03/2024,Adults & Health,London Care Plc,Home Care - Private Contractors Payment,395.01,0,COMMERCIAL SUPPLIER
04/03/2024,Adults & Health,London Care Plc,Home Care - Private Contractors Payment,41.04,0,COMMERCIAL SUPPLIER
04/03/2024,Adults & Health,London Care Plc,Home Care - Private Contractors Payment,287.28,0,COMMERCIAL SUPPLIER
04/03/2024,Adults & Health,London Care Plc,Home Care - Private Contractors Payment,790.02,0,COMMERCIAL SUPPLIER
04/03/2024,Adults & Health,London Care Plc,Home Care - Private Contractors Payment,251.37,0,COMMERCIAL SUPPLIER
04/03/2024,Adults & Health,London Care Plc,Home Care - Private Contractors Payment,179.55,0,COMMERCIAL SUPPLIER
04/03/2024,Adults & Health,London Care Plc,Home Care - Private Contractors Payment,-318.06,0,COMMERCIAL SUPPLIER
04/03/2024,Adults & Health,London Care Plc,Daycare - Private Contractors Payment,-8.9,0,COMMERCIAL SUPPLIER
04/03/2024,Adults & Health,London Care Plc,Daycare - Private Contractors Payment,61.56,0,COMMERCIAL SUPPLIER
04/03/2024,Adults & Health,London Care Plc,Home Care - Private Contractors Payment,323.19,0,COMMERCIAL SUPPLIER
04/03/2024,Adults & Health,London Care Plc,Home Care - Private Contractors Payment,128.25,0,COMMERCIAL SUPPLIER
04/03/2024,Adults & Health,London Care Plc,Home Care - Private Contractors Payment,51.3,0,COMMERCIAL SUPPLIER
04/03/2024,Adults & Health,London Care Plc,Home Care - Private Contractors Payment,102.6,0,COMMERCIAL SUPPLIER
04/03/2024,Adults & Health,London Care Plc,Home Care - Private Contractors Payment,107.73,0,COMMERCIAL SUPPLIER
04/03/2024,Adults & Health,London Care Plc,Home Care - Private Contractors Payment,30.78,0,COMMERCIAL SUPPLIER
04/03/2024,Adults & Health,London Care Plc,Home Care - Private Contractors Payment,123.12,0,COMMERCIAL SUPPLIER
04/03/2024,Adults & Health,London Care Plc,Home Care - Private Contractors Payment,20.52,0,COMMERCIAL SUPPLIER
04/03/2024,Adults & Health,London Care Plc,Home Care - Private Contractors Payment,251.37,0,COMMERCIAL SUPPLIER
04/03/2024,Adults & Health,London Care Plc,Home Care - Private Contractors Payment,143.64,0,COMMERCIAL SUPPLIER
04/03/2024,Adults & Health,London Care Plc,Home Care - Private Contractors Payment,138.51,0,COMMERCIAL SUPPLIER
04/03/2024,Adults & Health,London Care Plc,Home Care - Private Contractors Payment,338.58,0,COMMERCIAL SUPPLIER
04/03/2024,Adults & Health,London Care Plc,Home Care - Private Contractors Payment,30.78,0,COMMERCIAL SUPPLIER
04/03/2024,Adults & Health,London Care Plc,Home Care - Private Contractors Payment,143.64,0,COMMERCIAL SUPPLIER
04/03/2024,Adults & Health,London Care Plc,Home Care - Private Contractors Payment,71.82,0,COMMERCIAL SUPPLIER
04/03/2024,Adults & Health,London Care Plc,Home Care - Private Contractors Payment,107.73,0,COMMERCIAL SUPPLIER
04/03/2024,Adults & Health,London Care Plc,Home Care - Private Contractors Payment,41.04,0,COMMERCIAL SUPPLIER
04/03/2024,Adults & Health,London Care Plc,Home Care - Private Contractors Payment,76.95,0,COMMERCIAL SUPPLIER
04/03/2024,Adults & Health,London Care Plc,Home Care - Private Contractors Payment,30.78,0,COMMERCIAL SUPPLIER
04/03/2024,Adults & Health,London Care Plc,Home Care - Private Contractors Payment,-230.85,0,COMMERCIAL SUPPLIER
04/03/2024,Adults & Health,London Care Plc,Home Care - Private Contractors Payment,359.1,0,COMMERCIAL SUPPLIER
04/03/2024,Adults & Health,London Care Plc,Home Care - Private Contractors Payment,107.73,0,COMMERCIAL SUPPLIER
04/03/2024,Adults & Health,London Care Plc,Home Care - Private Contractors Payment,20.52,0,COMMERCIAL SUPPLIER
04/03/2024,Adults & Health,London Care Plc,Home Care - Private Contractors Payment,369.36,0,COMMERCIAL SUPPLIER
04/03/2024,Adults & Health,London Care Plc,Home Care - Private Contractors Payment,143.64,0,COMMERCIAL SUPPLIER
04/03/2024,Environment and Sustainable Transport,R.A.M Fleet Solutions Ltd,"Purchase - Equipment, Furniture And Materials",5680,0,COMMERCIAL SUPPLIER
04/03/2024,Marketing,Askews and Holts Library Services Ltd,"Books, Publications And Resources",3767.76,0,COMMERCIAL SUPPLIER
04/03/2024,Marketing,Askews and Holts Library Services Ltd,"Books, Publications And Resources",1328.99,0,COMMERCIAL SUPPLIER
04/03/2024,Marketing,Askews and Holts Library Services Ltd,"Books, Publications And Resources",1463.88,0,COMMERCIAL SUPPLIER
04/03/2024,Marketing,Askews and Holts Library Services Ltd,"Books, Publications And Resources",303.86,0,COMMERCIAL SUPPLIER
04/03/2024,Marketing,Askews and Holts Library Services Ltd,"Books, Publications And Resources",132.57,0,COMMERCIAL SUPPLIER
04/03/2024,Environment and Sustainable Transport,Societe Generale Equipment Finance Ltd,Highway Services,12600,0,COMMERCIAL SUPPLIER
04/03/2024,Housing Revenue Account,AMA Security Ltd,Responsive Repairs - Mechanical And Electrical,536.48,0,COMMERCIAL SUPPLIER
04/03/2024,Resources,University of Reading,Consultancy Fees,2000,0,COMMERCIAL SUPPLIER
04/03/2024,Environment and Sustainable Transport,Blackburn IT Services Ltd,Ict Licences,7550,0,COMMERCIAL SUPPLIER
04/03/2024,Children and Young People,Personal Information - Redacted,Professional Services - General,1050,0,INDIVIDUALS
04/03/2024,Housing Revenue Account,Griffin Elevators Ltd,Cyclical/Planned Maintenance - Mechanical And Electrical,10549.17,0,CIS
04/03/2024,Housing Revenue Account,Griffin Elevators Ltd,Responsive Repairs - Mechanical And Electrical,5483.12,0,CIS
04/03/2024,oneSource,Bytes Software Services Ltd,Ict Licences,8388.5,0,NON COMMERCIAL SUPPLIER
04/03/2024,Children and Young People,Personal Information - Redacted,Professional Services - General,727.4,0,INDIVIDUALS
04/03/2024,Children and Young People,Goldline Cars Ltd,Client Transport,3130,0,COMMERCIAL SUPPLIER
04/03/2024,Adults & Health,L.A.Services & Solutions Limited,Building Alterations And Materials,1200,0,COMMERCIAL SUPPLIER
04/03/2024,Adults & Health,L.A.Services & Solutions Limited,Building Alterations And Materials,1900,0,COMMERCIAL SUPPLIER
04/03/2024,Environment and Sustainable Transport,Greenbarnes Ltd,Building Alterations And Materials,200,0,COMMERCIAL SUPPLIER
04/03/2024,Environment and Sustainable Transport,Greenbarnes Ltd,Building Alterations And Materials,3043.01,0,COMMERCIAL SUPPLIER
04/03/2024,Environment and Sustainable Transport,Greenbarnes Ltd,Building Alterations And Materials,1786.14,0,COMMERCIAL SUPPLIER
04/03/2024,Environment and Sustainable Transport,Enterprise Flex-E-Rent,Highway Services,480.14,0,COMMERCIAL SUPPLIER
04/03/2024,Environment and Sustainable Transport,Enterprise Flex-E-Rent,Highway Services,733.25,0,COMMERCIAL SUPPLIER
04/03/2024,Environment and Sustainable Transport,Enterprise Flex-E-Rent,Highway Services,733.25,0,COMMERCIAL SUPPLIER
04/03/2024,Environment and Sustainable Transport,Enterprise Flex-E-Rent,Highway Services,733.25,0,COMMERCIAL SUPPLIER
04/03/2024,Environment and Sustainable Transport,Enterprise Flex-E-Rent,Highway Services,733.25,0,COMMERCIAL SUPPLIER
04/03/2024,Environment and Sustainable Transport,Enterprise Flex-E-Rent,Highway Services,733.25,0,COMMERCIAL SUPPLIER
04/03/2024,Environment and Sustainable Transport,Enterprise Flex-E-Rent,Highway Services,733.25,0,COMMERCIAL SUPPLIER
04/03/2024,Environment and Sustainable Transport,Enterprise Flex-E-Rent,Highway Services,733.25,0,COMMERCIAL SUPPLIER
04/03/2024,Environment and Sustainable Transport,Enterprise Flex-E-Rent,Highway Services,303.44,0,COMMERCIAL SUPPLIER
04/03/2024,Environment and Sustainable Transport,Enterprise Flex-E-Rent,Highway Services,733.25,0,COMMERCIAL SUPPLIER
04/03/2024,Dedicated Schools Budget,The Tutorial Foundation,Professional Services - General,2121.6,0,COMMERCIAL SUPPLIER
04/03/2024,Environment and Sustainable Transport,Arkwood,Consultancy Fees,1440,0,COMMERCIAL SUPPLIER
04/03/2024,Marketing,Mouna's Kitchen Ltd,Events,1153,0,COMMERCIAL SUPPLIER
04/03/2024,Marketing,Personal Information - Redacted,Events,1400,0,INDIVIDUALS
04/03/2024,Children and Young People,Personal Information - Redacted,Legal Fees,397.8,0,VENDOR
04/03/2024,Inclusive Economy & Housing,Photography and Community Arts Ltd,Design And Photographic Costs,300,0,COMMERCIAL SUPPLIER
04/03/2024,Housing Revenue Account,Gas Contract Services LTD,Cyclical/Planned Maintenance - Mechanical And Electrical,2731,0,LOCAL AUTHORITY SERVICES
04/03/2024,Housing Revenue Account,In-Line Removal And Storage,Removal Services,639.78,0,VENDOR
04/03/2024,Housing Revenue Account,RGE Services Ltd,"Purchase - Equipment, Furniture And Materials",579.78,0,CIS
04/03/2024,RMS,A M Forktrucks Ltd,Purchase Of Vehicles Related Costs,810.33,0,COMMERCIAL SUPPLIER
04/03/2024,RMS,A M Forktrucks Ltd,Purchase Of Vehicles Related Costs,433.33,0,COMMERCIAL SUPPLIER
04/03/2024,Environment and Sustainable Transport,Ford Motor Company Ltd t/a PartsPlus,Highway Services,164.42,0,COMMERCIAL SUPPLIER
04/03/2024,Environment and Sustainable Transport,Ford Motor Company Ltd t/a PartsPlus,Highway Services,50,0,COMMERCIAL SUPPLIER
04/03/2024,Environment and Sustainable Transport,Ford Motor Company Ltd t/a PartsPlus,Highway Services,3.37,0,COMMERCIAL SUPPLIER
04/03/2024,Environment and Sustainable Transport,Ford Motor Company Ltd t/a PartsPlus,Highway Services,35.09,0,COMMERCIAL SUPPLIER
04/03/2024,Environment and Sustainable Transport,Ford Motor Company Ltd t/a PartsPlus,Highway Services,99.2,0,COMMERCIAL SUPPLIER
04/03/2024,Environment and Sustainable Transport,Ford Motor Company Ltd t/a PartsPlus,Highway Services,33.59,0,COMMERCIAL SUPPLIER
04/03/2024,Environment and Sustainable Transport,Ford Motor Company Ltd t/a PartsPlus,Highway Services,2.84,0,COMMERCIAL SUPPLIER
04/03/2024,Environment and Sustainable Transport,Ford Motor Company Ltd t/a PartsPlus,Highway Services,0.01,0,COMMERCIAL SUPPLIER
04/03/2024,Environment and Sustainable Transport,Ford Motor Company Ltd t/a PartsPlus,Highway Services,38.28,0,COMMERCIAL SUPPLIER
04/03/2024,Adults & Health,FMG Consulting,Consultancy Fees,5540,0,COMMERCIAL SUPPLIER
04/03/2024,Adults & Health,Bio Luminuex Health Care Ltd,Home Care - Private Contractors Payment,179.55,0,VENDOR
04/03/2024,Adults & Health,Bio Luminuex Health Care Ltd,Daycare - Private Contractors Payment,61.56,0,VENDOR
04/03/2024,Adults & Health,Bio Luminuex Health Care Ltd,Home Care - Private Contractors Payment,466.83,0,VENDOR
04/03/2024,Adults & Health,Bio Luminuex Health Care Ltd,Daycare - Private Contractors Payment,41.04,0,VENDOR
04/03/2024,Adults & Health,Bio Luminuex Health Care Ltd,Home Care - Private Contractors Payment,179.55,0,VENDOR
04/03/2024,Adults & Health,Bio Luminuex Health Care Ltd,Home Care - Private Contractors Payment,107.73,0,VENDOR
04/03/2024,Adults & Health,Bio Luminuex Health Care Ltd,Home Care - Private Contractors Payment,323.19,0,VENDOR
04/03/2024,Adults & Health,Bio Luminuex Health Care Ltd,Home Care - Private Contractors Payment,323.19,0,VENDOR
04/03/2024,Adults & Health,Bio Luminuex Health Care Ltd,Home Care - Private Contractors Payment,133.38,0,VENDOR
04/03/2024,Adults & Health,Bio Luminuex Health Care Ltd,Home Care - Private Contractors Payment,20.52,0,VENDOR
04/03/2024,Adults & Health,Bio Luminuex Health Care Ltd,Respite Care - Private Contractors Payment,82.08,0,VENDOR
04/03/2024,Adults & Health,Bio Luminuex Health Care Ltd,Home Care - Private Contractors Payment,71.82,0,VENDOR
04/03/2024,Adults & Health,Bio Luminuex Health Care Ltd,Home Care - Private Contractors Payment,107.73,0,VENDOR
04/03/2024,Adults & Health,Bio Luminuex Health Care Ltd,Reablement,30.78,0,VENDOR
04/03/2024,Adults & Health,Bio Luminuex Health Care Ltd,Home Care - Private Contractors Payment,41.04,0,VENDOR
04/03/2024,Adults & Health,Bio Luminuex Health Care Ltd,Daycare - Private Contractors Payment,20.52,0,VENDOR
04/03/2024,Adults & Health,Bio Luminuex Health Care Ltd,Home Care - Private Contractors Payment,682.29,0,VENDOR
04/03/2024,Adults & Health,Bio Luminuex Health Care Ltd,Home Care - Private Contractors Payment,533.52,0,VENDOR
04/03/2024,Adults & Health,Bio Luminuex Health Care Ltd,Home Care - Private Contractors Payment,71.82,0,VENDOR
04/03/2024,Adults & Health,Bio Luminuex Health Care Ltd,Home Care - Private Contractors Payment,179.55,0,VENDOR
04/03/2024,Adults & Health,Bio Luminuex Health Care Ltd,Home Care - Private Contractors Payment,20.52,0,VENDOR
04/03/2024,Adults & Health,Bio Luminuex Health Care Ltd,Home Care - Private Contractors Payment,143.64,0,VENDOR
04/03/2024,Adults & Health,Bio Luminuex Health Care Ltd,Home Care - Private Contractors Payment,323.19,0,VENDOR
04/03/2024,Adults & Health,Bio Luminuex Health Care Ltd,Home Care - Private Contractors Payment,102.6,0,VENDOR
04/03/2024,Adults & Health,Bio Luminuex Health Care Ltd,Home Care - Private Contractors Payment,574.56,0,VENDOR
04/03/2024,Adults & Health,Bio Luminuex Health Care Ltd,Home Care - Private Contractors Payment,861.84,0,VENDOR
04/03/2024,Adults & Health,Bio Luminuex Health Care Ltd,Home Care - Private Contractors Payment,646.38,0,VENDOR
04/03/2024,Adults & Health,Bio Luminuex Health Care Ltd,Home Care - Private Contractors Payment,610.47,0,VENDOR
04/03/2024,Adults & Health,Bio Luminuex Health Care Ltd,Home Care - Private Contractors Payment,179.55,0,VENDOR
04/03/2024,Adults & Health,Bio Luminuex Health Care Ltd,Daycare - Private Contractors Payment,41.04,0,VENDOR
04/03/2024,Adults & Health,Bio Luminuex Health Care Ltd,Home Care - Private Contractors Payment,251.37,0,VENDOR
04/03/2024,Adults & Health,Bio Luminuex Health Care Ltd,Home Care - Private Contractors Payment,287.28,0,VENDOR
04/03/2024,Adults & Health,Bio Luminuex Health Care Ltd,Home Care - Private Contractors Payment,369.36,0,VENDOR
04/03/2024,Adults & Health,Bio Luminuex Health Care Ltd,Daycare - Private Contractors Payment,41.04,0,VENDOR
04/03/2024,Adults & Health,Bio Luminuex Health Care Ltd,Home Care - Private Contractors Payment,107.73,0,VENDOR
04/03/2024,Adults & Health,Bio Luminuex Health Care Ltd,Home Care - Private Contractors Payment,466.83,0,VENDOR
04/03/2024,Adults & Health,Bio Luminuex Health Care Ltd,Home Care - Private Contractors Payment,41.04,0,VENDOR
04/03/2024,Adults & Health,Bio Luminuex Health Care Ltd,Home Care - Private Contractors Payment,107.73,0,VENDOR
04/03/2024,Adults & Health,Bio Luminuex Health Care Ltd,Home Care - Private Contractors Payment,30.78,0,VENDOR
04/03/2024,Adults & Health,Bio Luminuex Health Care Ltd,Home Care - Private Contractors Payment,251.37,0,VENDOR
04/03/2024,Adults & Health,Bio Luminuex Health Care Ltd,Home Care - Private Contractors Payment,251.37,0,VENDOR
04/03/2024,Adults & Health,Bio Luminuex Health Care Ltd,Home Care - Private Contractors Payment,430.92,0,VENDOR
04/03/2024,Adults & Health,Bio Luminuex Health Care Ltd,Home Care - Private Contractors Payment,143.64,0,VENDOR
04/03/2024,Adults & Health,Bio Luminuex Health Care Ltd,Home Care - Private Contractors Payment,143.64,0,VENDOR
04/03/2024,Adults & Health,Bio Luminuex Health Care Ltd,Home Care - Private Contractors Payment,718.2,0,VENDOR
04/03/2024,Adults & Health,Bio Luminuex Health Care Ltd,Daycare - Private Contractors Payment,61.56,0,VENDOR
04/03/2024,Adults & Health,Bio Luminuex Health Care Ltd,Reablement,179.55,0,VENDOR
04/03/2024,Adults & Health,Bio Luminuex Health Care Ltd,Home Care - Private Contractors Payment,251.37,0,VENDOR
04/03/2024,Adults & Health,Bio Luminuex Health Care Ltd,Home Care - Private Contractors Payment,107.73,0,VENDOR
04/03/2024,Adults & Health,Bio Luminuex Health Care Ltd,Home Care - Private Contractors Payment,323.19,0,VENDOR
04/03/2024,Adults & Health,Bio Luminuex Health Care Ltd,Home Care - Private Contractors Payment,461.7,0,VENDOR
04/03/2024,Adults & Health,Bio Luminuex Health Care Ltd,Reablement,92.34,0,VENDOR
04/03/2024,Adults & Health,Bio Luminuex Health Care Ltd,Daycare - Private Contractors Payment,51.3,0,VENDOR
04/03/2024,Adults & Health,Bio Luminuex Health Care Ltd,Home Care - Private Contractors Payment,30.78,0,VENDOR
04/03/2024,Adults & Health,Bio Luminuex Health Care Ltd,Home Care - Private Contractors Payment,466.83,0,VENDOR
04/03/2024,Adults & Health,Bio Luminuex Health Care Ltd,Home Care - Private Contractors Payment,359.1,0,VENDOR
04/03/2024,Adults & Health,Bio Luminuex Health Care Ltd,Home Care - Private Contractors Payment,71.82,0,VENDOR
04/03/2024,Adults & Health,Bio Luminuex Health Care Ltd,Home Care - Private Contractors Payment,287.28,0,VENDOR
04/03/2024,Adults & Health,Bio Luminuex Health Care Ltd,Home Care - Private Contractors Payment,41.04,0,VENDOR
04/03/2024,Adults & Health,Bio Luminuex Health Care Ltd,Home Care - Private Contractors Payment,215.46,0,VENDOR
04/03/2024,Adults & Health,Bio Luminuex Health Care Ltd,Home Care - Private Contractors Payment,287.28,0,VENDOR
04/03/2024,Adults & Health,Bio Luminuex Health Care Ltd,Daycare - Private Contractors Payment,123.12,0,VENDOR
04/03/2024,Adults & Health,Bio Luminuex Health Care Ltd,Home Care - Private Contractors Payment,533.52,0,VENDOR
04/03/2024,Adults & Health,Bio Luminuex Health Care Ltd,Home Care - Private Contractors Payment,20.52,0,VENDOR
04/03/2024,Adults & Health,Bio Luminuex Health Care Ltd,Reablement,20.52,0,VENDOR
04/03/2024,Adults & Health,Bio Luminuex Health Care Ltd,Daycare - Private Contractors Payment,71.82,0,VENDOR
04/03/2024,Adults & Health,Bio Luminuex Health Care Ltd,Home Care - Private Contractors Payment,215.46,0,VENDOR
04/03/2024,Adults & Health,Bio Luminuex Health Care Ltd,Daycare - Private Contractors Payment,102.6,0,VENDOR
04/03/2024,Adults & Health,Bio Luminuex Health Care Ltd,Home Care - Private Contractors Payment,61.56,0,VENDOR
04/03/2024,Adults & Health,Bio Luminuex Health Care Ltd,Reablement,251.37,0,VENDOR
04/03/2024,Adults & Health,Bio Luminuex Health Care Ltd,Home Care - Private Contractors Payment,107.73,0,VENDOR
04/03/2024,Adults & Health,Bio Luminuex Health Care Ltd,Daycare - Private Contractors Payment,41.04,0,VENDOR
04/03/2024,Adults & Health,Bio Luminuex Health Care Ltd,Reablement,179.55,0,VENDOR
04/03/2024,Adults & Health,Bio Luminuex Health Care Ltd,Home Care - Private Contractors Payment,179.55,0,VENDOR
04/03/2024,Adults & Health,Bio Luminuex Health Care Ltd,Daycare - Private Contractors Payment,61.56,0,VENDOR
04/03/2024,Adults & Health,Bio Luminuex Health Care Ltd,Home Care - Private Contractors Payment,323.19,0,VENDOR
04/03/2024,Adults & Health,Bio Luminuex Health Care Ltd,Home Care - Private Contractors Payment,179.55,0,VENDOR
04/03/2024,Adults & Health,Bio Luminuex Health Care Ltd,Home Care - Private Contractors Payment,179.55,0,VENDOR
04/03/2024,Adults & Health,Bio Luminuex Health Care Ltd,Home Care - Private Contractors Payment,610.47,0,VENDOR
04/03/2024,Adults & Health,Bio Luminuex Health Care Ltd,Home Care - Private Contractors Payment,107.73,0,VENDOR
04/03/2024,Adults & Health,Bio Luminuex Health Care Ltd,Home Care - Private Contractors Payment,251.37,0,VENDOR
04/03/2024,Adults & Health,Bio Luminuex Health Care Ltd,Home Care - Private Contractors Payment,215.46,0,VENDOR
04/03/2024,Adults & Health,Bio Luminuex Health Care Ltd,Daycare - Private Contractors Payment,533.52,0,VENDOR
04/03/2024,Adults & Health,Bio Luminuex Health Care Ltd,Home Care - Private Contractors Payment,71.82,0,VENDOR
04/03/2024,Adults & Health,Bio Luminuex Health Care Ltd,Reablement,128.25,0,VENDOR
04/03/2024,Adults & Health,Bio Luminuex Health Care Ltd,Home Care - Private Contractors Payment,107.73,0,VENDOR
04/03/2024,Adults & Health,Bio Luminuex Health Care Ltd,Home Care - Private Contractors Payment,395.01,0,VENDOR
04/03/2024,Adults & Health,Bio Luminuex Health Care Ltd,Home Care - Private Contractors Payment,107.73,0,VENDOR
04/03/2024,Adults & Health,Bio Luminuex Health Care Ltd,Home Care - Private Contractors Payment,251.37,0,VENDOR
04/03/2024,Adults & Health,Bio Luminuex Health Care Ltd,Home Care - Private Contractors Payment,71.82,0,VENDOR
04/03/2024,Adults & Health,Bio Luminuex Health Care Ltd,Home Care - Private Contractors Payment,610.47,0,VENDOR
04/03/2024,Adults & Health,Bio Luminuex Health Care Ltd,Home Care - Private Contractors Payment,323.19,0,VENDOR
04/03/2024,Adults & Health,Bio Luminuex Health Care Ltd,Respite Care - Private Contractors Payment,133.38,0,VENDOR
04/03/2024,Adults & Health,Bio Luminuex Health Care Ltd,Home Care - Private Contractors Payment,107.73,0,VENDOR
04/03/2024,Adults & Health,Bio Luminuex Health Care Ltd,Home Care - Private Contractors Payment,20.52,0,VENDOR
04/03/2024,Adults & Health,Bio Luminuex Health Care Ltd,Respite Care - Private Contractors Payment,143.64,0,VENDOR
04/03/2024,Adults & Health,Bio Luminuex Health Care Ltd,Home Care - Private Contractors Payment,179.55,0,VENDOR
04/03/2024,Adults & Health,Bio Luminuex Health Care Ltd,Home Care - Private Contractors Payment,179.55,0,VENDOR
04/03/2024,Adults & Health,Bio Luminuex Health Care Ltd,Home Care - Private Contractors Payment,323.19,0,VENDOR
04/03/2024,Adults & Health,Bio Luminuex Health Care Ltd,Daycare - Private Contractors Payment,41.04,0,VENDOR
04/03/2024,Adults & Health,Bio Luminuex Health Care Ltd,Reablement,20.52,0,VENDOR
04/03/2024,Adults & Health,Bio Luminuex Health Care Ltd,Daycare - Private Contractors Payment,41.04,0,VENDOR
04/03/2024,Adults & Health,Bio Luminuex Health Care Ltd,Home Care - Private Contractors Payment,71.82,0,VENDOR
04/03/2024,Adults & Health,Bio Luminuex Health Care Ltd,Home Care - Private Contractors Payment,20.52,0,VENDOR
04/03/2024,Adults & Health,Bio Luminuex Health Care Ltd,Home Care - Private Contractors Payment,395.01,0,VENDOR
04/03/2024,Adults & Health,Bio Luminuex Health Care Ltd,Home Care - Private Contractors Payment,102.6,0,VENDOR
04/03/2024,Adults & Health,Bio Luminuex Health Care Ltd,Daycare - Private Contractors Payment,82.08,0,VENDOR
04/03/2024,Adults & Health,Bio Luminuex Health Care Ltd,Home Care - Private Contractors Payment,251.37,0,VENDOR
04/03/2024,Adults & Health,Bio Luminuex Health Care Ltd,Home Care - Private Contractors Payment,20.52,0,VENDOR
04/03/2024,Adults & Health,Bio Luminuex Health Care Ltd,Home Care - Private Contractors Payment,287.28,0,VENDOR
04/03/2024,Adults & Health,Bio Luminuex Health Care Ltd,Home Care - Private Contractors Payment,46.17,0,VENDOR
04/03/2024,Adults & Health,Bio Luminuex Health Care Ltd,Home Care - Private Contractors Payment,359.1,0,VENDOR
04/03/2024,Adults & Health,Bio Luminuex Health Care Ltd,Home Care - Private Contractors Payment,323.19,0,VENDOR
04/03/2024,Adults & Health,Bio Luminuex Health Care Ltd,Daycare - Private Contractors Payment,41.04,0,VENDOR
04/03/2024,Adults & Health,Bio Luminuex Health Care Ltd,Home Care - Private Contractors Payment,143.64,0,VENDOR
04/03/2024,Adults & Health,Bio Luminuex Health Care Ltd,Home Care - Private Contractors Payment,251.37,0,VENDOR
04/03/2024,Adults & Health,Bio Luminuex Health Care Ltd,Home Care - Private Contractors Payment,646.38,0,VENDOR
04/03/2024,Adults & Health,Bio Luminuex Health Care Ltd,Home Care - Private Contractors Payment,251.37,0,VENDOR
04/03/2024,Adults & Health,Bio Luminuex Health Care Ltd,Daycare - Private Contractors Payment,41.04,0,VENDOR
04/03/2024,Adults & Health,Bio Luminuex Health Care Ltd,Home Care - Private Contractors Payment,466.83,0,VENDOR
04/03/2024,Adults & Health,Bio Luminuex Health Care Ltd,Home Care - Private Contractors Payment,466.83,0,VENDOR
04/03/2024,Adults & Health,Bio Luminuex Health Care Ltd,Home Care - Private Contractors Payment,71.82,0,VENDOR
04/03/2024,Adults & Health,Bio Luminuex Health Care Ltd,Home Care - Private Contractors Payment,251.37,0,VENDOR
04/03/2024,Adults & Health,Bio Luminuex Health Care Ltd,Daycare - Private Contractors Payment,61.56,0,VENDOR
04/03/2024,Adults & Health,Bio Luminuex Health Care Ltd,Daycare - Private Contractors Payment,71.82,0,VENDOR
04/03/2024,Adults & Health,Bio Luminuex Health Care Ltd,Home Care - Private Contractors Payment,20.52,0,VENDOR
04/03/2024,Adults & Health,Bio Luminuex Health Care Ltd,Daycare - Private Contractors Payment,41.04,0,VENDOR
04/03/2024,Adults & Health,Bio Luminuex Health Care Ltd,Daycare - Private Contractors Payment,61.56,0,VENDOR
04/03/2024,Adults & Health,Bio Luminuex Health Care Ltd,Home Care - Private Contractors Payment,287.28,0,VENDOR
04/03/2024,Adults & Health,Bio Luminuex Health Care Ltd,Home Care - Private Contractors Payment,646.38,0,VENDOR
04/03/2024,Adults & Health,Bio Luminuex Health Care Ltd,Home Care - Private Contractors Payment,102.6,0,VENDOR
04/03/2024,Adults & Health,Bio Luminuex Health Care Ltd,Home Care - Private Contractors Payment,179.55,0,VENDOR
04/03/2024,Adults & Health,Bio Luminuex Health Care Ltd,Home Care - Private Contractors Payment,41.04,0,VENDOR
04/03/2024,Adults & Health,Bio Luminuex Health Care Ltd,Home Care - Private Contractors Payment,215.46,0,VENDOR
04/03/2024,Adults & Health,Bio Luminuex Health Care Ltd,Respite Care - Private Contractors Payment,41.04,0,VENDOR
04/03/2024,Adults & Health,Bio Luminuex Health Care Ltd,Home Care - Private Contractors Payment,143.64,0,VENDOR
04/03/2024,Adults & Health,Bio Luminuex Health Care Ltd,Home Care - Private Contractors Payment,251.37,0,VENDOR
04/03/2024,Adults & Health,Bio Luminuex Health Care Ltd,Reablement,15.39,0,VENDOR
04/03/2024,Adults & Health,Bio Luminuex Health Care Ltd,Home Care - Private Contractors Payment,251.37,0,VENDOR
04/03/2024,Adults & Health,Bio Luminuex Health Care Ltd,Home Care - Private Contractors Payment,20.52,0,VENDOR
04/03/2024,Adults & Health,Bio Luminuex Health Care Ltd,Home Care - Private Contractors Payment,71.82,0,VENDOR
04/03/2024,Adults & Health,Bio Luminuex Health Care Ltd,Home Care - Private Contractors Payment,61.56,0,VENDOR
04/03/2024,Adults & Health,Bio Luminuex Health Care Ltd,Home Care - Private Contractors Payment,30.78,0,VENDOR
04/03/2024,Adults & Health,Bio Luminuex Health Care Ltd,Home Care - Private Contractors Payment,41.04,0,VENDOR
04/03/2024,Adults & Health,Bio Luminuex Health Care Ltd,Home Care - Private Contractors Payment,41.04,0,VENDOR
04/03/2024,Adults & Health,Bio Luminuex Health Care Ltd,Home Care - Private Contractors Payment,143.64,0,VENDOR
04/03/2024,Adults & Health,Bio Luminuex Health Care Ltd,Home Care - Private Contractors Payment,430.92,0,VENDOR
04/03/2024,Adults & Health,Bio Luminuex Health Care Ltd,Home Care - Private Contractors Payment,436.05,0,VENDOR
04/03/2024,Adults & Health,Bio Luminuex Health Care Ltd,Home Care - Private Contractors Payment,20.52,0,VENDOR
04/03/2024,Adults & Health,Bio Luminuex Health Care Ltd,Daycare - Private Contractors Payment,41.04,0,VENDOR
04/03/2024,Adults & Health,Bio Luminuex Health Care Ltd,Daycare - Private Contractors Payment,20.52,0,VENDOR
04/03/2024,Adults & Health,Bio Luminuex Health Care Ltd,Home Care - Private Contractors Payment,20.52,0,VENDOR
04/03/2024,Adults & Health,Bio Luminuex Health Care Ltd,Home Care - Private Contractors Payment,287.28,0,VENDOR
04/03/2024,Adults & Health,Bio Luminuex Health Care Ltd,Home Care - Private Contractors Payment,61.56,0,VENDOR
04/03/2024,Adults & Health,Bio Luminuex Health Care Ltd,Home Care - Private Contractors Payment,107.73,0,VENDOR
04/03/2024,Adults & Health,Bio Luminuex Health Care Ltd,Daycare - Private Contractors Payment,51.3,0,VENDOR
04/03/2024,Adults & Health,Bio Luminuex Health Care Ltd,Home Care - Private Contractors Payment,20.52,0,VENDOR
04/03/2024,Adults & Health,Bio Luminuex Health Care Ltd,Home Care - Private Contractors Payment,251.37,0,VENDOR
04/03/2024,Adults & Health,Bio Luminuex Health Care Ltd,Home Care - Private Contractors Payment,251.37,0,VENDOR
04/03/2024,Adults & Health,Bio Luminuex Health Care Ltd,Home Care - Private Contractors Payment,359.1,0,VENDOR
04/03/2024,Adults & Health,Bio Luminuex Health Care Ltd,Home Care - Private Contractors Payment,251.37,0,VENDOR
04/03/2024,Adults & Health,Bio Luminuex Health Care Ltd,Daycare - Private Contractors Payment,41.04,0,VENDOR
04/03/2024,Adults & Health,Bio Luminuex Health Care Ltd,Home Care - Private Contractors Payment,107.73,0,VENDOR
04/03/2024,Adults & Health,Bio Luminuex Health Care Ltd,Reablement,251.37,0,VENDOR
04/03/2024,Adults & Health,Bio Luminuex Health Care Ltd,Home Care - Private Contractors Payment,20.52,0,VENDOR
04/03/2024,Adults & Health,Bio Luminuex Health Care Ltd,Home Care - Private Contractors Payment,251.37,0,VENDOR
04/03/2024,Adults & Health,Bio Luminuex Health Care Ltd,Home Care - Private Contractors Payment,123.12,0,VENDOR
04/03/2024,Adults & Health,Bio Luminuex Health Care Ltd,Home Care - Private Contractors Payment,107.73,0,VENDOR
04/03/2024,Adults & Health,Bio Luminuex Health Care Ltd,Daycare - Private Contractors Payment,20.52,0,VENDOR
04/03/2024,Adults & Health,Bio Luminuex Health Care Ltd,Home Care - Private Contractors Payment,287.28,0,VENDOR
04/03/2024,Adults & Health,Bio Luminuex Health Care Ltd,Home Care - Private Contractors Payment,754.11,0,VENDOR
04/03/2024,Adults & Health,Bio Luminuex Health Care Ltd,Home Care - Private Contractors Payment,123.12,0,VENDOR
04/03/2024,Adults & Health,Bio Luminuex Health Care Ltd,Home Care - Private Contractors Payment,682.29,0,VENDOR
04/03/2024,Adults & Health,Bio Luminuex Health Care Ltd,Home Care - Private Contractors Payment,107.73,0,VENDOR
04/03/2024,Adults & Health,Bio Luminuex Health Care Ltd,Home Care - Private Contractors Payment,610.47,0,VENDOR
04/03/2024,Adults & Health,Bio Luminuex Health Care Ltd,Home Care - Private Contractors Payment,251.37,0,VENDOR
04/03/2024,Adults & Health,Bio Luminuex Health Care Ltd,Home Care - Private Contractors Payment,143.64,0,VENDOR
04/03/2024,Adults & Health,Bio Luminuex Health Care Ltd,Home Care - Private Contractors Payment,466.83,0,VENDOR
04/03/2024,Adults & Health,Bio Luminuex Health Care Ltd,Home Care - Private Contractors Payment,251.37,0,VENDOR
04/03/2024,Adults & Health,Bio Luminuex Health Care Ltd,Home Care - Private Contractors Payment,251.37,0,VENDOR
04/03/2024,Adults & Health,Bio Luminuex Health Care Ltd,Reablement,35.91,0,VENDOR
04/03/2024,Adults & Health,Bio Luminuex Health Care Ltd,Home Care - Private Contractors Payment,610.47,0,VENDOR
04/03/2024,Adults & Health,Bio Luminuex Health Care Ltd,Home Care - Private Contractors Payment,107.73,0,VENDOR
04/03/2024,Adults & Health,Bio Luminuex Health Care Ltd,Home Care - Private Contractors Payment,574.56,0,VENDOR
04/03/2024,Adults & Health,Bio Luminuex Health Care Ltd,Home Care - Private Contractors Payment,323.19,0,VENDOR
04/03/2024,Adults & Health,Bio Luminuex Health Care Ltd,Home Care - Private Contractors Payment,61.56,0,VENDOR
04/03/2024,Adults & Health,Bio Luminuex Health Care Ltd,Home Care - Private Contractors Payment,107.73,0,VENDOR
04/03/2024,Adults & Health,Bio Luminuex Health Care Ltd,Home Care - Private Contractors Payment,287.28,0,VENDOR
04/03/2024,Adults & Health,Bio Luminuex Health Care Ltd,Home Care - Private Contractors Payment,15.39,0,VENDOR
04/03/2024,Adults & Health,Bio Luminuex Health Care Ltd,Daycare - Private Contractors Payment,102.6,0,VENDOR
04/03/2024,Adults & Health,Bio Luminuex Health Care Ltd,Home Care - Private Contractors Payment,51.3,0,VENDOR
04/03/2024,Adults & Health,Bio Luminuex Health Care Ltd,Home Care - Private Contractors Payment,82.08,0,VENDOR
04/03/2024,Adults & Health,Bio Luminuex Health Care Ltd,Home Care - Private Contractors Payment,143.64,0,VENDOR
04/03/2024,Adults & Health,Bio Luminuex Health Care Ltd,Home Care - Private Contractors Payment,215.46,0,VENDOR
04/03/2024,Adults & Health,Bio Luminuex Health Care Ltd,Home Care - Private Contractors Payment,143.64,0,VENDOR
04/03/2024,Adults & Health,Bio Luminuex Health Care Ltd,Home Care - Private Contractors Payment,430.92,0,VENDOR
04/03/2024,Adults & Health,Bio Luminuex Health Care Ltd,Home Care - Private Contractors Payment,41.04,0,VENDOR
04/03/2024,Adults & Health,Bio Luminuex Health Care Ltd,Reablement,107.73,0,VENDOR
04/03/2024,Adults & Health,Bio Luminuex Health Care Ltd,Home Care - Private Contractors Payment,502.74,0,VENDOR
04/03/2024,Adults & Health,Bio Luminuex Health Care Ltd,Home Care - Private Contractors Payment,220.59,0,VENDOR
04/03/2024,Adults & Health,Bio Luminuex Health Care Ltd,Home Care - Private Contractors Payment,251.37,0,VENDOR
04/03/2024,Adults & Health,Bio Luminuex Health Care Ltd,Home Care - Private Contractors Payment,215.46,0,VENDOR
04/03/2024,Adults & Health,Bio Luminuex Health Care Ltd,Daycare - Private Contractors Payment,123.12,0,VENDOR
04/03/2024,Adults & Health,Bio Luminuex Health Care Ltd,Daycare - Private Contractors Payment,533.52,0,VENDOR
04/03/2024,Adults & Health,Bio Luminuex Health Care Ltd,Home Care - Private Contractors Payment,251.37,0,VENDOR
04/03/2024,Adults & Health,Bio Luminuex Health Care Ltd,Daycare - Private Contractors Payment,41.04,0,VENDOR
04/03/2024,Adults & Health,Bio Luminuex Health Care Ltd,Home Care - Private Contractors Payment,20.52,0,VENDOR
04/03/2024,Adults & Health,Bio Luminuex Health Care Ltd,Daycare - Private Contractors Payment,51.3,0,VENDOR
04/03/2024,Adults & Health,Bio Luminuex Health Care Ltd,Home Care - Private Contractors Payment,41.04,0,VENDOR
04/03/2024,Adults & Health,Bio Luminuex Health Care Ltd,Home Care - Private Contractors Payment,430.92,0,VENDOR
04/03/2024,Adults & Health,Bio Luminuex Health Care Ltd,Home Care - Private Contractors Payment,251.37,0,VENDOR
04/03/2024,Adults & Health,Bio Luminuex Health Care Ltd,Home Care - Private Contractors Payment,61.56,0,VENDOR
04/03/2024,Adults & Health,Bio Luminuex Health Care Ltd,Home Care - Private Contractors Payment,610.47,0,VENDOR
04/03/2024,Adults & Health,Bio Luminuex Health Care Ltd,Home Care - Private Contractors Payment,646.38,0,VENDOR
04/03/2024,Adults & Health,Bio Luminuex Health Care Ltd,Home Care - Private Contractors Payment,143.64,0,VENDOR
04/03/2024,Adults & Health,Bio Luminuex Health Care Ltd,Home Care - Private Contractors Payment,20.52,0,VENDOR
04/03/2024,Adults & Health,Bio Luminuex Health Care Ltd,Home Care - Private Contractors Payment,179.55,0,VENDOR
04/03/2024,Adults & Health,Bio Luminuex Health Care Ltd,Home Care - Private Contractors Payment,143.64,0,VENDOR
04/03/2024,Adults & Health,Bio Luminuex Health Care Ltd,Home Care - Private Contractors Payment,430.92,0,VENDOR
04/03/2024,Adults & Health,Bio Luminuex Health Care Ltd,Reablement,20.52,0,VENDOR
04/03/2024,Adults & Health,Bio Luminuex Health Care Ltd,Home Care - Private Contractors Payment,461.7,0,VENDOR
04/03/2024,Adults & Health,Bio Luminuex Health Care Ltd,Home Care - Private Contractors Payment,395.01,0,VENDOR
04/03/2024,Adults & Health,Bio Luminuex Health Care Ltd,Home Care - Private Contractors Payment,179.55,0,VENDOR
04/03/2024,Adults & Health,Bio Luminuex Health Care Ltd,Home Care - Private Contractors Payment,20.52,0,VENDOR
04/03/2024,Adults & Health,Bio Luminuex Health Care Ltd,Home Care - Private Contractors Payment,251.37,0,VENDOR
04/03/2024,Adults & Health,Bio Luminuex Health Care Ltd,Home Care - Private Contractors Payment,143.64,0,VENDOR
04/03/2024,Adults & Health,Bio Luminuex Health Care Ltd,Home Care - Private Contractors Payment,20.52,0,VENDOR
04/03/2024,Adults & Health,Bio Luminuex Health Care Ltd,Home Care - Private Contractors Payment,51.3,0,VENDOR
04/03/2024,Adults & Health,Bio Luminuex Health Care Ltd,Reablement,179.55,0,VENDOR
04/03/2024,Adults & Health,Bio Luminuex Health Care Ltd,Home Care - Private Contractors Payment,251.37,0,VENDOR
04/03/2024,Adults & Health,Bio Luminuex Health Care Ltd,Home Care - Private Contractors Payment,251.37,0,VENDOR
04/03/2024,Adults & Health,Bio Luminuex Health Care Ltd,Home Care - Private Contractors Payment,251.37,0,VENDOR
04/03/2024,Adults & Health,Bio Luminuex Health Care Ltd,Home Care - Private Contractors Payment,20.52,0,VENDOR
04/03/2024,Adults & Health,Bio Luminuex Health Care Ltd,Home Care - Private Contractors Payment,184.68,0,VENDOR
04/03/2024,Adults & Health,Bio Luminuex Health Care Ltd,Home Care - Private Contractors Payment,646.38,0,VENDOR
04/03/2024,Adults & Health,Bio Luminuex Health Care Ltd,Home Care - Private Contractors Payment,251.37,0,VENDOR
04/03/2024,Adults & Health,Bio Luminuex Health Care Ltd,Home Care - Private Contractors Payment,107.73,0,VENDOR
04/03/2024,Adults & Health,Bio Luminuex Health Care Ltd,Home Care - Private Contractors Payment,610.47,0,VENDOR
04/03/2024,Adults & Health,Bio Luminuex Health Care Ltd,Home Care - Private Contractors Payment,287.28,0,VENDOR
04/03/2024,Adults & Health,Bio Luminuex Health Care Ltd,Home Care - Private Contractors Payment,179.55,0,VENDOR
04/03/2024,Adults & Health,Bio Luminuex Health Care Ltd,Home Care - Private Contractors Payment,20.52,0,VENDOR
04/03/2024,Adults & Health,Bio Luminuex Health Care Ltd,Home Care - Private Contractors Payment,610.47,0,VENDOR
04/03/2024,Adults & Health,Bio Luminuex Health Care Ltd,Home Care - Private Contractors Payment,107.73,0,VENDOR
04/03/2024,Adults & Health,Bio Luminuex Health Care Ltd,Reablement,51.3,0,VENDOR
04/03/2024,Adults & Health,Bio Luminuex Health Care Ltd,Home Care - Private Contractors Payment,184.68,0,VENDOR
04/03/2024,Adults & Health,Bio Luminuex Health Care Ltd,Home Care - Private Contractors Payment,574.56,0,VENDOR
04/03/2024,Adults & Health,Bio Luminuex Health Care Ltd,Home Care - Private Contractors Payment,143.64,0,VENDOR
04/03/2024,Adults & Health,Bio Luminuex Health Care Ltd,Home Care - Private Contractors Payment,754.11,0,VENDOR
04/03/2024,Adults & Health,Bio Luminuex Health Care Ltd,Home Care - Private Contractors Payment,20.52,0,VENDOR
04/03/2024,Adults & Health,Bio Luminuex Health Care Ltd,Home Care - Private Contractors Payment,71.82,0,VENDOR
04/03/2024,Adults & Health,Bio Luminuex Health Care Ltd,Home Care - Private Contractors Payment,251.37,0,VENDOR
04/03/2024,Adults & Health,Bio Luminuex Health Care Ltd,Home Care - Private Contractors Payment,251.37,0,VENDOR
04/03/2024,Adults & Health,Bio Luminuex Health Care Ltd,Home Care - Private Contractors Payment,179.55,0,VENDOR
04/03/2024,Adults & Health,Bio Luminuex Health Care Ltd,Home Care - Private Contractors Payment,287.28,0,VENDOR
04/03/2024,Adults & Health,Bio Luminuex Health Care Ltd,Daycare - Private Contractors Payment,82.08,0,VENDOR
04/03/2024,Adults & Health,Bio Luminuex Health Care Ltd,Home Care - Private Contractors Payment,30.78,0,VENDOR
04/03/2024,Adults & Health,Bio Luminuex Health Care Ltd,Daycare - Private Contractors Payment,30.78,0,VENDOR
04/03/2024,Adults & Health,Bio Luminuex Health Care Ltd,Home Care - Private Contractors Payment,323.19,0,VENDOR
04/03/2024,Adults & Health,Bio Luminuex Health Care Ltd,Home Care - Private Contractors Payment,41.04,0,VENDOR
04/03/2024,Adults & Health,Bio Luminuex Health Care Ltd,Home Care - Private Contractors Payment,466.83,0,VENDOR
04/03/2024,Adults & Health,Bio Luminuex Health Care Ltd,Reablement,107.73,0,VENDOR
04/03/2024,Adults & Health,Bio Luminuex Health Care Ltd,Home Care - Private Contractors Payment,20.52,0,VENDOR
04/03/2024,Adults & Health,Bio Luminuex Health Care Ltd,Home Care - Private Contractors Payment,610.47,0,VENDOR
04/03/2024,Adults & Health,Bio Luminuex Health Care Ltd,Home Care - Private Contractors Payment,251.37,0,VENDOR
04/03/2024,Adults & Health,Bio Luminuex Health Care Ltd,Daycare - Private Contractors Payment,51.3,0,VENDOR
04/03/2024,Adults & Health,Bio Luminuex Health Care Ltd,Home Care - Private Contractors Payment,107.73,0,VENDOR
04/03/2024,Adults & Health,Bio Luminuex Health Care Ltd,Home Care - Private Contractors Payment,251.37,0,VENDOR
04/03/2024,Adults & Health,Bio Luminuex Health Care Ltd,Home Care - Private Contractors Payment,215.46,0,VENDOR
04/03/2024,Adults & Health,Bio Luminuex Health Care Ltd,Daycare - Private Contractors Payment,41.04,0,VENDOR
04/03/2024,Adults & Health,Bio Luminuex Health Care Ltd,Home Care - Private Contractors Payment,179.55,0,VENDOR
04/03/2024,Adults & Health,Bio Luminuex Health Care Ltd,Home Care - Private Contractors Payment,10.26,0,VENDOR
04/03/2024,Adults & Health,Bio Luminuex Health Care Ltd,Home Care - Private Contractors Payment,71.82,0,VENDOR
04/03/2024,Adults & Health,Bio Luminuex Health Care Ltd,Reablement,261.63,0,VENDOR
04/03/2024,Adults & Health,Bio Luminuex Health Care Ltd,Daycare - Private Contractors Payment,61.56,0,VENDOR
04/03/2024,Adults & Health,Bio Luminuex Health Care Ltd,Home Care - Private Contractors Payment,251.37,0,VENDOR
04/03/2024,Adults & Health,Bio Luminuex Health Care Ltd,Respite Care - Private Contractors Payment,35.91,0,VENDOR
04/03/2024,Adults & Health,Bio Luminuex Health Care Ltd,Home Care - Private Contractors Payment,128.25,0,VENDOR
04/03/2024,Adults & Health,Bio Luminuex Health Care Ltd,Home Care - Private Contractors Payment,71.82,0,VENDOR
04/03/2024,Adults & Health,Bio Luminuex Health Care Ltd,Home Care - Private Contractors Payment,287.28,0,VENDOR
04/03/2024,Adults & Health,Bio Luminuex Health Care Ltd,Daycare - Private Contractors Payment,164.16,0,VENDOR
04/03/2024,Adults & Health,Bio Luminuex Health Care Ltd,Home Care - Private Contractors Payment,143.64,0,VENDOR
04/03/2024,Adults & Health,Bio Luminuex Health Care Ltd,Home Care - Private Contractors Payment,179.55,0,VENDOR
04/03/2024,Adults & Health,Bio Luminuex Health Care Ltd,Home Care - Private Contractors Payment,61.56,0,VENDOR
04/03/2024,Adults & Health,Bio Luminuex Health Care Ltd,Home Care - Private Contractors Payment,20.52,0,VENDOR
04/03/2024,Adults & Health,Bio Luminuex Health Care Ltd,Home Care - Private Contractors Payment,235.98,0,VENDOR
04/03/2024,Adults & Health,Bio Luminuex Health Care Ltd,Home Care - Private Contractors Payment,20.52,0,VENDOR
04/03/2024,Adults & Health,Bio Luminuex Health Care Ltd,Home Care - Private Contractors Payment,20.52,0,VENDOR
04/03/2024,Adults & Health,Bio Luminuex Health Care Ltd,Home Care - Private Contractors Payment,107.73,0,VENDOR
04/03/2024,Adults & Health,Bio Luminuex Health Care Ltd,Home Care - Private Contractors Payment,287.28,0,VENDOR
04/03/2024,Adults & Health,Bio Luminuex Health Care Ltd,Home Care - Private Contractors Payment,20.52,0,VENDOR
04/03/2024,Adults & Health,Bio Luminuex Health Care Ltd,Home Care - Private Contractors Payment,251.37,0,VENDOR
04/03/2024,Adults & Health,Bio Luminuex Health Care Ltd,Home Care - Private Contractors Payment,718.2,0,VENDOR
04/03/2024,Adults & Health,Bio Luminuex Health Care Ltd,Home Care - Private Contractors Payment,102.6,0,VENDOR
04/03/2024,Adults & Health,Bio Luminuex Health Care Ltd,Home Care - Private Contractors Payment,179.55,0,VENDOR
04/03/2024,Adults & Health,Bio Luminuex Health Care Ltd,Home Care - Private Contractors Payment,646.38,0,VENDOR
04/03/2024,Adults & Health,Bio Luminuex Health Care Ltd,Home Care - Private Contractors Payment,513,0,VENDOR
04/03/2024,Adults & Health,Bio Luminuex Health Care Ltd,Home Care - Private Contractors Payment,143.64,0,VENDOR
04/03/2024,Adults & Health,Bio Luminuex Health Care Ltd,Home Care - Private Contractors Payment,107.73,0,VENDOR
04/03/2024,Adults & Health,Bio Luminuex Health Care Ltd,Home Care - Private Contractors Payment,76.95,0,VENDOR
04/03/2024,Adults & Health,Bio Luminuex Health Care Ltd,Home Care - Private Contractors Payment,20.52,0,VENDOR
04/03/2024,Adults & Health,Bio Luminuex Health Care Ltd,Home Care - Private Contractors Payment,107.73,0,VENDOR
04/03/2024,Adults & Health,Bio Luminuex Health Care Ltd,Home Care - Private Contractors Payment,430.92,0,VENDOR
04/03/2024,Adults & Health,Bio Luminuex Health Care Ltd,Home Care - Private Contractors Payment,153.9,0,VENDOR
04/03/2024,Adults & Health,Bio Luminuex Health Care Ltd,Home Care - Private Contractors Payment,251.37,0,VENDOR
04/03/2024,Adults & Health,Bio Luminuex Health Care Ltd,Home Care - Private Contractors Payment,20.52,0,VENDOR
04/03/2024,Adults & Health,Bio Luminuex Health Care Ltd,Home Care - Private Contractors Payment,107.73,0,VENDOR
04/03/2024,Adults & Health,Bio Luminuex Health Care Ltd,Home Care - Private Contractors Payment,235.98,0,VENDOR
04/03/2024,Adults & Health,Bio Luminuex Health Care Ltd,Home Care - Private Contractors Payment,143.64,0,VENDOR
04/03/2024,Adults & Health,Bio Luminuex Health Care Ltd,Reablement,107.73,0,VENDOR
04/03/2024,Adults & Health,Bio Luminuex Health Care Ltd,Home Care - Private Contractors Payment,107.73,0,VENDOR
04/03/2024,Adults & Health,Bio Luminuex Health Care Ltd,Daycare - Private Contractors Payment,61.56,0,VENDOR
04/03/2024,Adults & Health,Bio Luminuex Health Care Ltd,Daycare - Private Contractors Payment,82.08,0,VENDOR
04/03/2024,Adults & Health,Bio Luminuex Health Care Ltd,Home Care - Private Contractors Payment,20.52,0,VENDOR
04/03/2024,Adults & Health,Bio Luminuex Health Care Ltd,Home Care - Private Contractors Payment,20.52,0,VENDOR
04/03/2024,Adults & Health,Bio Luminuex Health Care Ltd,Home Care - Private Contractors Payment,266.76,0,VENDOR
04/03/2024,Adults & Health,Bio Luminuex Health Care Ltd,Home Care - Private Contractors Payment,41.04,0,VENDOR
04/03/2024,Adults & Health,Bio Luminuex Health Care Ltd,Home Care - Private Contractors Payment,107.73,0,VENDOR
04/03/2024,Adults & Health,Bio Luminuex Health Care Ltd,Home Care - Private Contractors Payment,20.52,0,VENDOR
04/03/2024,Adults & Health,Bio Luminuex Health Care Ltd,Respite Care - Private Contractors Payment,82.08,0,VENDOR
04/03/2024,Adults & Health,Bio Luminuex Health Care Ltd,Home Care - Private Contractors Payment,251.37,0,VENDOR
04/03/2024,Adults & Health,Bio Luminuex Health Care Ltd,Home Care - Private Contractors Payment,610.47,0,VENDOR
04/03/2024,Adults & Health,Bio Luminuex Health Care Ltd,Home Care - Private Contractors Payment,466.83,0,VENDOR
04/03/2024,Adults & Health,Bio Luminuex Health Care Ltd,Home Care - Private Contractors Payment,359.1,0,VENDOR
04/03/2024,Adults & Health,Bio Luminuex Health Care Ltd,Home Care - Private Contractors Payment,646.38,0,VENDOR
04/03/2024,Adults & Health,Bio Luminuex Health Care Ltd,Home Care - Private Contractors Payment,107.73,0,VENDOR
04/03/2024,Adults & Health,Bio Luminuex Health Care Ltd,Home Care - Private Contractors Payment,220.59,0,VENDOR
04/03/2024,Adults & Health,Bio Luminuex Health Care Ltd,Home Care - Private Contractors Payment,107.73,0,VENDOR
04/03/2024,Adults & Health,Bio Luminuex Health Care Ltd,Home Care - Private Contractors Payment,410.4,0,VENDOR
04/03/2024,Adults & Health,Bio Luminuex Health Care Ltd,Home Care - Private Contractors Payment,287.28,0,VENDOR
04/03/2024,Adults & Health,Bio Luminuex Health Care Ltd,Respite Care - Private Contractors Payment,35.91,0,VENDOR
04/03/2024,Adults & Health,Bio Luminuex Health Care Ltd,Home Care - Private Contractors Payment,20.52,0,VENDOR
04/03/2024,Adults & Health,Bio Luminuex Health Care Ltd,Home Care - Private Contractors Payment,20.52,0,VENDOR
04/03/2024,Adults & Health,Bio Luminuex Health Care Ltd,Daycare - Private Contractors Payment,30.78,0,VENDOR
04/03/2024,Adults & Health,Bio Luminuex Health Care Ltd,Home Care - Private Contractors Payment,261.63,0,VENDOR
04/03/2024,Adults & Health,Bio Luminuex Health Care Ltd,Home Care - Private Contractors Payment,30.78,0,VENDOR
04/03/2024,Adults & Health,Bio Luminuex Health Care Ltd,Reablement,251.37,0,VENDOR
04/03/2024,Adults & Health,Bio Luminuex Health Care Ltd,Home Care - Private Contractors Payment,461.7,0,VENDOR
04/03/2024,Adults & Health,Bio Luminuex Health Care Ltd,Home Care - Private Contractors Payment,287.28,0,VENDOR
04/03/2024,Adults & Health,Bio Luminuex Health Care Ltd,Home Care - Private Contractors Payment,107.73,0,VENDOR
04/03/2024,Adults & Health,Bio Luminuex Health Care Ltd,Home Care - Private Contractors Payment,107.73,0,VENDOR
04/03/2024,Adults & Health,Bio Luminuex Health Care Ltd,Home Care - Private Contractors Payment,41.04,0,VENDOR
04/03/2024,Adults & Health,Bio Luminuex Health Care Ltd,Home Care - Private Contractors Payment,15.39,0,VENDOR
04/03/2024,Adults & Health,Bio Luminuex Health Care Ltd,Home Care - Private Contractors Payment,395.01,0,VENDOR
04/03/2024,Adults & Health,Bio Luminuex Health Care Ltd,Home Care - Private Contractors Payment,359.1,0,VENDOR
04/03/2024,Adults & Health,Bio Luminuex Health Care Ltd,Home Care - Private Contractors Payment,825.93,0,VENDOR
04/03/2024,Adults & Health,Bio Luminuex Health Care Ltd,Home Care - Private Contractors Payment,179.55,0,VENDOR
04/03/2024,Adults & Health,Bio Luminuex Health Care Ltd,Home Care - Private Contractors Payment,82.08,0,VENDOR
04/03/2024,Adults & Health,Bio Luminuex Health Care Ltd,Home Care - Private Contractors Payment,215.46,0,VENDOR
04/03/2024,Adults & Health,Bio Luminuex Health Care Ltd,Home Care - Private Contractors Payment,466.83,0,VENDOR
04/03/2024,Adults & Health,Bio Luminuex Health Care Ltd,Daycare - Private Contractors Payment,41.04,0,VENDOR
04/03/2024,Adults & Health,Bio Luminuex Health Care Ltd,Home Care - Private Contractors Payment,179.55,0,VENDOR
04/03/2024,Adults & Health,Bio Luminuex Health Care Ltd,Home Care - Private Contractors Payment,143.64,0,VENDOR
04/03/2024,Adults & Health,Bio Luminuex Health Care Ltd,Daycare - Private Contractors Payment,46.17,0,VENDOR
04/03/2024,Adults & Health,Bio Luminuex Health Care Ltd,Respite Care - Private Contractors Payment,153.9,0,VENDOR
04/03/2024,Adults & Health,Bio Luminuex Health Care Ltd,Home Care - Private Contractors Payment,123.12,0,VENDOR
04/03/2024,Adults & Health,Bio Luminuex Health Care Ltd,Home Care - Private Contractors Payment,179.55,0,VENDOR
04/03/2024,Adults & Health,Bio Luminuex Health Care Ltd,Home Care - Private Contractors Payment,51.3,0,VENDOR
04/03/2024,Adults & Health,Bio Luminuex Health Care Ltd,Reablement,123.12,0,VENDOR
04/03/2024,Adults & Health,Bio Luminuex Health Care Ltd,Home Care - Private Contractors Payment,179.55,0,VENDOR
04/03/2024,Adults & Health,Bio Luminuex Health Care Ltd,Home Care - Private Contractors Payment,251.37,0,VENDOR
04/03/2024,Adults & Health,Bio Luminuex Health Care Ltd,Home Care - Private Contractors Payment,107.73,0,VENDOR
04/03/2024,Adults & Health,Bio Luminuex Health Care Ltd,Home Care - Private Contractors Payment,82.08,0,VENDOR
04/03/2024,Adults & Health,Bio Luminuex Health Care Ltd,Home Care - Private Contractors Payment,215.46,0,VENDOR
04/03/2024,Adults & Health,Bio Luminuex Health Care Ltd,Home Care - Private Contractors Payment,707.94,0,VENDOR
04/03/2024,Adults & Health,Bio Luminuex Health Care Ltd,Home Care - Private Contractors Payment,646.38,0,VENDOR
04/03/2024,Adults & Health,Bio Luminuex Health Care Ltd,Home Care - Private Contractors Payment,107.73,0,VENDOR
04/03/2024,Adults & Health,Bio Luminuex Health Care Ltd,Home Care - Private Contractors Payment,20.52,0,VENDOR
04/03/2024,Adults & Health,Bio Luminuex Health Care Ltd,Home Care - Private Contractors Payment,210.33,0,VENDOR
04/03/2024,Adults & Health,Bio Luminuex Health Care Ltd,Home Care - Private Contractors Payment,71.82,0,VENDOR
04/03/2024,Adults & Health,Bio Luminuex Health Care Ltd,Reablement,251.37,0,VENDOR
04/03/2024,Adults & Health,Bio Luminuex Health Care Ltd,Home Care - Private Contractors Payment,718.2,0,VENDOR
04/03/2024,Adults & Health,Bio Luminuex Health Care Ltd,Home Care - Private Contractors Payment,646.38,0,VENDOR
04/03/2024,Adults & Health,Bio Luminuex Health Care Ltd,Daycare - Private Contractors Payment,164.16,0,VENDOR
04/03/2024,Adults & Health,Bio Luminuex Health Care Ltd,Home Care - Private Contractors Payment,82.08,0,VENDOR
04/03/2024,Adults & Health,Bio Luminuex Health Care Ltd,Home Care - Private Contractors Payment,41.04,0,VENDOR
04/03/2024,Adults & Health,Bio Luminuex Health Care Ltd,Daycare - Private Contractors Payment,61.56,0,VENDOR
04/03/2024,Adults & Health,Bio Luminuex Health Care Ltd,Home Care - Private Contractors Payment,20.52,0,VENDOR
04/03/2024,Adults & Health,Bio Luminuex Health Care Ltd,Home Care - Private Contractors Payment,251.37,0,VENDOR
04/03/2024,Adults & Health,Bio Luminuex Health Care Ltd,Home Care - Private Contractors Payment,466.83,0,VENDOR
04/03/2024,Adults & Health,Bio Luminuex Health Care Ltd,Home Care - Private Contractors Payment,246.24,0,VENDOR
04/03/2024,Adults & Health,Bio Luminuex Health Care Ltd,Daycare - Private Contractors Payment,41.04,0,VENDOR
04/03/2024,Adults & Health,Bio Luminuex Health Care Ltd,Home Care - Private Contractors Payment,241.11,0,VENDOR
04/03/2024,Adults & Health,Bio Luminuex Health Care Ltd,Respite Care - Private Contractors Payment,123.12,0,VENDOR
04/03/2024,Adults & Health,Bio Luminuex Health Care Ltd,Home Care - Private Contractors Payment,143.64,0,VENDOR
04/03/2024,Adults & Health,Bio Luminuex Health Care Ltd,Home Care - Private Contractors Payment,610.47,0,VENDOR
04/03/2024,Adults & Health,Bio Luminuex Health Care Ltd,Home Care - Private Contractors Payment,20.52,0,VENDOR
04/03/2024,Adults & Health,Bio Luminuex Health Care Ltd,Home Care - Private Contractors Payment,251.37,0,VENDOR
04/03/2024,Adults & Health,Bio Luminuex Health Care Ltd,Home Care - Private Contractors Payment,251.37,0,VENDOR
04/03/2024,Adults & Health,Bio Luminuex Health Care Ltd,Home Care - Private Contractors Payment,395.01,0,VENDOR
04/03/2024,Adults & Health,Bio Luminuex Health Care Ltd,Home Care - Private Contractors Payment,287.28,0,VENDOR
04/03/2024,Adults & Health,Bio Luminuex Health Care Ltd,Home Care - Private Contractors Payment,143.64,0,VENDOR
04/03/2024,Adults & Health,Bio Luminuex Health Care Ltd,Home Care - Private Contractors Payment,205.2,0,VENDOR
04/03/2024,Adults & Health,Bio Luminuex Health Care Ltd,Respite Care - Private Contractors Payment,20.52,0,VENDOR
04/03/2024,Adults & Health,Bio Luminuex Health Care Ltd,Home Care - Private Contractors Payment,282.15,0,VENDOR
04/03/2024,Adults & Health,Bio Luminuex Health Care Ltd,Home Care - Private Contractors Payment,251.37,0,VENDOR
04/03/2024,Adults & Health,Bio Luminuex Health Care Ltd,Home Care - Private Contractors Payment,143.64,0,VENDOR
04/03/2024,Adults & Health,Bio Luminuex Health Care Ltd,Home Care - Private Contractors Payment,41.04,0,VENDOR
04/03/2024,Adults & Health,Bio Luminuex Health Care Ltd,Home Care - Private Contractors Payment,179.55,0,VENDOR
04/03/2024,Adults & Health,Bio Luminuex Health Care Ltd,Home Care - Private Contractors Payment,215.46,0,VENDOR
04/03/2024,Adults & Health,Bio Luminuex Health Care Ltd,Home Care - Private Contractors Payment,107.73,0,VENDOR
04/03/2024,Adults & Health,Bio Luminuex Health Care Ltd,Home Care - Private Contractors Payment,610.47,0,VENDOR
04/03/2024,Adults & Health,Bio Luminuex Health Care Ltd,Home Care - Private Contractors Payment,179.55,0,VENDOR
04/03/2024,Adults & Health,Bio Luminuex Health Care Ltd,Home Care - Private Contractors Payment,323.19,0,VENDOR
04/03/2024,Adults & Health,Bio Luminuex Health Care Ltd,Home Care - Private Contractors Payment,61.56,0,VENDOR
04/03/2024,Adults & Health,Bio Luminuex Health Care Ltd,Home Care - Private Contractors Payment,241.11,0,VENDOR
04/03/2024,Adults & Health,Bio Luminuex Health Care Ltd,Home Care - Private Contractors Payment,107.73,0,VENDOR
04/03/2024,Adults & Health,Bio Luminuex Health Care Ltd,Home Care - Private Contractors Payment,20.52,0,VENDOR
04/03/2024,Adults & Health,Bio Luminuex Health Care Ltd,Home Care - Private Contractors Payment,251.37,0,VENDOR
04/03/2024,Adults & Health,Bio Luminuex Health Care Ltd,Home Care - Private Contractors Payment,430.92,0,VENDOR
04/03/2024,Adults & Health,Bio Luminuex Health Care Ltd,Daycare - Private Contractors Payment,41.04,0,VENDOR
04/03/2024,Adults & Health,Bio Luminuex Health Care Ltd,Home Care - Private Contractors Payment,143.64,0,VENDOR
04/03/2024,Adults & Health,Bio Luminuex Health Care Ltd,Home Care - Private Contractors Payment,92.34,0,VENDOR
04/03/2024,Adults & Health,Bio Luminuex Health Care Ltd,Home Care - Private Contractors Payment,682.29,0,VENDOR
04/03/2024,Adults & Health,Bio Luminuex Health Care Ltd,Home Care - Private Contractors Payment,359.1,0,VENDOR
04/03/2024,Adults & Health,Bio Luminuex Health Care Ltd,Home Care - Private Contractors Payment,20.52,0,VENDOR
04/03/2024,Adults & Health,Bio Luminuex Health Care Ltd,Home Care - Private Contractors Payment,251.37,0,VENDOR
04/03/2024,Adults & Health,Bio Luminuex Health Care Ltd,Home Care - Private Contractors Payment,251.37,0,VENDOR
04/03/2024,Adults & Health,Bio Luminuex Health Care Ltd,Home Care - Private Contractors Payment,251.37,0,VENDOR
